{"text_format":"1","workbook":"xlsx","n_sheets":9,"sheets":["Uputstvo","Podaci o računu","Račun ME","Račun SL","Račun HR","Kupci","Izdavaoci","Artikli","Šifranti"],"not_rendered":{"charts":0,"images":3,"macros":1,"external_links":1,"defined_names":6,"comments":0,"pivot_tables":0},"unopened":[],"bounds":{"document_bytes":16777216,"sheet_cells":100000,"rows_first":2000,"rows_last":500,"rows_between":2000,"halvings":0,"cell_chars":16384,"cell_head_chars":4096},"cells_cut":0,"cells_raw":0,"read":"whole","date_system":"1900"}

{"sheet":"Uputstvo","index":0,"n_rows":76,"n_cols":3,"rows_kept":76,"cut":false,"hidden":false,"merged":[]}
[]
[]
[]
[null,null,"Excel eRačun"]
[]
[]
[null,null,"Alat za pripremu eRačuna po standardu e-SLOG."]
[]
[null,null,"ZZI je na predlog korisnika razvio besplatan alat za unos artikala i automatsko generisanje e-SLOG računa sa PDF vizualizacijom.partnerjev, artiklov ter avtomatsko izdelavo e-SLOG računa s PDF vizualizacijo."]
[]
[null,null,"Nakon kreiranja vaše e-fakture, još uvek je morate da je digitalno potpišete i pošaljete primaocu, jer se ova dva koraka ne izvršavaju automatski u trenutnoj verziji bizBox Ekcel e-Računa"]
[null,null,"Koristite bizBox eRazmjena uslugu da biste to učinili. Sve što trebate je aktivni bizBox račun ili instalacija besplatnog ZZInet klijenta kako bi korisnik osigurao da primaocu računa sigurno i pouzdano dođe i da troškovi slanja budu manji od troškova klasične pošte."]
[null,null,"Bez obzira na korišćenje usluge eRazmjena, preporučujemo da se registrujete na veb portalu www.bizbox.eu, koji vam omogućava da besplatno pregledate dokumente primljene u e-poštanskom sandučiću."]
[]
[null,null,"Za omogućivanje usluge možete nas kontaktirati na info@zzi.co.me ili 067 233 425."]
[]
[null,null,"Upozorenje: prilikom startovanja dokumenta neophodno je omogućiti makroe, da bi izrada dokumenta mogla da radi ! Makroi se dozvoljavaju klikom na dugme koje se pojavi prilikom startovanja excel dokumenta kako je prikazano ispod"]
[]
[]
[]
[null,null,"UPUTSTVO ZA PRIPREMU ERAČUNA U FORMATU E-SLOG 2.0"]
[null,null,"eSlog eRačun izradite u 7 koraka:"]
[null,null,"1. Na listu Izdavaoci upišete svoje podatke. Možete unijeti do tri različita izdavaoca."]
[null,null,"2. Na listu Kupci unesite podatke o vašim strankama. "]
[null,null,"3. Na listu Artikli možete da unesete podatke o vašim fakturnim stavkama."]
[null,null,"4. Na listu Podatci o računu iz liste izberete izdavaoca, kupca i primaoca robe potom izberete artikle i unesete podatke o računu."]
[null,null,"5. Na listu Račun možete pogledati vizualizaciju računa. Možete dodate sliku sa svojim logotipom, na predviđeno mjesto u gornjem desnom uglu."]
[null,null,"6. Na listu Podatci o računu kliknete na dugme Napravi e-SLOG 2.0 račun i PDF vizualizaciju\" i fajlove sačuvajte na svom računaru"]
[]
[]
[]
[null,null,"UPUTSTVO ZA POPUNJAVANJE"]
[null,null,"Popunite samo polja o kojima imate podatke na svom nalogu. Ne unosite privremene podatke."]
[null,null,"Prilikom lepljenja iz drugih izvora dvaput kliknite na izabranu ćeliju ili zalijepite tekst u gornju traku za unos."]
[null,null,"Izdavači i kupci su dužni da u spiskove navedete ime, adresu, zemlju, poreski broj, PDV ID, IBAN i BIC. Izdavalac ima i obavezne podatke preduzeća koji se odnose na Zakon o privrednim društvima."]
[null,null,"U polju države odaberite kod države (Crna Gora = ME, Slovenija = SI, Hrvaška = HR)."]
[null,null,"U polju obveznika PDV-a odaberite da li kupac podliježe PDV-u. Ove informacije su obavezne. Ako je hrvatska kompanija, uvijek odaberite DA."]
[]
[null,null,"Na listu sa stavkama možete dodati i ažurirati ime, šifru, jedinicu, cijenu svojih proizvoda ili usluga. Preporučljivo je da ih unosite čim vam budu potrebni da biste uštedjeli vrijeme. Zatim uvrstite izabrane stavke u svoj nalog. Prilikom odabira predmeta obratite pažnju na valutu u kojoj pišete cijenu. Ako želite da koristite drugačiju valutu na svom računu, to možete promeniti na listu Podaci o računu."]
[]
[null,null,"Datume upisujte u formatu DD-MM-LLLL ili DD.MM.LLLL."]
[null,null,"U polju poslovni proces možete izabrati proces je iz padajućeg menija. Ulaz se preporučuje u svakom slučaju, ali obavezan je prilikom slanja u Hrvatsku. Objašnjenje procesa: (Engleski:EU)"]
[null,null,"P1 - Invoicing of deliveries of goods and services against purchase orders, based on a contract"]
[null,null,"P2 - Invoicing deliveries of goods and services based on a contract"]
[null,null,"P3 - Invoicing the delivery of an incidental purchase order"]
[null,null,"P4 - Pre-payment"]
[null,null,"P5 - Spot payment"]
[null,null,"P6 - Payment in advance of delivery"]
[null,null,"P7 - Invoices with references to a despatch advice"]
[null,null,"P8 - Invoices with references to a despatch advice and a receiving advice"]
[null,null,"P9 - Credit notes or invoices with negative amounts, issued for a variety of reasons including the return of empty packaging"]
[null,null,"P10 - Corrective invoicing (cancellation/correction of an invoice)"]
[null,null,"P11 - Partial and final invoicing"]
[null,null,"P12 - Self billing"]
[]
[null,null,"U polju Referentni dokument, na padajućoj listi možete odabrati vrstu dokumenta na koji se odnosi faktura. Ako faktura koju želite da izdate nema referentni dokument, polje ostavite prazno."]
[null,null,"Takođe možete na svoj račun unijeti vrijednost troškova, na nivou cijelokupnog računa (ovo unesete u odeljak Podaci o računu), ili na nivou stavke."]
[null,null,"Ako se porez ne obračunava prema vašoj standardnoj poreskoj stopi (u slučaju obrnute poreske obaveze, oslobođenja od poreza, ...), u polje za dodatni porez unesite razlog za različiti obračun PDV-a. Za bolji izgled polje je ograničeno po dužini, ali cijli tekst će biti napisan na račun."]
[null,null,"Svaka stavka sadrži obavezne podatke: ime, količinu, jedinicu, cenu i stopu PDV-a."]
[null,null,"U polje Kod proizvoda dobavljača unesite svoj kod proizvoda. U polju Popust / Dodatak sa liste odaberite da li želite da date popust ili naplatite određeni artikal. U sledećem polju izaberite procenat popusta ili uvećanja, a zatim u sledeći unesite razlog. Ako želite dati popust ili premiju na artikl, sva tri polja su obavezna."]
[null,null,"U polju mjesta troška možete navesti troškovnu tačku za svaku stavku. Upotrijebite ovo kada stavke vašeg računa nemaju iste bodove. Ako postoji jedno troškovno mjesto za cijeli račun, unesite ga u odjeljak Podaci o računu."]
[null,null,"Račun može da sadrži samo jednu poresku kategoriju. Podržane poreske kategorije sa pripadajućim kodovima su: (Engleski:EU)"]
[null,null,"S – Standard rate (davčni stopnji 22% in 9,5%)"]
[null,null,"Z – Zero rated goods"]
[null,null,"E – Exempt from tax"]
[null,null,"AE – VAT Reverse Charge "]
[null,null,"K – VAT exempt for EEA intra-community supply of goods and services"]
[null,null,"G – Free export item, tax not charged"]
[null,null,"O – Services outside scope of tax"]
[]
[null,null,"Ako odaberete poresku stopu 0, morate ručno uneti poreski kod i ispuniti tekstualni okvir Dodatni porez."]
[null,null,"Da biste izdali fakturu na kojoj stavke imaju različite kodove poreskih kategorija, morate izdati više faktura i zakazati ih zajedno u skladu sa kodom poreske kategorije."]
[]
[null,null,"Alat izvozi PDF vizualizaciju na osnovu zemlje primaoca. Ako je primalac iz Slovenije, tekstovi će biti na slovenačkom, a za hrvatske kompanije tekstovi na hrvatskom, ... . Ispravan porezni rezime unosi se u PDF vizualizaciju kada kliknete dugme za kreiranje e-računa na listu Podaci o računu."]
[]
[null,null,"BizBox Excel eRačun nije zamišljen kao napredna aplikacija za e-fakturisanje i upravljanje, već jednostavan alat za pomoć onima kojima ne trebaju naprednija rešenja i automatizacija. Radi na verzijama Excel-a 2007 i novijih."]

{"sheet":"Podaci o računu","index":1,"n_rows":50,"n_cols":24,"rows_kept":50,"cut":false,"hidden":false,"merged":[[19,1,20,1],[19,2,20,2],[19,6,19,8],[20,6,20,8],[21,6,21,8],[24,16,25,16],[33,1,34,1],[33,2,34,2],[24,4,25,4],[24,5,25,5],[24,6,25,6],[24,7,25,7],[24,8,25,8],[24,9,25,9],[24,10,25,10],[24,11,25,11],[24,12,25,12],[24,13,25,13],[24,14,25,14],[24,15,25,15],[3,5,4,8],[3,1,4,1],[3,2,4,2],[22,6,22,8],[14,6,14,8],[15,6,15,8],[16,6,16,8],[17,6,17,8],[18,6,18,8],[6,6,6,8],[7,6,7,8],[10,6,10,8],[11,6,11,8],[13,6,13,8],[8,6,8,8],[9,6,9,8]]}
[]
[null,"bizBox Excel eRačun za eSLOG 2.0",null,null,null,null,null,null,null,null,null,null,null,null,null,null,null,null,null,null,"prikaz iz šifranta"]
[null,null,null,null,null,null,null,null,null,null,null,null,null,null,null,null,null,null,null,null,"izdajatelj",{"$f":"MATCH(C4,Izdavaoci!C3:E3,0)","v":1}]
[null,"Izdavaoci","ZZI doo Podgorica",null,null,"Podaci o računu",null,null,null,null,null,null,null,null,null,null,null,null,null,null,"plačnik",{"$f":"MATCH(C20,Kupci!P3:P1000,0)","v":2}]
[null,null,null,null,null,null,null,null,null,null,null,null,null,null,null,null,null,null,null,null,"prejemnik",{"$f":"MATCH(C34,Kupci!P3:P1000,0)","v":2}]
[null,"Naziv preduzeća",{"$f":"IF(INDEX(Izdavaoci!$C$3:$E$18,ROW(B2),$V$3)=0,\"\",INDEX(Izdavaoci!$C$3:$E$18,ROW(B2),$V$3))","v":"ZZI doo Podgorica"},null,null,"Vrsta računa","Račun","Poslovni proces","P1"]
[null,"Mjesto preduzeća",{"$f":"IF(INDEX(Izdavaoci!$C$3:$E$18,ROW(B3),$V$3)=0,\"\",INDEX(Izdavaoci!$C$3:$E$18,ROW(B3),$V$3))","v":"ul Moskovska 77"},null,null,"Broj računa"]
[null,"Poštanski broj",{"$f":"IF(INDEX(Izdavaoci!$C$3:$E$18,ROW(B4),$V$3)=0,\"\",INDEX(Izdavaoci!$C$3:$E$18,ROW(B4),$V$3))","v":81000},null,null,"Veza (referenca)"]
[null,"Grad",{"$f":"IF(INDEX(Izdavaoci!$C$3:$E$18,ROW(B5),$V$3)=0,\"\",INDEX(Izdavaoci!$C$3:$E$18,ROW(B5),$V$3))","v":"Podgorica"},null,null,"Valuta računa","EUR",null,null,null,null,null,null,null,null,"www.bizbox.eu"]
[null,"Država",{"$f":"IF(INDEX(Izdavaoci!$C$3:$E$18,ROW(B6),$V$3)=0,\"\",INDEX(Izdavaoci!$C$3:$E$18,ROW(B6),$V$3))","v":"ME"},null,null,"Datum izdavanja računa",null,null,null,null,null,"Autor ZZI d.o.o.",null,null,null,"www.zzi.me"]
[null,"Kontakt osoba",{"$f":"IF(INDEX(Izdavaoci!$C$3:$E$18,ROW(B7),$V$3)=0,\"\",INDEX(Izdavaoci!$C$3:$E$18,ROW(B7),$V$3))","v":"Jelena Milojković"},null,null,"Datum valute"]
[null,"E-pošta",{"$f":"IF(INDEX(Izdavaoci!$C$3:$E$18,ROW(B8),$V$3)=0,\"\",INDEX(Izdavaoci!$C$3:$E$18,ROW(B8),$V$3))","v":"info@zzi.co.me"},null,null,"Datum izvršenja usluge"]
[null,"Telefon",{"$f":"IF(INDEX(Izdavaoci!$C$3:$E$18,ROW(B9),$V$3)=0,\"\",INDEX(Izdavaoci!$C$3:$E$18,ROW(B9),$V$3))","v":38220229560},null,null,"Vrijeme usluge OD",null,"DO",null,null,"bizBox Excel eRačun je besplatan alat za izradu eRačuna u formatu e-Slog 2.0 "]
[null,"Matični broj",{"$f":"IF(INDEX(Izdavaoci!$C$3:$E$18,ROW(B10),$V$3)=0,\"\",INDEX(Izdavaoci!$C$3:$E$18,ROW(B10),$V$3))","v":"02328097"},null,null,"Referentni dokument",null,null,null,null,"sa vizualizacijom u PDF-u"]
[null,"Poreski broj",{"$f":"IF(INDEX(Izdavaoci!$C$3:$E$18,ROW(B11),$V$3)=0,\"\",INDEX(Izdavaoci!$C$3:$E$18,ROW(B11),$V$3))","v":"02328097"},null,null,"Broj referentnog dokumenta",null,null,null,null,"Detaljna uputstva za korišćenje alata pogledajte na listu UPUTSTVO."]
[null,"Obveznik za PDV",{"$f":"IF(INDEX(Izdavaoci!$C$3:$E$18,ROW(B12),$V$3)=0,\"\",INDEX(Izdavaoci!$C$3:$E$18,ROW(B12),$V$3))","v":"DA"},null,null,"Način plaćanja","Drugo - ne postoji opcija plaćanja",null,null,null,"Upozorenje: Da biste koristili alat, prilikom pokretanja morate uključiti makro naredbe u dokumentu"]
[null,"IBAN",{"$f":"IF(INDEX(Izdavaoci!$C$3:$E$18,ROW(B13),$V$3)=0,\"\",INDEX(Izdavaoci!$C$3:$E$18,ROW(B13),$V$3))","v":""},null,null,"Kod namjene","OTHR",null,null,null,"Makroe omogućite klikom na dugme \"Enable content\", koje se pojavi prilikm startovanja excel-a."]
[null,"BIC",{"$f":"IF(INDEX(Izdavaoci!$C$3:$E$18,ROW(B14),$V$3)=0,\"\",INDEX(Izdavaoci!$C$3:$E$18,ROW(B14),$V$3))","v":""},null,null,"Broj predhodnog računa"]
[null,null,null,null,null,"Datum izdavanja predhodnog računa"]
[null,"Kupac","2 - ZZI doo Podgorica - Vladimir Ćetković",null,null,"Mjesto troška"]
[null,null,null,null,null,"Početno obavještenje iznad stavki"]
[null,"Naziv preduzeća",{"$f":"IF(INDEX(Kupci!$C$3:$M$1000,$V$4,ROW(B1))=0,\"\",INDEX(Kupci!$C$3:$M$1000,$V$4,ROW(B1)))","v":"ZZI doo Podgorica"},null,null,"Dodatni komentar o načinu plaćanja"]
[null,"Kontakt osoba",{"$f":"IF(INDEX(Kupci!$C$3:$M$1000,$V$4,ROW(B2))=0,\"\",INDEX(Kupci!$C$3:$M$1000,$V$4,ROW(B2)))","v":"Vladimir Ćetković"},null,null,"Dodatno poresko obavještenje"]
[null,"Adresa preduzeća",{"$f":"IF(INDEX(Kupci!$C$3:$M$1000,$V$4,ROW(B3))=0,\"\",INDEX(Kupci!$C$3:$M$1000,$V$4,ROW(B3)))","v":"ul. Moskovska 77"}]
[null,"Poštanski broj",{"$f":"IF(INDEX(Kupci!$C$3:$M$1000,$V$4,ROW(B4))=0,\"\",INDEX(Kupci!$C$3:$M$1000,$V$4,ROW(B4)))","v":81000},null,"#","Naziv","Dobavljač.\nšifra stavke","Količina","Jed.Mjere","Cijena","Popust / \nDodatak","Pop. / \nDod. %","Razlog Pop. / Dod.","Mjesto troška","PDV %","Iznos","Iznos sa PDV"]
[null,"Grad",{"$f":"IF(INDEX(Kupci!$C$3:$M$1000,$V$4,ROW(B5))=0,\"\",INDEX(Kupci!$C$3:$M$1000,$V$4,ROW(B5)))","v":"Podgorica"},null,null,null,null,null,null,null,null,null,null,null,null,null,null,null,null,"popust","pribitek","vred. brez p/p","osn. DDV","znes. DDV"]
[null,"Država",{"$f":"IF(INDEX(Kupci!$C$3:$M$1000,$V$4,ROW(B6))=0,\"\",INDEX(Kupci!$C$3:$M$1000,$V$4,ROW(B6)))","v":"ME"},null,null,null,null,null,null,null,null,null,null,null,0,{"$f":"IF(H27=\"\",\"\",IF(I27=\"%\",IF(K27=\"Popust\",ROUND(H27/100*J27*(1-L27/100),5),IF(K27=\"Pribitek\",ROUND(H27/100*J27*(1+L27/100),5),H27/100*J27)),IF(K27=\"Popust\",ROUND(H27*J27*(1-L27/100),5),IF(K27=\"Pribitek\",ROUND(H27*J27*(1+L27/100),5),H27*J27))))","v":""},{"$f":"IF(P27=\"\",\"\",ROUND(P27*(1+VLOOKUP(O27,Šifranti!$AG$3:$AH$10,2,FALSE)/100),5))","v":""},null,{"$f":"IF(ISNA(VLOOKUP(F27,Artikli!$C$4:$H$1005,6,FALSE)),0,VLOOKUP(F27,Artikli!$C$4:$H$1005,6,FALSE))","v":0},{"$f":"IF(K27=\"Popust\",ROUND(V27*(L27/100), 2), 0)","v":0},{"$f":"IF(K27=\"Pribitek\",ROUND(V27*(L27/100),2),0)","v":0},{"$f":"IF(I27=\"%\",H27/100*J27,H27*J27)","v":0},{"$f":"V27-T27+U27","v":0},{"$f":"W27*IF(O27=\"9,5\",0.095,IF(ISNUMBER(O27),O27/100,0))","v":0}]
[null,"Matični broj",{"$f":"IF(INDEX(Kupci!$C$3:$M$1000,$V$4,ROW(B7))=0,\"\",INDEX(Kupci!$C$3:$M$1000,$V$4,ROW(B7)))","v":"02328097"},null,null,null,null,null,null,null,null,null,null,null,null,"",{"$f":"IF(P28=\"\",\"\",ROUND(P28*(1+VLOOKUP(O28,Šifranti!$AG$3:$AH$10,2,FALSE)/100),5))","v":""},null,{"$f":"IF(ISNA(VLOOKUP(F28,Artikli!$C$4:$H$1005,6,FALSE)),0,VLOOKUP(F28,Artikli!$C$4:$H$1005,6,FALSE))","v":0},0,0,0,{"$f":"V28-T28+U28","v":0},0]
[null,"Poreski broj",{"$f":"IF(INDEX(Kupci!$C$3:$M$1000,$V$4,ROW(B8))=0,\"\",INDEX(Kupci!$C$3:$M$1000,$V$4,ROW(B8)))","v":"02328097"},null,null,null,null,null,null,null,null,null,null,null,null,"",{"$f":"IF(P29=\"\",\"\",ROUND(P29*(1+VLOOKUP(O29,Šifranti!$AG$3:$AH$10,2,FALSE)/100),5))","v":""},null,{"$f":"IF(ISNA(VLOOKUP(F29,Artikli!$C$4:$H$1005,6,FALSE)),0,VLOOKUP(F29,Artikli!$C$4:$H$1005,6,FALSE))","v":0},0,0,0,0,0]
[null,"Obveznik za PDV",{"$f":"IF(INDEX(Kupci!$C$3:$M$1000,$V$4,ROW(B9))=0,\"\",INDEX(Kupci!$C$3:$M$1000,$V$4,ROW(B9)))","v":"DA"},null,null,null,null,null,null,null,null,null,null,null,null,"",{"$f":"IF(P30=\"\",\"\",ROUND(P30*(1+VLOOKUP(O30,Šifranti!$AG$3:$AH$10,2,FALSE)/100),5))","v":""},null,{"$f":"IF(ISNA(VLOOKUP(F30,Artikli!$C$4:$H$1005,6,FALSE)),0,VLOOKUP(F30,Artikli!$C$4:$H$1005,6,FALSE))","v":0},0,0,0,0,0]
[null,"IBAN",{"$f":"IF(INDEX(Kupci!$C$3:$M$1000,$V$4,ROW(B10))=0,\"\",INDEX(Kupci!$C$3:$M$1000,$V$4,ROW(B10)))","v":""},null,null,null,null,null,null,null,null,null,null,null,null,"",{"$f":"IF(P31=\"\",\"\",ROUND(P31*(1+VLOOKUP(O31,Šifranti!$AG$3:$AH$10,2,FALSE)/100),5))","v":""},null,{"$f":"IF(ISNA(VLOOKUP(F31,Artikli!$C$4:$H$1005,6,FALSE)),0,VLOOKUP(F31,Artikli!$C$4:$H$1005,6,FALSE))","v":0},0,0,0,0,0]
[null,"BIC",{"$f":"IF(INDEX(Kupci!$C$3:$M$1000,$V$4,ROW(B11))=0,\"\",INDEX(Kupci!$C$3:$M$1000,$V$4,ROW(B11)))","v":""},null,null,null,null,null,null,null,null,null,null,null,null,"",{"$f":"IF(P32=\"\",\"\",ROUND(P32*(1+VLOOKUP(O32,Šifranti!$AG$3:$AH$10,2,FALSE)/100),5))","v":""},null,{"$f":"IF(ISNA(VLOOKUP(F32,Artikli!$C$4:$H$1005,6,FALSE)),0,VLOOKUP(F32,Artikli!$C$4:$H$1005,6,FALSE))","v":0},0,0,0,0,0]
[null,null,null,null,null,null,null,null,null,null,null,null,null,null,null,"",{"$f":"IF(P33=\"\",\"\",ROUND(P33*(1+VLOOKUP(O33,Šifranti!$AG$3:$AH$10,2,FALSE)/100),5))","v":""},null,{"$f":"IF(ISNA(VLOOKUP(F33,Artikli!$C$4:$H$1005,6,FALSE)),0,VLOOKUP(F33,Artikli!$C$4:$H$1005,6,FALSE))","v":0},0,0,0,0,0]
[null,"Primalac robe","2 - ZZI doo Podgorica - Vladimir Ćetković",null,null,null,null,null,null,null,null,null,null,null,null,"",{"$f":"IF(P34=\"\",\"\",ROUND(P34*(1+VLOOKUP(O34,Šifranti!$AG$3:$AH$10,2,FALSE)/100),5))","v":""},null,{"$f":"IF(ISNA(VLOOKUP(F34,Artikli!$C$4:$H$1005,6,FALSE)),0,VLOOKUP(F34,Artikli!$C$4:$H$1005,6,FALSE))","v":0},0,0,0,0,0]
[null,null,null,null,null,null,null,null,null,null,null,null,null,null,null,"",{"$f":"IF(P35=\"\",\"\",ROUND(P35*(1+VLOOKUP(O35,Šifranti!$AG$3:$AH$10,2,FALSE)/100),5))","v":""},null,{"$f":"IF(ISNA(VLOOKUP(F35,Artikli!$C$4:$H$1005,6,FALSE)),0,VLOOKUP(F35,Artikli!$C$4:$H$1005,6,FALSE))","v":0},0,0,0,0,0]
[null,"Naziv preduzeća",{"$f":"IF(INDEX(Kupci!$C$3:$M$1000,$V$5,ROW(B1))=0,\"\",INDEX(Kupci!$C$3:$M$1000,$V$5,ROW(B1)))","v":"ZZI doo Podgorica"},null,null,null,null,null,null,null,null,null,null,null,null,"",{"$f":"IF(P36=\"\",\"\",ROUND(P36*(1+VLOOKUP(O36,Šifranti!$AG$3:$AH$10,2,FALSE)/100),5))","v":""},null,{"$f":"IF(ISNA(VLOOKUP(F36,Artikli!$C$4:$H$1005,6,FALSE)),0,VLOOKUP(F36,Artikli!$C$4:$H$1005,6,FALSE))","v":0},0,0,0,0,0]
[null,"Kontakt osoba",{"$f":"IF(INDEX(Kupci!$C$3:$M$1000,$V$5,ROW(B2))=0,\"\",INDEX(Kupci!$C$3:$M$1000,$V$5,ROW(B2)))","v":"Vladimir Ćetković"},null,null,null,null,null,null,null,null,null,null,null,null,"",{"$f":"IF(P37=\"\",\"\",ROUND(P37*(1+VLOOKUP(O37,Šifranti!$AG$3:$AH$10,2,FALSE)/100),5))","v":""},null,{"$f":"IF(ISNA(VLOOKUP(F37,Artikli!$C$4:$H$1005,6,FALSE)),0,VLOOKUP(F37,Artikli!$C$4:$H$1005,6,FALSE))","v":0},0,0,0,0,0]
[null,"Adresa preduzeća",{"$f":"IF(INDEX(Kupci!$C$3:$M$1000,$V$5,ROW(B3))=0,\"\",INDEX(Kupci!$C$3:$M$1000,$V$5,ROW(B3)))","v":"ul. Moskovska 77"},null,null,null,null,null,null,null,null,null,null,null,null,"",{"$f":"IF(P38=\"\",\"\",ROUND(P38*(1+VLOOKUP(O38,Šifranti!$AG$3:$AH$10,2,FALSE)/100),5))","v":""},null,{"$f":"IF(ISNA(VLOOKUP(F38,Artikli!$C$4:$H$1005,6,FALSE)),0,VLOOKUP(F38,Artikli!$C$4:$H$1005,6,FALSE))","v":0},0,0,0,0,0]
[null,"Poštanski broj",{"$f":"IF(INDEX(Kupci!$C$3:$M$1000,$V$5,ROW(B4))=0,\"\",INDEX(Kupci!$C$3:$M$1000,$V$5,ROW(B4)))","v":81000},null,null,null,null,null,null,null,null,null,null,null,null,"",{"$f":"IF(P39=\"\",\"\",ROUND(P39*(1+VLOOKUP(O39,Šifranti!$AG$3:$AH$10,2,FALSE)/100),5))","v":""},null,{"$f":"IF(ISNA(VLOOKUP(F39,Artikli!$C$4:$H$1005,6,FALSE)),0,VLOOKUP(F39,Artikli!$C$4:$H$1005,6,FALSE))","v":0},0,0,0,0,0]
[null,"Grad",{"$f":"IF(INDEX(Kupci!$C$3:$M$1000,$V$5,ROW(B5))=0,\"\",INDEX(Kupci!$C$3:$M$1000,$V$5,ROW(B5)))","v":"Podgorica"},null,null,null,null,null,null,null,null,null,null,null,null,"",{"$f":"IF(P40=\"\",\"\",ROUND(P40*(1+VLOOKUP(O40,Šifranti!$AG$3:$AH$10,2,FALSE)/100),5))","v":""},null,{"$f":"IF(ISNA(VLOOKUP(F40,Artikli!$C$4:$H$1005,6,FALSE)),0,VLOOKUP(F40,Artikli!$C$4:$H$1005,6,FALSE))","v":0},0,0,0,0,0]
[null,"Država",{"$f":"IF(INDEX(Kupci!$C$3:$M$1000,$V$5,ROW(B6))=0,\"\",INDEX(Kupci!$C$3:$M$1000,$V$5,ROW(B6)))","v":"ME"},null,null,null,null,null,null,null,null,null,null,null,null,"",{"$f":"IF(P41=\"\",\"\",ROUND(P41*(1+VLOOKUP(O41,Šifranti!$AG$3:$AH$10,2,FALSE)/100),5))","v":""},null,{"$f":"IF(ISNA(VLOOKUP(F41,Artikli!$C$4:$H$1005,6,FALSE)),0,VLOOKUP(F41,Artikli!$C$4:$H$1005,6,FALSE))","v":0},0,0,0,0,0]
[null,null,null,null,null,null,null,null,null,null,null,null,null,null,null,"",{"$f":"IF(P42=\"\",\"\",ROUND(P42*(1+VLOOKUP(O42,Šifranti!$AG$3:$AH$10,2,FALSE)/100),5))","v":""},null,{"$f":"IF(ISNA(VLOOKUP(F42,Artikli!$C$4:$H$1005,6,FALSE)),0,VLOOKUP(F42,Artikli!$C$4:$H$1005,6,FALSE))","v":0},0,0,0,0,0]
[null,"Račun izdao/-a","Vladimir Ćetković",null,null,null,null,null,null,null,null,null,null,null,null,"",{"$f":"IF(P43=\"\",\"\",ROUND(P43*(1+VLOOKUP(O43,Šifranti!$AG$3:$AH$10,2,FALSE)/100),5))","v":""},null,{"$f":"IF(ISNA(VLOOKUP(F43,Artikli!$C$4:$H$1005,6,FALSE)),0,VLOOKUP(F43,Artikli!$C$4:$H$1005,6,FALSE))","v":0},0,0,0,0,0]
[null,"Kod kategorije PDV","E",null,null,null,null,null,null,null,null,null,null,null,null,"",{"$f":"IF(P44=\"\",\"\",ROUND(P44*(1+VLOOKUP(O44,Šifranti!$AG$3:$AH$10,2,FALSE)/100),5))","v":""},null,{"$f":"IF(ISNA(VLOOKUP(F44,Artikli!$C$4:$H$1005,6,FALSE)),0,VLOOKUP(F44,Artikli!$C$4:$H$1005,6,FALSE))","v":0},0,0,0,0,0]
[null,null,null,null,null,null,null,null,null,null,null,null,null,null,null,"",{"$f":"IF(P45=\"\",\"\",ROUND(P45*(1+VLOOKUP(O45,Šifranti!$AG$3:$AH$10,2,FALSE)/100),5))","v":""},null,{"$f":"IF(ISNA(VLOOKUP(F45,Artikli!$C$4:$H$1005,6,FALSE)),0,VLOOKUP(F45,Artikli!$C$4:$H$1005,6,FALSE))","v":0},0,0,0,0,0]
[null,"verzija 2.12mn",null,null,null,null,null,null,null,null,null,null,null,null,null,"",{"$f":"IF(P46=\"\",\"\",ROUND(P46*(1+VLOOKUP(O46,Šifranti!$AG$3:$AH$10,2,FALSE)/100),5))","v":""},null,{"$f":"IF(ISNA(VLOOKUP(F46,Artikli!$C$4:$H$1005,6,FALSE)),0,VLOOKUP(F46,Artikli!$C$4:$H$1005,6,FALSE))","v":0},0,0,0,0,0]
[]
[]
[]
[null,null,null,null,null,"HR"]

{"sheet":"Račun ME","index":2,"n_rows":56,"n_cols":15,"rows_kept":56,"cut":false,"hidden":false,"merged":[[39,11,39,12],[44,11,44,12],[43,11,43,12],[42,11,42,12],[41,11,41,12],[40,11,40,12],[34,1,34,3],[35,1,35,3],[36,1,36,3],[37,1,37,3],[29,1,29,3],[30,1,30,3],[31,1,31,3],[32,1,32,3],[33,1,33,3],[15,1,15,12],[17,1,17,3],[50,1,51,12],[52,1,53,12],[54,1,54,12],[18,1,18,3],[19,1,19,3],[20,1,20,3],[21,1,21,3],[22,1,22,3],[23,1,23,3],[24,1,24,3],[25,1,25,3],[26,1,26,3],[27,1,27,3],[28,1,28,3]]}
[null,{"$f":"'Podaci o računu'!C6&\", \"&'Podaci o računu'!C7&\", \"&'Podaci o računu'!C8&\" \"&'Podaci o računu'!C9&\", \"&'Podaci o računu'!C10","v":"ZZI doo Podgorica, ul Moskovska 77, 81000 Podgorica, ME"}]
[null,{"$f":"IF('Podaci o računu'!C11<>\"\",\"\"&'Podaci o računu'!C11&\", E: \"&'Podaci o računu'!C12&\", T: \"&'Podaci o računu'!C13,\"\"&\"E: \"&'Podaci o računu'!C12&\", T: \"&'Podaci o računu'!C13)","v":"Jelena Milojković, E: info@zzi.co.me, T: 38220229560"}]
[null,{"$f":"IF('Podaci o računu'!C16=\"DA\",\"PDV ID: \"&'Podaci o računu'!C10&'Podaci o računu'!C15,\"Poreski Broj: \"&'Podaci o računu'!C15)","v":"PDV ID: ME02328097"}]
[null,{"$f":"\"IBAN: \"&'Podaci o računu'!C17&\", BIC: \"&'Podaci o računu'!C18","v":"IBAN: , BIC: "}]
[]
[null,"KUPAC",null,null,null,"PRIMALAC",null,null,null,{"$f":"'Podaci o računu'!G6&\" br. \"&'Podaci o računu'!G7","v":"Račun br. "}]
[null,{"$f":"'Podaci o računu'!C22","v":"ZZI doo Podgorica"},null,null,null,{"$f":"'Podaci o računu'!C36","v":"ZZI doo Podgorica"},null,null,null,"Datum izdavanja",null,null,{"$f":"TEXT('Podaci o računu'!G10,\"dd.mm.yyyy\")","v":"00.01.1900"}]
[null,{"$f":"'Podaci o računu'!C23","v":"Vladimir Ćetković"},null,null,null,{"$f":"'Podaci o računu'!C37","v":"Vladimir Ćetković"},null,null,null,"Datum usluge/isporuke robe",null,null,{"$f":"IF('Podaci o računu'!G12=\"\",\"-\",\"\"&TEXT('Podaci o računu'!G12,\"dd.mm.yyyy\"))","v":"-"}]
[null,{"$f":"'Podaci o računu'!C24","v":"ul. Moskovska 77"},null,null,null,{"$f":"'Podaci o računu'!C38","v":"ul. Moskovska 77"},null,null,null,"Razdoblje usluge",null,null,{"$f":"IF(OR('Podaci o računu'!G13=\"\",'Podaci o računu'!I13=\"\"),\"-\",\"\"&TEXT('Podaci o računu'!G13,\"dd.mm.yyyy\")&\" do \"&TEXT('Podaci o računu'!I13,\"dd.mm.yyyy\"))","v":"-"}]
[null,{"$f":"'Podaci o računu'!C25&\" \"&'Podaci o računu'!C26","v":"81000 Podgorica"},null,null,null,{"$f":"'Podaci o računu'!C39&\" \"&'Podaci o računu'!C40","v":"81000 Podgorica"},null,null,null,"Datum dospijeća",null,null,{"$f":"TEXT('Podaci o računu'!G11,\"dd.mm.yyyy\")","v":"00.01.1900"}]
[null,{"$f":"'Podaci o računu'!C27","v":"ME"},null,null,null,{"$f":"'Podaci o računu'!C41","v":"ME"},null,null,null,"Referentni dokument",null,null,{"$f":"'Podaci o računu'!G14&\" \"&'Podaci o računu'!G15","v":" "}]
[null,{"$f":"IF('Podaci o računu'!C30=\"DA\",\"PDV ID: \"&'Podaci o računu'!C27&'Podaci o računu'!C29,\"Poreski broj: \"&'Podaci o računu'!C29)","v":"PDV ID: ME02328097"},null,null,null,null,null,null,null,"Poziv na broj",null,null,{"$f":"IF('Podaci o računu'!G8=\"\",\"\",'Podaci o računu'!G8)","v":""}]
[null,{"$f":"'Podaci o računu'!C31&IF(AND('Podaci o računu'!C31<>\"\",'Podaci o računu'!C32<>\"\"),\", \",\"\")&'Podaci o računu'!C32","v":""},null,null,null,null,null,null,null,"Šifra namjene",null,null,{"$f":"'Podaci o računu'!G17","v":"OTHR"}]
[null,null,null,null,null,null,null,null,null,"Mjesto troška",null,null,{"$f":"IF('Podaci o računu'!G20=\"\",\"\",'Podaci o računu'!G20)","v":""}]
[]
[null,{"$f":"IF('Podaci o računu'!G21=\"\",\"\",'Podaci o računu'!G21)","v":""}]
[]
[null,"Naziv",null,null,"Količina","Jed.Mjere","Cijena","Popust/\nDodatak","Razlog","Mjesto Troška","PDV %","Iznos","Iznos sa PDV-om"]
[null,{"$f":"IF('Podaci o računu'!F27=\"\",\"\",'Podaci o računu'!F27)","v":""},null,null,{"$f":"IF('Podaci o računu'!H27=\"\",\"\",'Podaci o računu'!H27)","v":""},{"$f":"IF('Podaci o računu'!I27=\"\",\"\",'Podaci o računu'!I27)","v":""},{"$f":"IF('Podaci o računu'!J27=\"\",\"\",'Podaci o računu'!J27)","v":""},{"$f":"IF('Podaci o računu'!K27=\"Popust\",\"Popust \"&'Podaci o računu'!L27&\"%\",IF('Podaci o računu'!K27=\"Pribitek\",\"Pribitek \"&'Podaci o računu'!L27&\"%\",\"\"))","v":""},{"$f":"IF('Podaci o računu'!M27=\"\",\"\",'Podaci o računu'!M27)","v":""},{"$f":"IF('Podaci o računu'!N27=\"\",\"\",'Podaci o računu'!N27)","v":""},{"$f":"IF('Podaci o računu'!O27=\"\",\"\",'Podaci o računu'!O27)","v":0},{"$f":"IF('Podaci o računu'!P27=\"\",\"\",'Podaci o računu'!P27)","v":""},{"$f":"IF('Podaci o računu'!Q27=\"\",\"\",'Podaci o računu'!Q27)","v":""}]
[null,{"$f":"IF('Podaci o računu'!F28=\"\",\"\",'Podaci o računu'!F28)","v":""},null,null,{"$f":"IF('Podaci o računu'!H28=\"\",\"\",'Podaci o računu'!H28)","v":""},{"$f":"IF('Podaci o računu'!I28=\"\",\"\",'Podaci o računu'!I28)","v":""},{"$f":"IF('Podaci o računu'!J28=\"\",\"\",'Podaci o računu'!J28)","v":""},{"$f":"IF('Podaci o računu'!K28=\"Popust\",\"Popust \"&'Podaci o računu'!L28&\"%\",IF('Podaci o računu'!K28=\"Pribitek\",\"Pribitek \"&'Podaci o računu'!L28&\"%\",\"\"))","v":""},{"$f":"IF('Podaci o računu'!M28=\"\",\"\",'Podaci o računu'!M28)","v":""},{"$f":"IF('Podaci o računu'!N28=\"\",\"\",'Podaci o računu'!N28)","v":""},{"$f":"IF('Podaci o računu'!O28=\"\",\"\",'Podaci o računu'!O28)","v":""},{"$f":"IF('Podaci o računu'!P28=\"\",\"\",'Podaci o računu'!P28)","v":""},{"$f":"IF('Podaci o računu'!Q28=\"\",\"\",'Podaci o računu'!Q28)","v":""}]
[null,{"$f":"IF('Podaci o računu'!F29=\"\",\"\",'Podaci o računu'!F29)","v":""},null,null,{"$f":"IF('Podaci o računu'!H29=\"\",\"\",'Podaci o računu'!H29)","v":""},{"$f":"IF('Podaci o računu'!I29=\"\",\"\",'Podaci o računu'!I29)","v":""},{"$f":"IF('Podaci o računu'!J29=\"\",\"\",'Podaci o računu'!J29)","v":""},{"$f":"IF('Podaci o računu'!K29=\"Popust\",\"Popust \"&'Podaci o računu'!L29&\"%\",IF('Podaci o računu'!K29=\"Pribitek\",\"Pribitek \"&'Podaci o računu'!L29&\"%\",\"\"))","v":""},{"$f":"IF('Podaci o računu'!M29=\"\",\"\",'Podaci o računu'!M29)","v":""},{"$f":"IF('Podaci o računu'!N29=\"\",\"\",'Podaci o računu'!N29)","v":""},{"$f":"IF('Podaci o računu'!O29=\"\",\"\",'Podaci o računu'!O29)","v":""},{"$f":"IF('Podaci o računu'!P29=\"\",\"\",'Podaci o računu'!P29)","v":""},{"$f":"IF('Podaci o računu'!Q29=\"\",\"\",'Podaci o računu'!Q29)","v":""}]
[null,{"$f":"IF('Podaci o računu'!F30=\"\",\"\",'Podaci o računu'!F30)","v":""},null,null,{"$f":"IF('Podaci o računu'!H30=\"\",\"\",'Podaci o računu'!H30)","v":""},{"$f":"IF('Podaci o računu'!I30=\"\",\"\",'Podaci o računu'!I30)","v":""},{"$f":"IF('Podaci o računu'!J30=\"\",\"\",'Podaci o računu'!J30)","v":""},{"$f":"IF('Podaci o računu'!K30=\"Popust\",\"Popust \"&'Podaci o računu'!L30&\"%\",IF('Podaci o računu'!K30=\"Pribitek\",\"Pribitek \"&'Podaci o računu'!L30&\"%\",\"\"))","v":""},{"$f":"IF('Podaci o računu'!M30=\"\",\"\",'Podaci o računu'!M30)","v":""},{"$f":"IF('Podaci o računu'!N30=\"\",\"\",'Podaci o računu'!N30)","v":""},{"$f":"IF('Podaci o računu'!O30=\"\",\"\",'Podaci o računu'!O30)","v":""},{"$f":"IF('Podaci o računu'!P30=\"\",\"\",'Podaci o računu'!P30)","v":""},{"$f":"IF('Podaci o računu'!Q30=\"\",\"\",'Podaci o računu'!Q30)","v":""}]
[null,{"$f":"IF('Podaci o računu'!F31=\"\",\"\",'Podaci o računu'!F31)","v":""},null,null,{"$f":"IF('Podaci o računu'!H31=\"\",\"\",'Podaci o računu'!H31)","v":""},{"$f":"IF('Podaci o računu'!I31=\"\",\"\",'Podaci o računu'!I31)","v":""},{"$f":"IF('Podaci o računu'!J31=\"\",\"\",'Podaci o računu'!J31)","v":""},{"$f":"IF('Podaci o računu'!K31=\"Popust\",\"Popust \"&'Podaci o računu'!L31&\"%\",IF('Podaci o računu'!K31=\"Pribitek\",\"Pribitek \"&'Podaci o računu'!L31&\"%\",\"\"))","v":""},{"$f":"IF('Podaci o računu'!M31=\"\",\"\",'Podaci o računu'!M31)","v":""},{"$f":"IF('Podaci o računu'!N31=\"\",\"\",'Podaci o računu'!N31)","v":""},{"$f":"IF('Podaci o računu'!O31=\"\",\"\",'Podaci o računu'!O31)","v":""},{"$f":"IF('Podaci o računu'!P31=\"\",\"\",'Podaci o računu'!P31)","v":""},{"$f":"IF('Podaci o računu'!Q31=\"\",\"\",'Podaci o računu'!Q31)","v":""}]
[null,{"$f":"IF('Podaci o računu'!F32=\"\",\"\",'Podaci o računu'!F32)","v":""},null,null,{"$f":"IF('Podaci o računu'!H32=\"\",\"\",'Podaci o računu'!H32)","v":""},{"$f":"IF('Podaci o računu'!I32=\"\",\"\",'Podaci o računu'!I32)","v":""},{"$f":"IF('Podaci o računu'!J32=\"\",\"\",'Podaci o računu'!J32)","v":""},{"$f":"IF('Podaci o računu'!K32=\"Popust\",\"Popust \"&'Podaci o računu'!L32&\"%\",IF('Podaci o računu'!K32=\"Pribitek\",\"Pribitek \"&'Podaci o računu'!L32&\"%\",\"\"))","v":""},{"$f":"IF('Podaci o računu'!M32=\"\",\"\",'Podaci o računu'!M32)","v":""},{"$f":"IF('Podaci o računu'!N32=\"\",\"\",'Podaci o računu'!N32)","v":""},{"$f":"IF('Podaci o računu'!O32=\"\",\"\",'Podaci o računu'!O32)","v":""},{"$f":"IF('Podaci o računu'!P32=\"\",\"\",'Podaci o računu'!P32)","v":""},{"$f":"IF('Podaci o računu'!Q32=\"\",\"\",'Podaci o računu'!Q32)","v":""}]
[null,{"$f":"IF('Podaci o računu'!F33=\"\",\"\",'Podaci o računu'!F33)","v":""},null,null,{"$f":"IF('Podaci o računu'!H33=\"\",\"\",'Podaci o računu'!H33)","v":""},{"$f":"IF('Podaci o računu'!I33=\"\",\"\",'Podaci o računu'!I33)","v":""},{"$f":"IF('Podaci o računu'!J33=\"\",\"\",'Podaci o računu'!J33)","v":""},{"$f":"IF('Podaci o računu'!K33=\"Popust\",\"Popust \"&'Podaci o računu'!L33&\"%\",IF('Podaci o računu'!K33=\"Pribitek\",\"Pribitek \"&'Podaci o računu'!L33&\"%\",\"\"))","v":""},{"$f":"IF('Podaci o računu'!M33=\"\",\"\",'Podaci o računu'!M33)","v":""},{"$f":"IF('Podaci o računu'!N33=\"\",\"\",'Podaci o računu'!N33)","v":""},{"$f":"IF('Podaci o računu'!O33=\"\",\"\",'Podaci o računu'!O33)","v":""},{"$f":"IF('Podaci o računu'!P33=\"\",\"\",'Podaci o računu'!P33)","v":""},{"$f":"IF('Podaci o računu'!Q33=\"\",\"\",'Podaci o računu'!Q33)","v":""}]
[null,{"$f":"IF('Podaci o računu'!F34=\"\",\"\",'Podaci o računu'!F34)","v":""},null,null,{"$f":"IF('Podaci o računu'!H34=\"\",\"\",'Podaci o računu'!H34)","v":""},{"$f":"IF('Podaci o računu'!I34=\"\",\"\",'Podaci o računu'!I34)","v":""},{"$f":"IF('Podaci o računu'!J34=\"\",\"\",'Podaci o računu'!J34)","v":""},{"$f":"IF('Podaci o računu'!K34=\"Popust\",\"Popust \"&'Podaci o računu'!L34&\"%\",IF('Podaci o računu'!K34=\"Pribitek\",\"Pribitek \"&'Podaci o računu'!L34&\"%\",\"\"))","v":""},{"$f":"IF('Podaci o računu'!M34=\"\",\"\",'Podaci o računu'!M34)","v":""},{"$f":"IF('Podaci o računu'!N34=\"\",\"\",'Podaci o računu'!N34)","v":""},{"$f":"IF('Podaci o računu'!O34=\"\",\"\",'Podaci o računu'!O34)","v":""},{"$f":"IF('Podaci o računu'!P34=\"\",\"\",'Podaci o računu'!P34)","v":""},{"$f":"IF('Podaci o računu'!Q34=\"\",\"\",'Podaci o računu'!Q34)","v":""}]
[null,{"$f":"IF('Podaci o računu'!F35=\"\",\"\",'Podaci o računu'!F35)","v":""},null,null,{"$f":"IF('Podaci o računu'!H35=\"\",\"\",'Podaci o računu'!H35)","v":""},{"$f":"IF('Podaci o računu'!I35=\"\",\"\",'Podaci o računu'!I35)","v":""},{"$f":"IF('Podaci o računu'!J35=\"\",\"\",'Podaci o računu'!J35)","v":""},{"$f":"IF('Podaci o računu'!K35=\"Popust\",\"Popust \"&'Podaci o računu'!L35&\"%\",IF('Podaci o računu'!K35=\"Pribitek\",\"Pribitek \"&'Podaci o računu'!L35&\"%\",\"\"))","v":""},{"$f":"IF('Podaci o računu'!M35=\"\",\"\",'Podaci o računu'!M35)","v":""},{"$f":"IF('Podaci o računu'!N35=\"\",\"\",'Podaci o računu'!N35)","v":""},{"$f":"IF('Podaci o računu'!O35=\"\",\"\",'Podaci o računu'!O35)","v":""},{"$f":"IF('Podaci o računu'!P35=\"\",\"\",'Podaci o računu'!P35)","v":""},{"$f":"IF('Podaci o računu'!Q35=\"\",\"\",'Podaci o računu'!Q35)","v":""}]
[null,{"$f":"IF('Podaci o računu'!F36=\"\",\"\",'Podaci o računu'!F36)","v":""},null,null,{"$f":"IF('Podaci o računu'!H36=\"\",\"\",'Podaci o računu'!H36)","v":""},{"$f":"IF('Podaci o računu'!I36=\"\",\"\",'Podaci o računu'!I36)","v":""},{"$f":"IF('Podaci o računu'!J36=\"\",\"\",'Podaci o računu'!J36)","v":""},{"$f":"IF('Podaci o računu'!K36=\"Popust\",\"Popust \"&'Podaci o računu'!L36&\"%\",IF('Podaci o računu'!K36=\"Pribitek\",\"Pribitek \"&'Podaci o računu'!L36&\"%\",\"\"))","v":""},{"$f":"IF('Podaci o računu'!M36=\"\",\"\",'Podaci o računu'!M36)","v":""},{"$f":"IF('Podaci o računu'!N36=\"\",\"\",'Podaci o računu'!N36)","v":""},{"$f":"IF('Podaci o računu'!O36=\"\",\"\",'Podaci o računu'!O36)","v":""},{"$f":"IF('Podaci o računu'!P36=\"\",\"\",'Podaci o računu'!P36)","v":""},{"$f":"IF('Podaci o računu'!Q36=\"\",\"\",'Podaci o računu'!Q36)","v":""}]
[null,{"$f":"IF('Podaci o računu'!F37=\"\",\"\",'Podaci o računu'!F37)","v":""},null,null,{"$f":"IF('Podaci o računu'!H37=\"\",\"\",'Podaci o računu'!H37)","v":""},{"$f":"IF('Podaci o računu'!I37=\"\",\"\",'Podaci o računu'!I37)","v":""},{"$f":"IF('Podaci o računu'!J37=\"\",\"\",'Podaci o računu'!J37)","v":""},{"$f":"IF('Podaci o računu'!K37=\"Popust\",\"Popust \"&'Podaci o računu'!L37&\"%\",IF('Podaci o računu'!K37=\"Pribitek\",\"Pribitek \"&'Podaci o računu'!L37&\"%\",\"\"))","v":""},{"$f":"IF('Podaci o računu'!M37=\"\",\"\",'Podaci o računu'!M37)","v":""},{"$f":"IF('Podaci o računu'!N37=\"\",\"\",'Podaci o računu'!N37)","v":""},{"$f":"IF('Podaci o računu'!O37=\"\",\"\",'Podaci o računu'!O37)","v":""},{"$f":"IF('Podaci o računu'!P37=\"\",\"\",'Podaci o računu'!P37)","v":""},{"$f":"IF('Podaci o računu'!Q37=\"\",\"\",'Podaci o računu'!Q37)","v":""}]
[null,{"$f":"IF('Podaci o računu'!F38=\"\",\"\",'Podaci o računu'!F38)","v":""},null,null,{"$f":"IF('Podaci o računu'!H38=\"\",\"\",'Podaci o računu'!H38)","v":""},{"$f":"IF('Podaci o računu'!I38=\"\",\"\",'Podaci o računu'!I38)","v":""},{"$f":"IF('Podaci o računu'!J38=\"\",\"\",'Podaci o računu'!J38)","v":""},{"$f":"IF('Podaci o računu'!K38=\"Popust\",\"Popust \"&'Podaci o računu'!L38&\"%\",IF('Podaci o računu'!K38=\"Pribitek\",\"Pribitek \"&'Podaci o računu'!L38&\"%\",\"\"))","v":""},{"$f":"IF('Podaci o računu'!M38=\"\",\"\",'Podaci o računu'!M38)","v":""},{"$f":"IF('Podaci o računu'!N38=\"\",\"\",'Podaci o računu'!N38)","v":""},{"$f":"IF('Podaci o računu'!O38=\"\",\"\",'Podaci o računu'!O38)","v":""},{"$f":"IF('Podaci o računu'!P38=\"\",\"\",'Podaci o računu'!P38)","v":""},{"$f":"IF('Podaci o računu'!Q38=\"\",\"\",'Podaci o računu'!Q38)","v":""}]
[null,{"$f":"IF('Podaci o računu'!F39=\"\",\"\",'Podaci o računu'!F39)","v":""},null,null,{"$f":"IF('Podaci o računu'!H39=\"\",\"\",'Podaci o računu'!H39)","v":""},{"$f":"IF('Podaci o računu'!I39=\"\",\"\",'Podaci o računu'!I39)","v":""},{"$f":"IF('Podaci o računu'!J39=\"\",\"\",'Podaci o računu'!J39)","v":""},{"$f":"IF('Podaci o računu'!K39=\"Popust\",\"Popust \"&'Podaci o računu'!L39&\"%\",IF('Podaci o računu'!K39=\"Pribitek\",\"Pribitek \"&'Podaci o računu'!L39&\"%\",\"\"))","v":""},{"$f":"IF('Podaci o računu'!M39=\"\",\"\",'Podaci o računu'!M39)","v":""},{"$f":"IF('Podaci o računu'!N39=\"\",\"\",'Podaci o računu'!N39)","v":""},{"$f":"IF('Podaci o računu'!O39=\"\",\"\",'Podaci o računu'!O39)","v":""},{"$f":"IF('Podaci o računu'!P39=\"\",\"\",'Podaci o računu'!P39)","v":""},{"$f":"IF('Podaci o računu'!Q39=\"\",\"\",'Podaci o računu'!Q39)","v":""}]
[null,{"$f":"IF('Podaci o računu'!F40=\"\",\"\",'Podaci o računu'!F40)","v":""},null,null,{"$f":"IF('Podaci o računu'!H40=\"\",\"\",'Podaci o računu'!H40)","v":""},{"$f":"IF('Podaci o računu'!I40=\"\",\"\",'Podaci o računu'!I40)","v":""},{"$f":"IF('Podaci o računu'!J40=\"\",\"\",'Podaci o računu'!J40)","v":""},{"$f":"IF('Podaci o računu'!K40=\"Popust\",\"Popust \"&'Podaci o računu'!L40&\"%\",IF('Podaci o računu'!K40=\"Pribitek\",\"Pribitek \"&'Podaci o računu'!L40&\"%\",\"\"))","v":""},{"$f":"IF('Podaci o računu'!M40=\"\",\"\",'Podaci o računu'!M40)","v":""},{"$f":"IF('Podaci o računu'!N40=\"\",\"\",'Podaci o računu'!N40)","v":""},{"$f":"IF('Podaci o računu'!O40=\"\",\"\",'Podaci o računu'!O40)","v":""},{"$f":"IF('Podaci o računu'!P40=\"\",\"\",'Podaci o računu'!P40)","v":""},{"$f":"IF('Podaci o računu'!Q40=\"\",\"\",'Podaci o računu'!Q40)","v":""}]
[null,{"$f":"IF('Podaci o računu'!F41=\"\",\"\",'Podaci o računu'!F41)","v":""},null,null,{"$f":"IF('Podaci o računu'!H41=\"\",\"\",'Podaci o računu'!H41)","v":""},{"$f":"IF('Podaci o računu'!I41=\"\",\"\",'Podaci o računu'!I41)","v":""},{"$f":"IF('Podaci o računu'!J41=\"\",\"\",'Podaci o računu'!J41)","v":""},{"$f":"IF('Podaci o računu'!K41=\"Popust\",\"Popust \"&'Podaci o računu'!L41&\"%\",IF('Podaci o računu'!K41=\"Pribitek\",\"Pribitek \"&'Podaci o računu'!L41&\"%\",\"\"))","v":""},{"$f":"IF('Podaci o računu'!M41=\"\",\"\",'Podaci o računu'!M41)","v":""},{"$f":"IF('Podaci o računu'!N41=\"\",\"\",'Podaci o računu'!N41)","v":""},{"$f":"IF('Podaci o računu'!O41=\"\",\"\",'Podaci o računu'!O41)","v":""},{"$f":"IF('Podaci o računu'!P41=\"\",\"\",'Podaci o računu'!P41)","v":""},{"$f":"IF('Podaci o računu'!Q41=\"\",\"\",'Podaci o računu'!Q41)","v":""}]
[null,{"$f":"IF('Podaci o računu'!F42=\"\",\"\",'Podaci o računu'!F42)","v":""},null,null,{"$f":"IF('Podaci o računu'!H42=\"\",\"\",'Podaci o računu'!H42)","v":""},{"$f":"IF('Podaci o računu'!I42=\"\",\"\",'Podaci o računu'!I42)","v":""},{"$f":"IF('Podaci o računu'!J42=\"\",\"\",'Podaci o računu'!J42)","v":""},{"$f":"IF('Podaci o računu'!K42=\"Popust\",\"Popust \"&'Podaci o računu'!L42&\"%\",IF('Podaci o računu'!K42=\"Pribitek\",\"Pribitek \"&'Podaci o računu'!L42&\"%\",\"\"))","v":""},{"$f":"IF('Podaci o računu'!M42=\"\",\"\",'Podaci o računu'!M42)","v":""},{"$f":"IF('Podaci o računu'!N42=\"\",\"\",'Podaci o računu'!N42)","v":""},{"$f":"IF('Podaci o računu'!O42=\"\",\"\",'Podaci o računu'!O42)","v":""},{"$f":"IF('Podaci o računu'!P42=\"\",\"\",'Podaci o računu'!P42)","v":""},{"$f":"IF('Podaci o računu'!Q42=\"\",\"\",'Podaci o računu'!Q42)","v":""}]
[null,{"$f":"IF('Podaci o računu'!F43=\"\",\"\",'Podaci o računu'!F43)","v":""},null,null,{"$f":"IF('Podaci o računu'!H43=\"\",\"\",'Podaci o računu'!H43)","v":""},{"$f":"IF('Podaci o računu'!I43=\"\",\"\",'Podaci o računu'!I43)","v":""},{"$f":"IF('Podaci o računu'!J43=\"\",\"\",'Podaci o računu'!J43)","v":""},{"$f":"IF('Podaci o računu'!K43=\"Popust\",\"Popust \"&'Podaci o računu'!L43&\"%\",IF('Podaci o računu'!K43=\"Pribitek\",\"Pribitek \"&'Podaci o računu'!L43&\"%\",\"\"))","v":""},{"$f":"IF('Podaci o računu'!M43=\"\",\"\",'Podaci o računu'!M43)","v":""},{"$f":"IF('Podaci o računu'!N43=\"\",\"\",'Podaci o računu'!N43)","v":""},{"$f":"IF('Podaci o računu'!O43=\"\",\"\",'Podaci o računu'!O43)","v":""},{"$f":"IF('Podaci o računu'!P43=\"\",\"\",'Podaci o računu'!P43)","v":""},{"$f":"IF('Podaci o računu'!Q43=\"\",\"\",'Podaci o računu'!Q43)","v":""}]
[null,{"$f":"IF('Podaci o računu'!F44=\"\",\"\",'Podaci o računu'!F44)","v":""},null,null,{"$f":"IF('Podaci o računu'!H44=\"\",\"\",'Podaci o računu'!H44)","v":""},{"$f":"IF('Podaci o računu'!I44=\"\",\"\",'Podaci o računu'!I44)","v":""},{"$f":"IF('Podaci o računu'!J44=\"\",\"\",'Podaci o računu'!J44)","v":""},{"$f":"IF('Podaci o računu'!K44=\"Popust\",\"Popust \"&'Podaci o računu'!L44&\"%\",IF('Podaci o računu'!K44=\"Pribitek\",\"Pribitek \"&'Podaci o računu'!L44&\"%\",\"\"))","v":""},{"$f":"IF('Podaci o računu'!M44=\"\",\"\",'Podaci o računu'!M44)","v":""},{"$f":"IF('Podaci o računu'!N44=\"\",\"\",'Podaci o računu'!N44)","v":""},{"$f":"IF('Podaci o računu'!O44=\"\",\"\",'Podaci o računu'!O44)","v":""},{"$f":"IF('Podaci o računu'!P44=\"\",\"\",'Podaci o računu'!P44)","v":""},{"$f":"IF('Podaci o računu'!Q44=\"\",\"\",'Podaci o računu'!Q44)","v":""}]
[null,{"$f":"IF('Podaci o računu'!F45=\"\",\"\",'Podaci o računu'!F45)","v":""},null,null,{"$f":"IF('Podaci o računu'!H45=\"\",\"\",'Podaci o računu'!H45)","v":""},{"$f":"IF('Podaci o računu'!I45=\"\",\"\",'Podaci o računu'!I45)","v":""},{"$f":"IF('Podaci o računu'!J45=\"\",\"\",'Podaci o računu'!J45)","v":""},{"$f":"IF('Podaci o računu'!K45=\"Popust\",\"Popust \"&'Podaci o računu'!L45&\"%\",IF('Podaci o računu'!K45=\"Pribitek\",\"Pribitek \"&'Podaci o računu'!L45&\"%\",\"\"))","v":""},{"$f":"IF('Podaci o računu'!M45=\"\",\"\",'Podaci o računu'!M45)","v":""},{"$f":"IF('Podaci o računu'!N45=\"\",\"\",'Podaci o računu'!N45)","v":""},{"$f":"IF('Podaci o računu'!O45=\"\",\"\",'Podaci o računu'!O45)","v":""},{"$f":"IF('Podaci o računu'!P45=\"\",\"\",'Podaci o računu'!P45)","v":""},{"$f":"IF('Podaci o računu'!Q45=\"\",\"\",'Podaci o računu'!Q45)","v":""}]
[null,{"$f":"IF('Podaci o računu'!F46=\"\",\"\",'Podaci o računu'!F46)","v":""},null,null,{"$f":"IF('Podaci o računu'!H46=\"\",\"\",'Podaci o računu'!H46)","v":""},{"$f":"IF('Podaci o računu'!I46=\"\",\"\",'Podaci o računu'!I46)","v":""},{"$f":"IF('Podaci o računu'!J46=\"\",\"\",'Podaci o računu'!J46)","v":""},{"$f":"IF('Podaci o računu'!K46=\"Popust\",\"Popust \"&'Podaci o računu'!L46&\"%\",IF('Podaci o računu'!K46=\"Pribitek\",\"Pribitek \"&'Podaci o računu'!L46&\"%\",\"\"))","v":""},{"$f":"IF('Podaci o računu'!M46=\"\",\"\",'Podaci o računu'!M46)","v":""},{"$f":"IF('Podaci o računu'!N46=\"\",\"\",'Podaci o računu'!N46)","v":""},{"$f":"IF('Podaci o računu'!O46=\"\",\"\",'Podaci o računu'!O46)","v":""},{"$f":"IF('Podaci o računu'!P46=\"\",\"\",'Podaci o računu'!P46)","v":""},{"$f":"IF('Podaci o računu'!Q46=\"\",\"\",'Podaci o računu'!Q46)","v":""}]
[]
[null,"Specifikacija iznosa za PDV",null,null,null,null,null,null,null,"Vrijednost",null,{"$f":"ROUND(SUM('Podaci o računu'!V27:V46),2)","v":0},null,null,"dav. st."]
[null,"PDV %","Osnova PDV","Iznos PDV",null,null,null,null,null,"Popusti",null,{"$f":"ROUND(SUM('Podaci o računu'!T27:T46),2)","v":0},null,null,22]
[null,0,1000,0,null,null,null,null,null,"Dodaci",null,{"$f":"ROUND(SUM('Podaci o računu'!U27:U46),2)","v":0},null,null,"9.5"]
[null,null,null,null,null,null,null,null,null,{"$f":"\"Ukupno \"&'Podaci o računu'!G9&\" bez PDV\"","v":"Ukupno EUR bez PDV"},null,{"$f":"L40-L41+L42","v":0},null,null,0]
[null,null,null,null,null,null,null,null,null,"Iznos PDV",null,{"$f":"ROUND(SUM('Podaci o računu'!X27:X46),2)","v":0},null,null,25]
[null,null,null,null,null,null,null,null,null,{"$f":"\"Ukupno \"&'Podaci o računu'!G9&\" sa PDV\"","v":"Ukupno EUR sa PDV"},null,{"$f":"L43+L44","v":0},null,null,13]
[null,null,null,null,null,null,null,null,null,null,null,null,null,null,5]
[]
[]
[]
[]
[null,{"$f":"IF('Podaci o računu'!G23=\"\",\"\",'Podaci o računu'!G23)","v":""}]
[]
[null,{"$f":"IF('Podaci o računu'!G22=\"\",\"\",'Podaci o računu'!G22)","v":""}]
[]
[null,{"$f":"IF(HLOOKUP('Podaci o računu'!C6,Izdavaoci!C4:E17,14,FALSE)=0,\"\",HLOOKUP('Podaci o računu'!C6,Izdavaoci!C4:E17,14,FALSE))","v":""}]
[null,null,null,null,null,null,null,null,null,null,null,null,"bizBox Excel eRačun powered by ZZI d.o.o. | www.zzi.me | www.bizbox.eu | info@zzi.me"]

{"sheet":"Račun SL","index":3,"n_rows":56,"n_cols":15,"rows_kept":56,"cut":false,"hidden":false,"merged":[[27,1,27,3],[15,1,15,12],[17,1,17,3],[18,1,18,3],[19,1,19,3],[20,1,20,3],[21,1,21,3],[22,1,22,3],[23,1,23,3],[24,1,24,3],[25,1,25,3],[26,1,26,3],[40,11,40,12],[28,1,28,3],[29,1,29,3],[30,1,30,3],[31,1,31,3],[32,1,32,3],[33,1,33,3],[34,1,34,3],[35,1,35,3],[36,1,36,3],[37,1,37,3],[39,11,39,12],[54,1,54,12],[41,11,41,12],[42,11,42,12],[43,11,43,12],[44,11,44,12],[50,1,51,12],[52,1,53,12]]}
[null,{"$f":"'Podaci o računu'!C6&\", \"&'Podaci o računu'!C7&\", \"&'Podaci o računu'!C8&\" \"&'Podaci o računu'!C9&\", \"&'Podaci o računu'!C10","v":"ZZI doo Podgorica, ul Moskovska 77, 81000 Podgorica, ME"}]
[null,{"$f":"IF('Podaci o računu'!C11<>\"\",\"\"&'Podaci o računu'!C11&\", E: \"&'Podaci o računu'!C12&\", T: \"&'Podaci o računu'!C13,\"\"&\"E: \"&'Podaci o računu'!C12&\", T: \"&'Podaci o računu'!C13)","v":"Jelena Milojković, E: info@zzi.co.me, T: 38220229560"}]
[null,{"$f":"IF('Podaci o računu'!C16=\"DA\",\"ID za DDV: \"&'Podaci o računu'!C10&'Podaci o računu'!C15,\"Davčna številka: \"&'Podaci o računu'!C15)","v":"ID za DDV: ME02328097"}]
[null,{"$f":"\"IBAN: \"&'Podaci o računu'!C17&\", BIC: \"&'Podaci o računu'!C18","v":"IBAN: , BIC: "}]
[]
[null,"KUPEC",null,null,null,"PREJEMNIK BLAGA",null,null,null,{"$f":"'Podaci o računu'!G6&\" št. \"&'Podaci o računu'!G7","v":"Račun št. "}]
[null,{"$f":"'Podaci o računu'!C22","v":"ZZI doo Podgorica"},null,null,null,{"$f":"'Podaci o računu'!C36","v":"ZZI doo Podgorica"},null,null,null,"Datum izdaje računa",null,null,{"$f":"TEXT('Podaci o računu'!G10,\"dd.mm.yyyy\")","v":"00.01.1900"}]
[null,{"$f":"'Podaci o računu'!C23","v":"Vladimir Ćetković"},null,null,null,{"$f":"'Podaci o računu'!C37","v":"Vladimir Ćetković"},null,null,null,"Datum storitve/dobave blaga",null,null,{"$f":"IF('Podaci o računu'!G12=\"\",\"-\",\"\"&TEXT('Podaci o računu'!G12,\"dd.mm.yyyy\"))","v":"-"}]
[null,{"$f":"'Podaci o računu'!C24","v":"ul. Moskovska 77"},null,null,null,{"$f":"'Podaci o računu'!C38","v":"ul. Moskovska 77"},null,null,null,"Obdobje storitve",null,null,{"$f":"IF(OR('Podaci o računu'!G13=\"\",'Podaci o računu'!I13=\"\"),\"-\",\"\"&TEXT('Podaci o računu'!G13,\"dd.mm.yyyy\")&\" do \"&TEXT('Podaci o računu'!I13,\"dd.mm.yyyy\"))","v":"-"}]
[null,{"$f":"'Podaci o računu'!C25&\" \"&'Podaci o računu'!C26","v":"81000 Podgorica"},null,null,null,{"$f":"'Podaci o računu'!C39&\" \"&'Podaci o računu'!C40","v":"81000 Podgorica"},null,null,null,"Datum zapadlosti",null,null,{"$f":"TEXT('Podaci o računu'!G11,\"dd.mm.yyyy\")","v":"00.01.1900"}]
[null,{"$f":"'Podaci o računu'!C27","v":"ME"},null,null,null,{"$f":"'Podaci o računu'!C41","v":"ME"},null,null,null,"Referenčni dokument",null,null,{"$f":"'Podaci o računu'!G14&\" \"&'Podaci o računu'!G15","v":" "}]
[null,{"$f":"IF('Podaci o računu'!C30=\"DA\",\"ID za DDV: \"&'Podaci o računu'!C27&'Podaci o računu'!C29,\"Davčna številka: \"&'Podaci o računu'!C29)","v":"ID za DDV: ME02328097"},null,null,null,null,null,null,null,"Sklic nakazila",null,null,{"$f":"IF('Podaci o računu'!G8=\"\",\"\",'Podaci o računu'!G8)","v":""}]
[null,{"$f":"'Podaci o računu'!C31&IF(AND('Podaci o računu'!C31<>\"\",'Podaci o računu'!C32<>\"\"),\", \",\"\")&'Podaci o računu'!C32","v":""},null,null,null,null,null,null,null,"Koda namena",null,null,{"$f":"'Podaci o računu'!G17","v":"OTHR"}]
[null,null,null,null,null,null,null,null,null,"Stroškovno mesto",null,null,{"$f":"IF('Podaci o računu'!G20=\"\",\"\",'Podaci o računu'!G20)","v":""}]
[]
[null,{"$f":"IF('Podaci o računu'!G21=\"\",\"\",'Podaci o računu'!G21)","v":""}]
[]
[null,"Naziv",null,null,"Količina","Enota","Cena","Popust/\nPribitek","Razlog","Stroškovno \nmesto","DDV %","Znesek","Znesek z \nDDV"]
[null,{"$f":"IF('Podaci o računu'!F27=\"\",\"\",'Podaci o računu'!F27)","v":""},null,null,{"$f":"IF('Podaci o računu'!H27=\"\",\"\",'Podaci o računu'!H27)","v":""},{"$f":"IF('Podaci o računu'!I27=\"\",\"\",IF('Podaci o računu'!I27=\"kos\",\"kom\",'Podaci o računu'!I27))","v":""},{"$f":"IF('Podaci o računu'!J27=\"\",\"\",'Podaci o računu'!J27)","v":""},{"$f":"IF('Podaci o računu'!K27=\"Popust\",\"Popust \"&'Podaci o računu'!L27&\"%\",IF('Podaci o računu'!K27=\"Pribitek\",\"Pribitek \"&'Podaci o računu'!L27&\"%\",\"\"))","v":""},{"$f":"IF('Podaci o računu'!M27=\"\",\"\",'Podaci o računu'!M27)","v":""},{"$f":"IF('Podaci o računu'!N27=\"\",\"\",'Podaci o računu'!N27)","v":""},{"$f":"IF('Podaci o računu'!O27=\"\",\"\",'Podaci o računu'!O27)","v":0},{"$f":"IF('Podaci o računu'!P27=\"\",\"\",'Podaci o računu'!P27)","v":""},{"$f":"IF('Podaci o računu'!Q27=\"\",\"\",'Podaci o računu'!Q27)","v":""}]
[null,{"$f":"IF('Podaci o računu'!F28=\"\",\"\",'Podaci o računu'!F28)","v":""},null,null,{"$f":"IF('Podaci o računu'!H28=\"\",\"\",'Podaci o računu'!H28)","v":""},{"$f":"IF('Podaci o računu'!I28=\"\",\"\",IF('Podaci o računu'!I28=\"kos\",\"kom\",'Podaci o računu'!I28))","v":""},{"$f":"IF('Podaci o računu'!J28=\"\",\"\",'Podaci o računu'!J28)","v":""},{"$f":"IF('Podaci o računu'!K28=\"Popust\",\"Popust \"&'Podaci o računu'!L28&\"%\",IF('Podaci o računu'!K28=\"Pribitek\",\"Pribitek \"&'Podaci o računu'!L28&\"%\",\"\"))","v":""},{"$f":"IF('Podaci o računu'!M28=\"\",\"\",'Podaci o računu'!M28)","v":""},{"$f":"IF('Podaci o računu'!N28=\"\",\"\",'Podaci o računu'!N28)","v":""},{"$f":"IF('Podaci o računu'!O28=\"\",\"\",'Podaci o računu'!O28)","v":""},{"$f":"IF('Podaci o računu'!P28=\"\",\"\",'Podaci o računu'!P28)","v":""},{"$f":"IF('Podaci o računu'!Q28=\"\",\"\",'Podaci o računu'!Q28)","v":""}]
[null,{"$f":"IF('Podaci o računu'!F29=\"\",\"\",'Podaci o računu'!F29)","v":""},null,null,{"$f":"IF('Podaci o računu'!H29=\"\",\"\",'Podaci o računu'!H29)","v":""},{"$f":"IF('Podaci o računu'!I29=\"\",\"\",IF('Podaci o računu'!I29=\"kos\",\"kom\",'Podaci o računu'!I29))","v":""},{"$f":"IF('Podaci o računu'!J29=\"\",\"\",'Podaci o računu'!J29)","v":""},{"$f":"IF('Podaci o računu'!K29=\"Popust\",\"Popust \"&'Podaci o računu'!L29&\"%\",IF('Podaci o računu'!K29=\"Pribitek\",\"Pribitek \"&'Podaci o računu'!L29&\"%\",\"\"))","v":""},{"$f":"IF('Podaci o računu'!M29=\"\",\"\",'Podaci o računu'!M29)","v":""},{"$f":"IF('Podaci o računu'!N29=\"\",\"\",'Podaci o računu'!N29)","v":""},{"$f":"IF('Podaci o računu'!O29=\"\",\"\",'Podaci o računu'!O29)","v":""},{"$f":"IF('Podaci o računu'!P29=\"\",\"\",'Podaci o računu'!P29)","v":""},{"$f":"IF('Podaci o računu'!Q29=\"\",\"\",'Podaci o računu'!Q29)","v":""}]
[null,{"$f":"IF('Podaci o računu'!F30=\"\",\"\",'Podaci o računu'!F30)","v":""},null,null,{"$f":"IF('Podaci o računu'!H30=\"\",\"\",'Podaci o računu'!H30)","v":""},{"$f":"IF('Podaci o računu'!I30=\"\",\"\",IF('Podaci o računu'!I30=\"kos\",\"kom\",'Podaci o računu'!I30))","v":""},{"$f":"IF('Podaci o računu'!J30=\"\",\"\",'Podaci o računu'!J30)","v":""},{"$f":"IF('Podaci o računu'!K30=\"Popust\",\"Popust \"&'Podaci o računu'!L30&\"%\",IF('Podaci o računu'!K30=\"Pribitek\",\"Pribitek \"&'Podaci o računu'!L30&\"%\",\"\"))","v":""},{"$f":"IF('Podaci o računu'!M30=\"\",\"\",'Podaci o računu'!M30)","v":""},{"$f":"IF('Podaci o računu'!N30=\"\",\"\",'Podaci o računu'!N30)","v":""},{"$f":"IF('Podaci o računu'!O30=\"\",\"\",'Podaci o računu'!O30)","v":""},{"$f":"IF('Podaci o računu'!P30=\"\",\"\",'Podaci o računu'!P30)","v":""},{"$f":"IF('Podaci o računu'!Q30=\"\",\"\",'Podaci o računu'!Q30)","v":""}]
[null,{"$f":"IF('Podaci o računu'!F31=\"\",\"\",'Podaci o računu'!F31)","v":""},null,null,{"$f":"IF('Podaci o računu'!H31=\"\",\"\",'Podaci o računu'!H31)","v":""},{"$f":"IF('Podaci o računu'!I31=\"\",\"\",IF('Podaci o računu'!I31=\"kos\",\"kom\",'Podaci o računu'!I31))","v":""},{"$f":"IF('Podaci o računu'!J31=\"\",\"\",'Podaci o računu'!J31)","v":""},{"$f":"IF('Podaci o računu'!K31=\"Popust\",\"Popust \"&'Podaci o računu'!L31&\"%\",IF('Podaci o računu'!K31=\"Pribitek\",\"Pribitek \"&'Podaci o računu'!L31&\"%\",\"\"))","v":""},{"$f":"IF('Podaci o računu'!M31=\"\",\"\",'Podaci o računu'!M31)","v":""},{"$f":"IF('Podaci o računu'!N31=\"\",\"\",'Podaci o računu'!N31)","v":""},{"$f":"IF('Podaci o računu'!O31=\"\",\"\",'Podaci o računu'!O31)","v":""},{"$f":"IF('Podaci o računu'!P31=\"\",\"\",'Podaci o računu'!P31)","v":""},{"$f":"IF('Podaci o računu'!Q31=\"\",\"\",'Podaci o računu'!Q31)","v":""}]
[null,{"$f":"IF('Podaci o računu'!F32=\"\",\"\",'Podaci o računu'!F32)","v":""},null,null,{"$f":"IF('Podaci o računu'!H32=\"\",\"\",'Podaci o računu'!H32)","v":""},{"$f":"IF('Podaci o računu'!I32=\"\",\"\",IF('Podaci o računu'!I32=\"kos\",\"kom\",'Podaci o računu'!I32))","v":""},{"$f":"IF('Podaci o računu'!J32=\"\",\"\",'Podaci o računu'!J32)","v":""},{"$f":"IF('Podaci o računu'!K32=\"Popust\",\"Popust \"&'Podaci o računu'!L32&\"%\",IF('Podaci o računu'!K32=\"Pribitek\",\"Pribitek \"&'Podaci o računu'!L32&\"%\",\"\"))","v":""},{"$f":"IF('Podaci o računu'!M32=\"\",\"\",'Podaci o računu'!M32)","v":""},{"$f":"IF('Podaci o računu'!N32=\"\",\"\",'Podaci o računu'!N32)","v":""},{"$f":"IF('Podaci o računu'!O32=\"\",\"\",'Podaci o računu'!O32)","v":""},{"$f":"IF('Podaci o računu'!P32=\"\",\"\",'Podaci o računu'!P32)","v":""},{"$f":"IF('Podaci o računu'!Q32=\"\",\"\",'Podaci o računu'!Q32)","v":""}]
[null,{"$f":"IF('Podaci o računu'!F33=\"\",\"\",'Podaci o računu'!F33)","v":""},null,null,{"$f":"IF('Podaci o računu'!H33=\"\",\"\",'Podaci o računu'!H33)","v":""},{"$f":"IF('Podaci o računu'!I33=\"\",\"\",IF('Podaci o računu'!I33=\"kos\",\"kom\",'Podaci o računu'!I33))","v":""},{"$f":"IF('Podaci o računu'!J33=\"\",\"\",'Podaci o računu'!J33)","v":""},{"$f":"IF('Podaci o računu'!K33=\"Popust\",\"Popust \"&'Podaci o računu'!L33&\"%\",IF('Podaci o računu'!K33=\"Pribitek\",\"Pribitek \"&'Podaci o računu'!L33&\"%\",\"\"))","v":""},{"$f":"IF('Podaci o računu'!M33=\"\",\"\",'Podaci o računu'!M33)","v":""},{"$f":"IF('Podaci o računu'!N33=\"\",\"\",'Podaci o računu'!N33)","v":""},{"$f":"IF('Podaci o računu'!O33=\"\",\"\",'Podaci o računu'!O33)","v":""},{"$f":"IF('Podaci o računu'!P33=\"\",\"\",'Podaci o računu'!P33)","v":""},{"$f":"IF('Podaci o računu'!Q33=\"\",\"\",'Podaci o računu'!Q33)","v":""}]
[null,{"$f":"IF('Podaci o računu'!F34=\"\",\"\",'Podaci o računu'!F34)","v":""},null,null,{"$f":"IF('Podaci o računu'!H34=\"\",\"\",'Podaci o računu'!H34)","v":""},{"$f":"IF('Podaci o računu'!I34=\"\",\"\",IF('Podaci o računu'!I34=\"kos\",\"kom\",'Podaci o računu'!I34))","v":""},{"$f":"IF('Podaci o računu'!J34=\"\",\"\",'Podaci o računu'!J34)","v":""},{"$f":"IF('Podaci o računu'!K34=\"Popust\",\"Popust \"&'Podaci o računu'!L34&\"%\",IF('Podaci o računu'!K34=\"Pribitek\",\"Pribitek \"&'Podaci o računu'!L34&\"%\",\"\"))","v":""},{"$f":"IF('Podaci o računu'!M34=\"\",\"\",'Podaci o računu'!M34)","v":""},{"$f":"IF('Podaci o računu'!N34=\"\",\"\",'Podaci o računu'!N34)","v":""},{"$f":"IF('Podaci o računu'!O34=\"\",\"\",'Podaci o računu'!O34)","v":""},{"$f":"IF('Podaci o računu'!P34=\"\",\"\",'Podaci o računu'!P34)","v":""},{"$f":"IF('Podaci o računu'!Q34=\"\",\"\",'Podaci o računu'!Q34)","v":""}]
[null,{"$f":"IF('Podaci o računu'!F35=\"\",\"\",'Podaci o računu'!F35)","v":""},null,null,{"$f":"IF('Podaci o računu'!H35=\"\",\"\",'Podaci o računu'!H35)","v":""},{"$f":"IF('Podaci o računu'!I35=\"\",\"\",IF('Podaci o računu'!I35=\"kos\",\"kom\",'Podaci o računu'!I35))","v":""},{"$f":"IF('Podaci o računu'!J35=\"\",\"\",'Podaci o računu'!J35)","v":""},{"$f":"IF('Podaci o računu'!K35=\"Popust\",\"Popust \"&'Podaci o računu'!L35&\"%\",IF('Podaci o računu'!K35=\"Pribitek\",\"Pribitek \"&'Podaci o računu'!L35&\"%\",\"\"))","v":""},{"$f":"IF('Podaci o računu'!M35=\"\",\"\",'Podaci o računu'!M35)","v":""},{"$f":"IF('Podaci o računu'!N35=\"\",\"\",'Podaci o računu'!N35)","v":""},{"$f":"IF('Podaci o računu'!O35=\"\",\"\",'Podaci o računu'!O35)","v":""},{"$f":"IF('Podaci o računu'!P35=\"\",\"\",'Podaci o računu'!P35)","v":""},{"$f":"IF('Podaci o računu'!Q35=\"\",\"\",'Podaci o računu'!Q35)","v":""}]
[null,{"$f":"IF('Podaci o računu'!F36=\"\",\"\",'Podaci o računu'!F36)","v":""},null,null,{"$f":"IF('Podaci o računu'!H36=\"\",\"\",'Podaci o računu'!H36)","v":""},{"$f":"IF('Podaci o računu'!I36=\"\",\"\",IF('Podaci o računu'!I36=\"kos\",\"kom\",'Podaci o računu'!I36))","v":""},{"$f":"IF('Podaci o računu'!J36=\"\",\"\",'Podaci o računu'!J36)","v":""},{"$f":"IF('Podaci o računu'!K36=\"Popust\",\"Popust \"&'Podaci o računu'!L36&\"%\",IF('Podaci o računu'!K36=\"Pribitek\",\"Pribitek \"&'Podaci o računu'!L36&\"%\",\"\"))","v":""},{"$f":"IF('Podaci o računu'!M36=\"\",\"\",'Podaci o računu'!M36)","v":""},{"$f":"IF('Podaci o računu'!N36=\"\",\"\",'Podaci o računu'!N36)","v":""},{"$f":"IF('Podaci o računu'!O36=\"\",\"\",'Podaci o računu'!O36)","v":""},{"$f":"IF('Podaci o računu'!P36=\"\",\"\",'Podaci o računu'!P36)","v":""},{"$f":"IF('Podaci o računu'!Q36=\"\",\"\",'Podaci o računu'!Q36)","v":""}]
[null,{"$f":"IF('Podaci o računu'!F37=\"\",\"\",'Podaci o računu'!F37)","v":""},null,null,{"$f":"IF('Podaci o računu'!H37=\"\",\"\",'Podaci o računu'!H37)","v":""},{"$f":"IF('Podaci o računu'!I37=\"\",\"\",IF('Podaci o računu'!I37=\"kos\",\"kom\",'Podaci o računu'!I37))","v":""},{"$f":"IF('Podaci o računu'!J37=\"\",\"\",'Podaci o računu'!J37)","v":""},{"$f":"IF('Podaci o računu'!K37=\"Popust\",\"Popust \"&'Podaci o računu'!L37&\"%\",IF('Podaci o računu'!K37=\"Pribitek\",\"Pribitek \"&'Podaci o računu'!L37&\"%\",\"\"))","v":""},{"$f":"IF('Podaci o računu'!M37=\"\",\"\",'Podaci o računu'!M37)","v":""},{"$f":"IF('Podaci o računu'!N37=\"\",\"\",'Podaci o računu'!N37)","v":""},{"$f":"IF('Podaci o računu'!O37=\"\",\"\",'Podaci o računu'!O37)","v":""},{"$f":"IF('Podaci o računu'!P37=\"\",\"\",'Podaci o računu'!P37)","v":""},{"$f":"IF('Podaci o računu'!Q37=\"\",\"\",'Podaci o računu'!Q37)","v":""}]
[null,{"$f":"IF('Podaci o računu'!F38=\"\",\"\",'Podaci o računu'!F38)","v":""},null,null,{"$f":"IF('Podaci o računu'!H38=\"\",\"\",'Podaci o računu'!H38)","v":""},{"$f":"IF('Podaci o računu'!I38=\"\",\"\",IF('Podaci o računu'!I38=\"kos\",\"kom\",'Podaci o računu'!I38))","v":""},{"$f":"IF('Podaci o računu'!J38=\"\",\"\",'Podaci o računu'!J38)","v":""},{"$f":"IF('Podaci o računu'!K38=\"Popust\",\"Popust \"&'Podaci o računu'!L38&\"%\",IF('Podaci o računu'!K38=\"Pribitek\",\"Pribitek \"&'Podaci o računu'!L38&\"%\",\"\"))","v":""},{"$f":"IF('Podaci o računu'!M38=\"\",\"\",'Podaci o računu'!M38)","v":""},{"$f":"IF('Podaci o računu'!N38=\"\",\"\",'Podaci o računu'!N38)","v":""},{"$f":"IF('Podaci o računu'!O38=\"\",\"\",'Podaci o računu'!O38)","v":""},{"$f":"IF('Podaci o računu'!P38=\"\",\"\",'Podaci o računu'!P38)","v":""},{"$f":"IF('Podaci o računu'!Q38=\"\",\"\",'Podaci o računu'!Q38)","v":""}]
[null,{"$f":"IF('Podaci o računu'!F39=\"\",\"\",'Podaci o računu'!F39)","v":""},null,null,{"$f":"IF('Podaci o računu'!H39=\"\",\"\",'Podaci o računu'!H39)","v":""},{"$f":"IF('Podaci o računu'!I39=\"\",\"\",IF('Podaci o računu'!I39=\"kos\",\"kom\",'Podaci o računu'!I39))","v":""},{"$f":"IF('Podaci o računu'!J39=\"\",\"\",'Podaci o računu'!J39)","v":""},{"$f":"IF('Podaci o računu'!K39=\"Popust\",\"Popust \"&'Podaci o računu'!L39&\"%\",IF('Podaci o računu'!K39=\"Pribitek\",\"Pribitek \"&'Podaci o računu'!L39&\"%\",\"\"))","v":""},{"$f":"IF('Podaci o računu'!M39=\"\",\"\",'Podaci o računu'!M39)","v":""},{"$f":"IF('Podaci o računu'!N39=\"\",\"\",'Podaci o računu'!N39)","v":""},{"$f":"IF('Podaci o računu'!O39=\"\",\"\",'Podaci o računu'!O39)","v":""},{"$f":"IF('Podaci o računu'!P39=\"\",\"\",'Podaci o računu'!P39)","v":""},{"$f":"IF('Podaci o računu'!Q39=\"\",\"\",'Podaci o računu'!Q39)","v":""}]
[null,{"$f":"IF('Podaci o računu'!F40=\"\",\"\",'Podaci o računu'!F40)","v":""},null,null,{"$f":"IF('Podaci o računu'!H40=\"\",\"\",'Podaci o računu'!H40)","v":""},{"$f":"IF('Podaci o računu'!I40=\"\",\"\",IF('Podaci o računu'!I40=\"kos\",\"kom\",'Podaci o računu'!I40))","v":""},{"$f":"IF('Podaci o računu'!J40=\"\",\"\",'Podaci o računu'!J40)","v":""},{"$f":"IF('Podaci o računu'!K40=\"Popust\",\"Popust \"&'Podaci o računu'!L40&\"%\",IF('Podaci o računu'!K40=\"Pribitek\",\"Pribitek \"&'Podaci o računu'!L40&\"%\",\"\"))","v":""},{"$f":"IF('Podaci o računu'!M40=\"\",\"\",'Podaci o računu'!M40)","v":""},{"$f":"IF('Podaci o računu'!N40=\"\",\"\",'Podaci o računu'!N40)","v":""},{"$f":"IF('Podaci o računu'!O40=\"\",\"\",'Podaci o računu'!O40)","v":""},{"$f":"IF('Podaci o računu'!P40=\"\",\"\",'Podaci o računu'!P40)","v":""},{"$f":"IF('Podaci o računu'!Q40=\"\",\"\",'Podaci o računu'!Q40)","v":""}]
[null,{"$f":"IF('Podaci o računu'!F41=\"\",\"\",'Podaci o računu'!F41)","v":""},null,null,{"$f":"IF('Podaci o računu'!H41=\"\",\"\",'Podaci o računu'!H41)","v":""},{"$f":"IF('Podaci o računu'!I41=\"\",\"\",IF('Podaci o računu'!I41=\"kos\",\"kom\",'Podaci o računu'!I41))","v":""},{"$f":"IF('Podaci o računu'!J41=\"\",\"\",'Podaci o računu'!J41)","v":""},{"$f":"IF('Podaci o računu'!K41=\"Popust\",\"Popust \"&'Podaci o računu'!L41&\"%\",IF('Podaci o računu'!K41=\"Pribitek\",\"Pribitek \"&'Podaci o računu'!L41&\"%\",\"\"))","v":""},{"$f":"IF('Podaci o računu'!M41=\"\",\"\",'Podaci o računu'!M41)","v":""},{"$f":"IF('Podaci o računu'!N41=\"\",\"\",'Podaci o računu'!N41)","v":""},{"$f":"IF('Podaci o računu'!O41=\"\",\"\",'Podaci o računu'!O41)","v":""},{"$f":"IF('Podaci o računu'!P41=\"\",\"\",'Podaci o računu'!P41)","v":""},{"$f":"IF('Podaci o računu'!Q41=\"\",\"\",'Podaci o računu'!Q41)","v":""}]
[null,{"$f":"IF('Podaci o računu'!F42=\"\",\"\",'Podaci o računu'!F42)","v":""},null,null,{"$f":"IF('Podaci o računu'!H42=\"\",\"\",'Podaci o računu'!H42)","v":""},{"$f":"IF('Podaci o računu'!I42=\"\",\"\",IF('Podaci o računu'!I42=\"kos\",\"kom\",'Podaci o računu'!I42))","v":""},{"$f":"IF('Podaci o računu'!J42=\"\",\"\",'Podaci o računu'!J42)","v":""},{"$f":"IF('Podaci o računu'!K42=\"Popust\",\"Popust \"&'Podaci o računu'!L42&\"%\",IF('Podaci o računu'!K42=\"Pribitek\",\"Pribitek \"&'Podaci o računu'!L42&\"%\",\"\"))","v":""},{"$f":"IF('Podaci o računu'!M42=\"\",\"\",'Podaci o računu'!M42)","v":""},{"$f":"IF('Podaci o računu'!N42=\"\",\"\",'Podaci o računu'!N42)","v":""},{"$f":"IF('Podaci o računu'!O42=\"\",\"\",'Podaci o računu'!O42)","v":""},{"$f":"IF('Podaci o računu'!P42=\"\",\"\",'Podaci o računu'!P42)","v":""},{"$f":"IF('Podaci o računu'!Q42=\"\",\"\",'Podaci o računu'!Q42)","v":""}]
[null,{"$f":"IF('Podaci o računu'!F43=\"\",\"\",'Podaci o računu'!F43)","v":""},null,null,{"$f":"IF('Podaci o računu'!H43=\"\",\"\",'Podaci o računu'!H43)","v":""},{"$f":"IF('Podaci o računu'!I43=\"\",\"\",IF('Podaci o računu'!I43=\"kos\",\"kom\",'Podaci o računu'!I43))","v":""},{"$f":"IF('Podaci o računu'!J43=\"\",\"\",'Podaci o računu'!J43)","v":""},{"$f":"IF('Podaci o računu'!K43=\"Popust\",\"Popust \"&'Podaci o računu'!L43&\"%\",IF('Podaci o računu'!K43=\"Pribitek\",\"Pribitek \"&'Podaci o računu'!L43&\"%\",\"\"))","v":""},{"$f":"IF('Podaci o računu'!M43=\"\",\"\",'Podaci o računu'!M43)","v":""},{"$f":"IF('Podaci o računu'!N43=\"\",\"\",'Podaci o računu'!N43)","v":""},{"$f":"IF('Podaci o računu'!O43=\"\",\"\",'Podaci o računu'!O43)","v":""},{"$f":"IF('Podaci o računu'!P43=\"\",\"\",'Podaci o računu'!P43)","v":""},{"$f":"IF('Podaci o računu'!Q43=\"\",\"\",'Podaci o računu'!Q43)","v":""}]
[null,{"$f":"IF('Podaci o računu'!F44=\"\",\"\",'Podaci o računu'!F44)","v":""},null,null,{"$f":"IF('Podaci o računu'!H44=\"\",\"\",'Podaci o računu'!H44)","v":""},{"$f":"IF('Podaci o računu'!I44=\"\",\"\",IF('Podaci o računu'!I44=\"kos\",\"kom\",'Podaci o računu'!I44))","v":""},{"$f":"IF('Podaci o računu'!J44=\"\",\"\",'Podaci o računu'!J44)","v":""},{"$f":"IF('Podaci o računu'!K44=\"Popust\",\"Popust \"&'Podaci o računu'!L44&\"%\",IF('Podaci o računu'!K44=\"Pribitek\",\"Pribitek \"&'Podaci o računu'!L44&\"%\",\"\"))","v":""},{"$f":"IF('Podaci o računu'!M44=\"\",\"\",'Podaci o računu'!M44)","v":""},{"$f":"IF('Podaci o računu'!N44=\"\",\"\",'Podaci o računu'!N44)","v":""},{"$f":"IF('Podaci o računu'!O44=\"\",\"\",'Podaci o računu'!O44)","v":""},{"$f":"IF('Podaci o računu'!P44=\"\",\"\",'Podaci o računu'!P44)","v":""},{"$f":"IF('Podaci o računu'!Q44=\"\",\"\",'Podaci o računu'!Q44)","v":""}]
[null,{"$f":"IF('Podaci o računu'!F45=\"\",\"\",'Podaci o računu'!F45)","v":""},null,null,{"$f":"IF('Podaci o računu'!H45=\"\",\"\",'Podaci o računu'!H45)","v":""},{"$f":"IF('Podaci o računu'!I45=\"\",\"\",IF('Podaci o računu'!I45=\"kos\",\"kom\",'Podaci o računu'!I45))","v":""},{"$f":"IF('Podaci o računu'!J45=\"\",\"\",'Podaci o računu'!J45)","v":""},{"$f":"IF('Podaci o računu'!K45=\"Popust\",\"Popust \"&'Podaci o računu'!L45&\"%\",IF('Podaci o računu'!K45=\"Pribitek\",\"Pribitek \"&'Podaci o računu'!L45&\"%\",\"\"))","v":""},{"$f":"IF('Podaci o računu'!M45=\"\",\"\",'Podaci o računu'!M45)","v":""},{"$f":"IF('Podaci o računu'!N45=\"\",\"\",'Podaci o računu'!N45)","v":""},{"$f":"IF('Podaci o računu'!O45=\"\",\"\",'Podaci o računu'!O45)","v":""},{"$f":"IF('Podaci o računu'!P45=\"\",\"\",'Podaci o računu'!P45)","v":""},{"$f":"IF('Podaci o računu'!Q45=\"\",\"\",'Podaci o računu'!Q45)","v":""}]
[null,{"$f":"IF('Podaci o računu'!F46=\"\",\"\",'Podaci o računu'!F46)","v":""},null,null,{"$f":"IF('Podaci o računu'!H46=\"\",\"\",'Podaci o računu'!H46)","v":""},{"$f":"IF('Podaci o računu'!I46=\"\",\"\",IF('Podaci o računu'!I46=\"kos\",\"kom\",'Podaci o računu'!I46))","v":""},{"$f":"IF('Podaci o računu'!J46=\"\",\"\",'Podaci o računu'!J46)","v":""},{"$f":"IF('Podaci o računu'!K46=\"Popust\",\"Popust \"&'Podaci o računu'!L46&\"%\",IF('Podaci o računu'!K46=\"Pribitek\",\"Pribitek \"&'Podaci o računu'!L46&\"%\",\"\"))","v":""},{"$f":"IF('Podaci o računu'!M46=\"\",\"\",'Podaci o računu'!M46)","v":""},{"$f":"IF('Podaci o računu'!N46=\"\",\"\",'Podaci o računu'!N46)","v":""},{"$f":"IF('Podaci o računu'!O46=\"\",\"\",'Podaci o računu'!O46)","v":""},{"$f":"IF('Podaci o računu'!P46=\"\",\"\",'Podaci o računu'!P46)","v":""},{"$f":"IF('Podaci o računu'!Q46=\"\",\"\",'Podaci o računu'!Q46)","v":""}]
[]
[null,"Specifikacija zneska DDV",null,null,null,null,null,null,null,"Vrednost",null,{"$f":"ROUND(SUM('Podaci o računu'!V27:V46),2)","v":0},null,null,"dav. st."]
[null,"DDV %","Osnova DDV","Znesek DDV",null,null,null,null,null,"Popusti",null,{"$f":"ROUND(SUM('Podaci o računu'!T27:T46),2)","v":0},null,null,22]
[null,0,1000,0,null,null,null,null,null,"Pribitki",null,{"$f":"ROUND(SUM('Podaci o računu'!U27:U46),2)","v":0},null,null,"9,5"]
[null,null,null,null,null,null,null,null,null,{"$f":"\"Vrednost \"&'[1]Podaci o računu'!G9&\" brez DDV\"","v":"Vrednost EUR brez DDV"},null,{"$f":"L40-L41+L42","v":0},null,null,0]
[null,null,null,null,null,null,null,null,null,"Znesek DDV",null,{"$f":"ROUND(SUM('Podaci o računu'!X27:X46),2)","v":0},null,null,25]
[null,null,null,null,null,null,null,null,null,{"$f":"\"Za plačilo \"&'[1]Podaci o računu'!G9&\" z DDV\"","v":"Za plačilo EUR z DDV"},null,{"$f":"L43+L44","v":0},null,null,13]
[null,null,null,null,null,null,null,null,null,null,null,null,null,null,5]
[]
[]
[]
[]
[null,{"$f":"IF('Podaci o računu'!G23=\"\",\"\",'Podaci o računu'!G23)","v":""}]
[]
[null,{"$f":"IF('Podaci o računu'!G22=\"\",\"\",'Podaci o računu'!G22)","v":""}]
[]
[null,{"$f":"IF(HLOOKUP('Podaci o računu'!C6,Izdavaoci!C4:E17,14,FALSE)=0,\"\",HLOOKUP('Podaci o računu'!C6,Izdavaoci!C4:E17,14,FALSE))","v":""}]
[null,null,null,null,null,null,null,null,null,null,null,null,"bizBox Excel eRačun powered by ZZI d.o.o. | www.zzi.me | www.bizbox.eu | info@zzi.me"]

{"sheet":"Račun HR","index":4,"n_rows":56,"n_cols":15,"rows_kept":56,"cut":false,"hidden":false,"merged":[[27,1,27,3],[15,1,15,12],[17,1,17,3],[18,1,18,3],[19,1,19,3],[20,1,20,3],[21,1,21,3],[22,1,22,3],[23,1,23,3],[24,1,24,3],[25,1,25,3],[26,1,26,3],[40,11,40,12],[28,1,28,3],[29,1,29,3],[30,1,30,3],[31,1,31,3],[32,1,32,3],[33,1,33,3],[34,1,34,3],[35,1,35,3],[36,1,36,3],[37,1,37,3],[39,11,39,12],[54,1,54,12],[41,11,41,12],[42,11,42,12],[43,11,43,12],[44,11,44,12],[50,1,51,12],[52,1,53,12]]}
[null,{"$f":"'Podaci o računu'!C6&\", \"&'Podaci o računu'!C7&\", \"&'Podaci o računu'!C8&\" \"&'Podaci o računu'!C9&\", \"&'Podaci o računu'!C10","v":"ZZI doo Podgorica, ul Moskovska 77, 81000 Podgorica, ME"}]
[null,{"$f":"IF('Podaci o računu'!C11<>\"\",\"\"&'Podaci o računu'!C11&\", E: \"&'Podaci o računu'!C12&\", T: \"&'Podaci o računu'!C13,\"\"&\"E: \"&'Podaci o računu'!C12&\", T: \"&'Podaci o računu'!C13)","v":"Jelena Milojković, E: info@zzi.co.me, T: 38220229560"}]
[null,{"$f":"IF('Podaci o računu'!C16=\"DA\",\"PDV ID: \"&'Podaci o računu'!C10&'Podaci o računu'!C15,\"Poreski Broj: \"&'Podaci o računu'!C15)","v":"PDV ID: ME02328097"}]
[null,{"$f":"\"IBAN: \"&'Podaci o računu'!C17&\", BIC: \"&'Podaci o računu'!C18","v":"IBAN: , BIC: "}]
[]
[null,"KUPAC",null,null,null,"PRIMALAC",null,null,null,{"$f":"'Podaci o računu'!G6&\" br. \"&'Podaci o računu'!G7","v":"Račun br. "}]
[null,{"$f":"'Podaci o računu'!C22","v":"ZZI doo Podgorica"},null,null,null,{"$f":"'Podaci o računu'!C36","v":"ZZI doo Podgorica"},null,null,null,"Datum izdavanja",null,null,{"$f":"TEXT('Podaci o računu'!G10,\"dd.mm.yyyy\")","v":"00.01.1900"}]
[null,{"$f":"'Podaci o računu'!C23","v":"Vladimir Ćetković"},null,null,null,{"$f":"'Podaci o računu'!C37","v":"Vladimir Ćetković"},null,null,null,"Datum usluge/isporuke robe",null,null,{"$f":"IF('Podaci o računu'!G12=\"\",\"-\",\"\"&TEXT('Podaci o računu'!G12,\"dd.mm.yyyy\"))","v":"-"}]
[null,{"$f":"'Podaci o računu'!C24","v":"ul. Moskovska 77"},null,null,null,{"$f":"'Podaci o računu'!C38","v":"ul. Moskovska 77"},null,null,null,"Razdoblje usluge",null,null,{"$f":"IF(OR('Podaci o računu'!G13=\"\",'Podaci o računu'!I13=\"\"),\"-\",\"\"&TEXT('Podaci o računu'!G13,\"dd.mm.yyyy\")&\" do \"&TEXT('Podaci o računu'!I13,\"dd.mm.yyyy\"))","v":"-"}]
[null,{"$f":"'Podaci o računu'!C25&\" \"&'Podaci o računu'!C26","v":"81000 Podgorica"},null,null,null,{"$f":"'Podaci o računu'!C39&\" \"&'Podaci o računu'!C40","v":"81000 Podgorica"},null,null,null,"Datum dospijeća",null,null,{"$f":"TEXT('Podaci o računu'!G11,\"dd.mm.yyyy\")","v":"00.01.1900"}]
[null,{"$f":"'Podaci o računu'!C27","v":"ME"},null,null,null,{"$f":"'Podaci o računu'!C41","v":"ME"},null,null,null,"Referentni dokument",null,null,{"$f":"'Podaci o računu'!G14&\" \"&'Podaci o računu'!G15","v":" "}]
[null,{"$f":"IF('Podaci o računu'!C30=\"DA\",\"PDV ID: \"&'Podaci o računu'!C27&'Podaci o računu'!C29,\"Poreski broj: \"&'Podaci o računu'!C29)","v":"PDV ID: ME02328097"},null,null,null,null,null,null,null,"Poziv na broj",null,null,{"$f":"IF('Podaci o računu'!G8=\"\",\"\",'Podaci o računu'!G8)","v":""}]
[null,{"$f":"'Podaci o računu'!C31&IF(AND('Podaci o računu'!C31<>\"\",'Podaci o računu'!C32<>\"\"),\", \",\"\")&'Podaci o računu'!C32","v":""},null,null,null,null,null,null,null,"Šifra namjene",null,null,{"$f":"'Podaci o računu'!G17","v":"OTHR"}]
[null,null,null,null,null,null,null,null,null,"Troškovno mjesto",null,null,{"$f":"IF('Podaci o računu'!G20=\"\",\"\",'Podaci o računu'!G20)","v":""}]
[]
[null,{"$f":"IF('Podaci o računu'!G21=\"\",\"\",'Podaci o računu'!G21)","v":""}]
[]
[null,"Naziv",null,null,"Količina","Jed.Mjere","Cijena","Popust/\nKazna","Razlog","Troškovno mjesto","PDV %","Iznos","Iznos sa PDV-om"]
[null,{"$f":"IF('Podaci o računu'!F27=\"\",\"\",'Podaci o računu'!F27)","v":""},null,null,{"$f":"IF('Podaci o računu'!H27=\"\",\"\",'Podaci o računu'!H27)","v":""},{"$f":"IF('Podaci o računu'!I27=\"\",\"\",'Podaci o računu'!I27)","v":""},{"$f":"IF('Podaci o računu'!J27=\"\",\"\",'Podaci o računu'!J27)","v":""},{"$f":"IF('Podaci o računu'!K27=\"Popust\",\"Popust \"&'Podaci o računu'!L27&\"%\",IF('Podaci o računu'!K27=\"Pribitek\",\"Pribitek \"&'Podaci o računu'!L27&\"%\",\"\"))","v":""},{"$f":"IF('Podaci o računu'!M27=\"\",\"\",'Podaci o računu'!M27)","v":""},{"$f":"IF('Podaci o računu'!N27=\"\",\"\",'Podaci o računu'!N27)","v":""},{"$f":"IF('Podaci o računu'!O27=\"\",\"\",'Podaci o računu'!O27)","v":0},{"$f":"IF('Podaci o računu'!P27=\"\",\"\",'Podaci o računu'!P27)","v":""},{"$f":"IF('Podaci o računu'!Q27=\"\",\"\",'Podaci o računu'!Q27)","v":""}]
[null,{"$f":"IF('Podaci o računu'!F28=\"\",\"\",'Podaci o računu'!F28)","v":""},null,null,{"$f":"IF('Podaci o računu'!H28=\"\",\"\",'Podaci o računu'!H28)","v":""},{"$f":"IF('Podaci o računu'!I28=\"\",\"\",'Podaci o računu'!I28)","v":""},{"$f":"IF('Podaci o računu'!J28=\"\",\"\",'Podaci o računu'!J28)","v":""},{"$f":"IF('Podaci o računu'!K28=\"Popust\",\"Popust \"&'Podaci o računu'!L28&\"%\",IF('Podaci o računu'!K28=\"Pribitek\",\"Pribitek \"&'Podaci o računu'!L28&\"%\",\"\"))","v":""},{"$f":"IF('Podaci o računu'!M28=\"\",\"\",'Podaci o računu'!M28)","v":""},{"$f":"IF('Podaci o računu'!N28=\"\",\"\",'Podaci o računu'!N28)","v":""},{"$f":"IF('Podaci o računu'!O28=\"\",\"\",'Podaci o računu'!O28)","v":""},{"$f":"IF('Podaci o računu'!P28=\"\",\"\",'Podaci o računu'!P28)","v":""},{"$f":"IF('Podaci o računu'!Q28=\"\",\"\",'Podaci o računu'!Q28)","v":""}]
[null,{"$f":"IF('Podaci o računu'!F29=\"\",\"\",'Podaci o računu'!F29)","v":""},null,null,{"$f":"IF('Podaci o računu'!H29=\"\",\"\",'Podaci o računu'!H29)","v":""},{"$f":"IF('Podaci o računu'!I29=\"\",\"\",'Podaci o računu'!I29)","v":""},{"$f":"IF('Podaci o računu'!J29=\"\",\"\",'Podaci o računu'!J29)","v":""},{"$f":"IF('Podaci o računu'!K29=\"Popust\",\"Popust \"&'Podaci o računu'!L29&\"%\",IF('Podaci o računu'!K29=\"Pribitek\",\"Pribitek \"&'Podaci o računu'!L29&\"%\",\"\"))","v":""},{"$f":"IF('Podaci o računu'!M29=\"\",\"\",'Podaci o računu'!M29)","v":""},{"$f":"IF('Podaci o računu'!N29=\"\",\"\",'Podaci o računu'!N29)","v":""},{"$f":"IF('Podaci o računu'!O29=\"\",\"\",'Podaci o računu'!O29)","v":""},{"$f":"IF('Podaci o računu'!P29=\"\",\"\",'Podaci o računu'!P29)","v":""},{"$f":"IF('Podaci o računu'!Q29=\"\",\"\",'Podaci o računu'!Q29)","v":""}]
[null,{"$f":"IF('Podaci o računu'!F30=\"\",\"\",'Podaci o računu'!F30)","v":""},null,null,{"$f":"IF('Podaci o računu'!H30=\"\",\"\",'Podaci o računu'!H30)","v":""},{"$f":"IF('Podaci o računu'!I30=\"\",\"\",'Podaci o računu'!I30)","v":""},{"$f":"IF('Podaci o računu'!J30=\"\",\"\",'Podaci o računu'!J30)","v":""},{"$f":"IF('Podaci o računu'!K30=\"Popust\",\"Popust \"&'Podaci o računu'!L30&\"%\",IF('Podaci o računu'!K30=\"Pribitek\",\"Pribitek \"&'Podaci o računu'!L30&\"%\",\"\"))","v":""},{"$f":"IF('Podaci o računu'!M30=\"\",\"\",'Podaci o računu'!M30)","v":""},{"$f":"IF('Podaci o računu'!N30=\"\",\"\",'Podaci o računu'!N30)","v":""},{"$f":"IF('Podaci o računu'!O30=\"\",\"\",'Podaci o računu'!O30)","v":""},{"$f":"IF('Podaci o računu'!P30=\"\",\"\",'Podaci o računu'!P30)","v":""},{"$f":"IF('Podaci o računu'!Q30=\"\",\"\",'Podaci o računu'!Q30)","v":""}]
[null,{"$f":"IF('Podaci o računu'!F31=\"\",\"\",'Podaci o računu'!F31)","v":""},null,null,{"$f":"IF('Podaci o računu'!H31=\"\",\"\",'Podaci o računu'!H31)","v":""},{"$f":"IF('Podaci o računu'!I31=\"\",\"\",'Podaci o računu'!I31)","v":""},{"$f":"IF('Podaci o računu'!J31=\"\",\"\",'Podaci o računu'!J31)","v":""},{"$f":"IF('Podaci o računu'!K31=\"Popust\",\"Popust \"&'Podaci o računu'!L31&\"%\",IF('Podaci o računu'!K31=\"Pribitek\",\"Pribitek \"&'Podaci o računu'!L31&\"%\",\"\"))","v":""},{"$f":"IF('Podaci o računu'!M31=\"\",\"\",'Podaci o računu'!M31)","v":""},{"$f":"IF('Podaci o računu'!N31=\"\",\"\",'Podaci o računu'!N31)","v":""},{"$f":"IF('Podaci o računu'!O31=\"\",\"\",'Podaci o računu'!O31)","v":""},{"$f":"IF('Podaci o računu'!P31=\"\",\"\",'Podaci o računu'!P31)","v":""},{"$f":"IF('Podaci o računu'!Q31=\"\",\"\",'Podaci o računu'!Q31)","v":""}]
[null,{"$f":"IF('Podaci o računu'!F32=\"\",\"\",'Podaci o računu'!F32)","v":""},null,null,{"$f":"IF('Podaci o računu'!H32=\"\",\"\",'Podaci o računu'!H32)","v":""},{"$f":"IF('Podaci o računu'!I32=\"\",\"\",'Podaci o računu'!I32)","v":""},{"$f":"IF('Podaci o računu'!J32=\"\",\"\",'Podaci o računu'!J32)","v":""},{"$f":"IF('Podaci o računu'!K32=\"Popust\",\"Popust \"&'Podaci o računu'!L32&\"%\",IF('Podaci o računu'!K32=\"Pribitek\",\"Pribitek \"&'Podaci o računu'!L32&\"%\",\"\"))","v":""},{"$f":"IF('Podaci o računu'!M32=\"\",\"\",'Podaci o računu'!M32)","v":""},{"$f":"IF('Podaci o računu'!N32=\"\",\"\",'Podaci o računu'!N32)","v":""},{"$f":"IF('Podaci o računu'!O32=\"\",\"\",'Podaci o računu'!O32)","v":""},{"$f":"IF('Podaci o računu'!P32=\"\",\"\",'Podaci o računu'!P32)","v":""},{"$f":"IF('Podaci o računu'!Q32=\"\",\"\",'Podaci o računu'!Q32)","v":""}]
[null,{"$f":"IF('Podaci o računu'!F33=\"\",\"\",'Podaci o računu'!F33)","v":""},null,null,{"$f":"IF('Podaci o računu'!H33=\"\",\"\",'Podaci o računu'!H33)","v":""},{"$f":"IF('Podaci o računu'!I33=\"\",\"\",'Podaci o računu'!I33)","v":""},{"$f":"IF('Podaci o računu'!J33=\"\",\"\",'Podaci o računu'!J33)","v":""},{"$f":"IF('Podaci o računu'!K33=\"Popust\",\"Popust \"&'Podaci o računu'!L33&\"%\",IF('Podaci o računu'!K33=\"Pribitek\",\"Pribitek \"&'Podaci o računu'!L33&\"%\",\"\"))","v":""},{"$f":"IF('Podaci o računu'!M33=\"\",\"\",'Podaci o računu'!M33)","v":""},{"$f":"IF('Podaci o računu'!N33=\"\",\"\",'Podaci o računu'!N33)","v":""},{"$f":"IF('Podaci o računu'!O33=\"\",\"\",'Podaci o računu'!O33)","v":""},{"$f":"IF('Podaci o računu'!P33=\"\",\"\",'Podaci o računu'!P33)","v":""},{"$f":"IF('Podaci o računu'!Q33=\"\",\"\",'Podaci o računu'!Q33)","v":""}]
[null,{"$f":"IF('Podaci o računu'!F34=\"\",\"\",'Podaci o računu'!F34)","v":""},null,null,{"$f":"IF('Podaci o računu'!H34=\"\",\"\",'Podaci o računu'!H34)","v":""},{"$f":"IF('Podaci o računu'!I34=\"\",\"\",'Podaci o računu'!I34)","v":""},{"$f":"IF('Podaci o računu'!J34=\"\",\"\",'Podaci o računu'!J34)","v":""},{"$f":"IF('Podaci o računu'!K34=\"Popust\",\"Popust \"&'Podaci o računu'!L34&\"%\",IF('Podaci o računu'!K34=\"Pribitek\",\"Pribitek \"&'Podaci o računu'!L34&\"%\",\"\"))","v":""},{"$f":"IF('Podaci o računu'!M34=\"\",\"\",'Podaci o računu'!M34)","v":""},{"$f":"IF('Podaci o računu'!N34=\"\",\"\",'Podaci o računu'!N34)","v":""},{"$f":"IF('Podaci o računu'!O34=\"\",\"\",'Podaci o računu'!O34)","v":""},{"$f":"IF('Podaci o računu'!P34=\"\",\"\",'Podaci o računu'!P34)","v":""},{"$f":"IF('Podaci o računu'!Q34=\"\",\"\",'Podaci o računu'!Q34)","v":""}]
[null,{"$f":"IF('Podaci o računu'!F35=\"\",\"\",'Podaci o računu'!F35)","v":""},null,null,{"$f":"IF('Podaci o računu'!H35=\"\",\"\",'Podaci o računu'!H35)","v":""},{"$f":"IF('Podaci o računu'!I35=\"\",\"\",'Podaci o računu'!I35)","v":""},{"$f":"IF('Podaci o računu'!J35=\"\",\"\",'Podaci o računu'!J35)","v":""},{"$f":"IF('Podaci o računu'!K35=\"Popust\",\"Popust \"&'Podaci o računu'!L35&\"%\",IF('Podaci o računu'!K35=\"Pribitek\",\"Pribitek \"&'Podaci o računu'!L35&\"%\",\"\"))","v":""},{"$f":"IF('Podaci o računu'!M35=\"\",\"\",'Podaci o računu'!M35)","v":""},{"$f":"IF('Podaci o računu'!N35=\"\",\"\",'Podaci o računu'!N35)","v":""},{"$f":"IF('Podaci o računu'!O35=\"\",\"\",'Podaci o računu'!O35)","v":""},{"$f":"IF('Podaci o računu'!P35=\"\",\"\",'Podaci o računu'!P35)","v":""},{"$f":"IF('Podaci o računu'!Q35=\"\",\"\",'Podaci o računu'!Q35)","v":""}]
[null,{"$f":"IF('Podaci o računu'!F36=\"\",\"\",'Podaci o računu'!F36)","v":""},null,null,{"$f":"IF('Podaci o računu'!H36=\"\",\"\",'Podaci o računu'!H36)","v":""},{"$f":"IF('Podaci o računu'!I36=\"\",\"\",'Podaci o računu'!I36)","v":""},{"$f":"IF('Podaci o računu'!J36=\"\",\"\",'Podaci o računu'!J36)","v":""},{"$f":"IF('Podaci o računu'!K36=\"Popust\",\"Popust \"&'Podaci o računu'!L36&\"%\",IF('Podaci o računu'!K36=\"Pribitek\",\"Pribitek \"&'Podaci o računu'!L36&\"%\",\"\"))","v":""},{"$f":"IF('Podaci o računu'!M36=\"\",\"\",'Podaci o računu'!M36)","v":""},{"$f":"IF('Podaci o računu'!N36=\"\",\"\",'Podaci o računu'!N36)","v":""},{"$f":"IF('Podaci o računu'!O36=\"\",\"\",'Podaci o računu'!O36)","v":""},{"$f":"IF('Podaci o računu'!P36=\"\",\"\",'Podaci o računu'!P36)","v":""},{"$f":"IF('Podaci o računu'!Q36=\"\",\"\",'Podaci o računu'!Q36)","v":""}]
[null,{"$f":"IF('Podaci o računu'!F37=\"\",\"\",'Podaci o računu'!F37)","v":""},null,null,{"$f":"IF('Podaci o računu'!H37=\"\",\"\",'Podaci o računu'!H37)","v":""},{"$f":"IF('Podaci o računu'!I37=\"\",\"\",'Podaci o računu'!I37)","v":""},{"$f":"IF('Podaci o računu'!J37=\"\",\"\",'Podaci o računu'!J37)","v":""},{"$f":"IF('Podaci o računu'!K37=\"Popust\",\"Popust \"&'Podaci o računu'!L37&\"%\",IF('Podaci o računu'!K37=\"Pribitek\",\"Pribitek \"&'Podaci o računu'!L37&\"%\",\"\"))","v":""},{"$f":"IF('Podaci o računu'!M37=\"\",\"\",'Podaci o računu'!M37)","v":""},{"$f":"IF('Podaci o računu'!N37=\"\",\"\",'Podaci o računu'!N37)","v":""},{"$f":"IF('Podaci o računu'!O37=\"\",\"\",'Podaci o računu'!O37)","v":""},{"$f":"IF('Podaci o računu'!P37=\"\",\"\",'Podaci o računu'!P37)","v":""},{"$f":"IF('Podaci o računu'!Q37=\"\",\"\",'Podaci o računu'!Q37)","v":""}]
[null,{"$f":"IF('Podaci o računu'!F38=\"\",\"\",'Podaci o računu'!F38)","v":""},null,null,{"$f":"IF('Podaci o računu'!H38=\"\",\"\",'Podaci o računu'!H38)","v":""},{"$f":"IF('Podaci o računu'!I38=\"\",\"\",'Podaci o računu'!I38)","v":""},{"$f":"IF('Podaci o računu'!J38=\"\",\"\",'Podaci o računu'!J38)","v":""},{"$f":"IF('Podaci o računu'!K38=\"Popust\",\"Popust \"&'Podaci o računu'!L38&\"%\",IF('Podaci o računu'!K38=\"Pribitek\",\"Pribitek \"&'Podaci o računu'!L38&\"%\",\"\"))","v":""},{"$f":"IF('Podaci o računu'!M38=\"\",\"\",'Podaci o računu'!M38)","v":""},{"$f":"IF('Podaci o računu'!N38=\"\",\"\",'Podaci o računu'!N38)","v":""},{"$f":"IF('Podaci o računu'!O38=\"\",\"\",'Podaci o računu'!O38)","v":""},{"$f":"IF('Podaci o računu'!P38=\"\",\"\",'Podaci o računu'!P38)","v":""},{"$f":"IF('Podaci o računu'!Q38=\"\",\"\",'Podaci o računu'!Q38)","v":""}]
[null,{"$f":"IF('Podaci o računu'!F39=\"\",\"\",'Podaci o računu'!F39)","v":""},null,null,{"$f":"IF('Podaci o računu'!H39=\"\",\"\",'Podaci o računu'!H39)","v":""},{"$f":"IF('Podaci o računu'!I39=\"\",\"\",'Podaci o računu'!I39)","v":""},{"$f":"IF('Podaci o računu'!J39=\"\",\"\",'Podaci o računu'!J39)","v":""},{"$f":"IF('Podaci o računu'!K39=\"Popust\",\"Popust \"&'Podaci o računu'!L39&\"%\",IF('Podaci o računu'!K39=\"Pribitek\",\"Pribitek \"&'Podaci o računu'!L39&\"%\",\"\"))","v":""},{"$f":"IF('Podaci o računu'!M39=\"\",\"\",'Podaci o računu'!M39)","v":""},{"$f":"IF('Podaci o računu'!N39=\"\",\"\",'Podaci o računu'!N39)","v":""},{"$f":"IF('Podaci o računu'!O39=\"\",\"\",'Podaci o računu'!O39)","v":""},{"$f":"IF('Podaci o računu'!P39=\"\",\"\",'Podaci o računu'!P39)","v":""},{"$f":"IF('Podaci o računu'!Q39=\"\",\"\",'Podaci o računu'!Q39)","v":""}]
[null,{"$f":"IF('Podaci o računu'!F40=\"\",\"\",'Podaci o računu'!F40)","v":""},null,null,{"$f":"IF('Podaci o računu'!H40=\"\",\"\",'Podaci o računu'!H40)","v":""},{"$f":"IF('Podaci o računu'!I40=\"\",\"\",'Podaci o računu'!I40)","v":""},{"$f":"IF('Podaci o računu'!J40=\"\",\"\",'Podaci o računu'!J40)","v":""},{"$f":"IF('Podaci o računu'!K40=\"Popust\",\"Popust \"&'Podaci o računu'!L40&\"%\",IF('Podaci o računu'!K40=\"Pribitek\",\"Pribitek \"&'Podaci o računu'!L40&\"%\",\"\"))","v":""},{"$f":"IF('Podaci o računu'!M40=\"\",\"\",'Podaci o računu'!M40)","v":""},{"$f":"IF('Podaci o računu'!N40=\"\",\"\",'Podaci o računu'!N40)","v":""},{"$f":"IF('Podaci o računu'!O40=\"\",\"\",'Podaci o računu'!O40)","v":""},{"$f":"IF('Podaci o računu'!P40=\"\",\"\",'Podaci o računu'!P40)","v":""},{"$f":"IF('Podaci o računu'!Q40=\"\",\"\",'Podaci o računu'!Q40)","v":""}]
[null,{"$f":"IF('Podaci o računu'!F41=\"\",\"\",'Podaci o računu'!F41)","v":""},null,null,{"$f":"IF('Podaci o računu'!H41=\"\",\"\",'Podaci o računu'!H41)","v":""},{"$f":"IF('Podaci o računu'!I41=\"\",\"\",'Podaci o računu'!I41)","v":""},{"$f":"IF('Podaci o računu'!J41=\"\",\"\",'Podaci o računu'!J41)","v":""},{"$f":"IF('Podaci o računu'!K41=\"Popust\",\"Popust \"&'Podaci o računu'!L41&\"%\",IF('Podaci o računu'!K41=\"Pribitek\",\"Pribitek \"&'Podaci o računu'!L41&\"%\",\"\"))","v":""},{"$f":"IF('Podaci o računu'!M41=\"\",\"\",'Podaci o računu'!M41)","v":""},{"$f":"IF('Podaci o računu'!N41=\"\",\"\",'Podaci o računu'!N41)","v":""},{"$f":"IF('Podaci o računu'!O41=\"\",\"\",'Podaci o računu'!O41)","v":""},{"$f":"IF('Podaci o računu'!P41=\"\",\"\",'Podaci o računu'!P41)","v":""},{"$f":"IF('Podaci o računu'!Q41=\"\",\"\",'Podaci o računu'!Q41)","v":""}]
[null,{"$f":"IF('Podaci o računu'!F42=\"\",\"\",'Podaci o računu'!F42)","v":""},null,null,{"$f":"IF('Podaci o računu'!H42=\"\",\"\",'Podaci o računu'!H42)","v":""},{"$f":"IF('Podaci o računu'!I42=\"\",\"\",'Podaci o računu'!I42)","v":""},{"$f":"IF('Podaci o računu'!J42=\"\",\"\",'Podaci o računu'!J42)","v":""},{"$f":"IF('Podaci o računu'!K42=\"Popust\",\"Popust \"&'Podaci o računu'!L42&\"%\",IF('Podaci o računu'!K42=\"Pribitek\",\"Pribitek \"&'Podaci o računu'!L42&\"%\",\"\"))","v":""},{"$f":"IF('Podaci o računu'!M42=\"\",\"\",'Podaci o računu'!M42)","v":""},{"$f":"IF('Podaci o računu'!N42=\"\",\"\",'Podaci o računu'!N42)","v":""},{"$f":"IF('Podaci o računu'!O42=\"\",\"\",'Podaci o računu'!O42)","v":""},{"$f":"IF('Podaci o računu'!P42=\"\",\"\",'Podaci o računu'!P42)","v":""},{"$f":"IF('Podaci o računu'!Q42=\"\",\"\",'Podaci o računu'!Q42)","v":""}]
[null,{"$f":"IF('Podaci o računu'!F43=\"\",\"\",'Podaci o računu'!F43)","v":""},null,null,{"$f":"IF('Podaci o računu'!H43=\"\",\"\",'Podaci o računu'!H43)","v":""},{"$f":"IF('Podaci o računu'!I43=\"\",\"\",'Podaci o računu'!I43)","v":""},{"$f":"IF('Podaci o računu'!J43=\"\",\"\",'Podaci o računu'!J43)","v":""},{"$f":"IF('Podaci o računu'!K43=\"Popust\",\"Popust \"&'Podaci o računu'!L43&\"%\",IF('Podaci o računu'!K43=\"Pribitek\",\"Pribitek \"&'Podaci o računu'!L43&\"%\",\"\"))","v":""},{"$f":"IF('Podaci o računu'!M43=\"\",\"\",'Podaci o računu'!M43)","v":""},{"$f":"IF('Podaci o računu'!N43=\"\",\"\",'Podaci o računu'!N43)","v":""},{"$f":"IF('Podaci o računu'!O43=\"\",\"\",'Podaci o računu'!O43)","v":""},{"$f":"IF('Podaci o računu'!P43=\"\",\"\",'Podaci o računu'!P43)","v":""},{"$f":"IF('Podaci o računu'!Q43=\"\",\"\",'Podaci o računu'!Q43)","v":""}]
[null,{"$f":"IF('Podaci o računu'!F44=\"\",\"\",'Podaci o računu'!F44)","v":""},null,null,{"$f":"IF('Podaci o računu'!H44=\"\",\"\",'Podaci o računu'!H44)","v":""},{"$f":"IF('Podaci o računu'!I44=\"\",\"\",'Podaci o računu'!I44)","v":""},{"$f":"IF('Podaci o računu'!J44=\"\",\"\",'Podaci o računu'!J44)","v":""},{"$f":"IF('Podaci o računu'!K44=\"Popust\",\"Popust \"&'Podaci o računu'!L44&\"%\",IF('Podaci o računu'!K44=\"Pribitek\",\"Pribitek \"&'Podaci o računu'!L44&\"%\",\"\"))","v":""},{"$f":"IF('Podaci o računu'!M44=\"\",\"\",'Podaci o računu'!M44)","v":""},{"$f":"IF('Podaci o računu'!N44=\"\",\"\",'Podaci o računu'!N44)","v":""},{"$f":"IF('Podaci o računu'!O44=\"\",\"\",'Podaci o računu'!O44)","v":""},{"$f":"IF('Podaci o računu'!P44=\"\",\"\",'Podaci o računu'!P44)","v":""},{"$f":"IF('Podaci o računu'!Q44=\"\",\"\",'Podaci o računu'!Q44)","v":""}]
[null,{"$f":"IF('Podaci o računu'!F45=\"\",\"\",'Podaci o računu'!F45)","v":""},null,null,{"$f":"IF('Podaci o računu'!H45=\"\",\"\",'Podaci o računu'!H45)","v":""},{"$f":"IF('Podaci o računu'!I45=\"\",\"\",'Podaci o računu'!I45)","v":""},{"$f":"IF('Podaci o računu'!J45=\"\",\"\",'Podaci o računu'!J45)","v":""},{"$f":"IF('Podaci o računu'!K45=\"Popust\",\"Popust \"&'Podaci o računu'!L45&\"%\",IF('Podaci o računu'!K45=\"Pribitek\",\"Pribitek \"&'Podaci o računu'!L45&\"%\",\"\"))","v":""},{"$f":"IF('Podaci o računu'!M45=\"\",\"\",'Podaci o računu'!M45)","v":""},{"$f":"IF('Podaci o računu'!N45=\"\",\"\",'Podaci o računu'!N45)","v":""},{"$f":"IF('Podaci o računu'!O45=\"\",\"\",'Podaci o računu'!O45)","v":""},{"$f":"IF('Podaci o računu'!P45=\"\",\"\",'Podaci o računu'!P45)","v":""},{"$f":"IF('Podaci o računu'!Q45=\"\",\"\",'Podaci o računu'!Q45)","v":""}]
[null,{"$f":"IF('Podaci o računu'!F46=\"\",\"\",'Podaci o računu'!F46)","v":""},null,null,{"$f":"IF('Podaci o računu'!H46=\"\",\"\",'Podaci o računu'!H46)","v":""},{"$f":"IF('Podaci o računu'!I46=\"\",\"\",'Podaci o računu'!I46)","v":""},{"$f":"IF('Podaci o računu'!J46=\"\",\"\",'Podaci o računu'!J46)","v":""},{"$f":"IF('Podaci o računu'!K46=\"Popust\",\"Popust \"&'Podaci o računu'!L46&\"%\",IF('Podaci o računu'!K46=\"Pribitek\",\"Pribitek \"&'Podaci o računu'!L46&\"%\",\"\"))","v":""},{"$f":"IF('Podaci o računu'!M46=\"\",\"\",'Podaci o računu'!M46)","v":""},{"$f":"IF('Podaci o računu'!N46=\"\",\"\",'Podaci o računu'!N46)","v":""},{"$f":"IF('Podaci o računu'!O46=\"\",\"\",'Podaci o računu'!O46)","v":""},{"$f":"IF('Podaci o računu'!P46=\"\",\"\",'Podaci o računu'!P46)","v":""},{"$f":"IF('Podaci o računu'!Q46=\"\",\"\",'Podaci o računu'!Q46)","v":""}]
[]
[null,"Specifikacija iznosa za PDV",null,null,null,null,null,null,null,"Vrijednost",null,{"$f":"ROUND(SUM('Podaci o računu'!V27:V46),2)","v":0},null,null,"dav. st."]
[null,"PDV %","Osnova PDV","Iznos PDV",null,null,null,null,null,"Popusti",null,{"$f":"ROUND(SUM('Podaci o računu'!T27:T46),2)","v":0},null,null,22]
[null,null,null,null,null,null,null,null,null,"Dodaci",null,{"$f":"ROUND(SUM('Podaci o računu'!U27:U46),2)","v":0},null,null,"9.5"]
[null,null,null,null,null,null,null,null,null,{"$f":"\"Ukupno \"&'Podaci o računu'!G9&\" bez PDV\"","v":"Ukupno EUR bez PDV"},null,{"$f":"L40-L41+L42","v":0},null,null,0]
[null,null,null,null,null,null,null,null,null,"Iznos PDV",null,{"$f":"ROUND(SUM('Podaci o računu'!X27:X46),2)","v":0},null,null,25]
[null,null,null,null,null,null,null,null,null,{"$f":"\"Ukupno \"&'Podaci o računu'!G9&\" sa PDV\"","v":"Ukupno EUR sa PDV"},null,{"$f":"L43+L44","v":0},null,null,13]
[null,null,null,null,null,null,null,null,null,null,null,null,null,null,5]
[]
[]
[]
[]
[null,{"$f":"IF('Podaci o računu'!G23=\"\",\"\",'Podaci o računu'!G23)","v":""}]
[]
[null,{"$f":"IF('Podaci o računu'!G22=\"\",\"\",'Podaci o računu'!G22)","v":""}]
[]
[null,{"$f":"IF(HLOOKUP('Podaci o računu'!C6,Izdavaoci!C4:E17,14,FALSE)=0,\"\",HLOOKUP('Podaci o računu'!C6,Izdavaoci!C4:E17,14,FALSE))","v":""}]
[null,null,null,null,null,null,null,null,null,null,null,null,"bizBox Excel eRačun powered by ZZI d.o.o. | www.zzi.me | www.bizbox.eu | info@zzi.me"]

{"sheet":"Kupci","index":5,"n_rows":1003,"n_cols":16,"rows_kept":1003,"cut":false,"hidden":false,"merged":[]}
[null,"KUPCI",null,null,null,null,null,null,null,null,null,null,"bizBox Excel eRačun"]
[null,"ID","Naziv","Kontakt osoba","Adresa","Poštanski broj","Grad","Država","Matični broj","Poreski broj","Obveznik za PDV","IBAN","BIC","Šifra\nlokacije",null,"TEMP"]
[null,1,"ZZI doo","Polonca Plesec","Pot k sejmišču 33",1231,"Ljubljana - Črnuče","SI",5366569000,"SI85190586","DA",null,null,null,null,{"$f":"B3&IF(AND(C3=\"\",D3=\"\",E3=\"\"),\"\",\" - \")&C3&IF(OR(D3=\"\",C3=\"\"),\"\",\" - \")&D3","v":"1 - ZZI doo - Polonca Plesec"}]
[null,2,"ZZI doo Podgorica","Vladimir Ćetković","ul. Moskovska 77",81000,"Podgorica","ME","02328097","02328097","DA",null,null,null,null,{"$f":"B4&IF(AND(C4=\"\",D4=\"\",E4=\"\"),\"\",\" - \")&C4&IF(OR(D4=\"\",C4=\"\"),\"\",\" - \")&D4","v":"2 - ZZI doo Podgorica - Vladimir Ćetković"}]
[null,null,null,null,null,null,null,null,null,null,null,null,null,null,null,{"$f":"B5&IF(AND(C5=\"\",D5=\"\",E5=\"\"),\"\",\" - \")&C5&IF(OR(D5=\"\",C5=\"\"),\"\",\" - \")&D5","v":""}]
[null,null,null,null,null,null,null,null,null,null,null,null,null,null,null,{"$f":"B6&IF(AND(C6=\"\",D6=\"\",E6=\"\"),\"\",\" - \")&C6&IF(OR(D6=\"\",C6=\"\"),\"\",\" - \")&D6","v":""}]
[null,null,null,null,null,null,null,null,null,null,null,null,null,null,null,""]
[null,null,null,null,null,null,null,null,null,null,null,null,null,null,null,""]
[null,null,null,null,null,null,null,null,null,null,null,null,null,null,null,""]
[null,null,null,null,null,null,null,null,null,null,null,null,null,null,null,""]
[null,null,null,null,null,null,null,null,null,null,null,null,null,null,null,""]
[null,null,null,null,null,null,null,null,null,null,null,null,null,null,null,""]
[null,null,null,null,null,null,null,null,null,null,null,null,null,null,null,""]
[null,null,null,null,null,null,null,null,null,null,null,null,null,null,null,""]
[null,null,null,null,null,null,null,null,null,null,null,null,null,null,null,""]
[null,null,null,null,null,null,null,null,null,null,null,null,null,null,null,""]
[null,null,null,null,null,null,null,null,null,null,null,null,null,null,null,""]
[null,null,null,null,null,null,null,null,null,null,null,null,null,null,null,""]
[null,null,null,null,null,null,null,null,null,null,null,null,null,null,null,""]
[null,null,null,null,null,null,null,null,null,null,null,null,null,null,null,""]
[null,null,null,null,null,null,null,null,null,null,null,null,null,null,null,""]
[null,null,null,null,null,null,null,null,null,null,null,null,null,null,null,""]
[null,null,null,null,null,null,null,null,null,null,null,null,null,null,null,""]
[null,null,null,null,null,null,null,null,null,null,null,null,null,null,null,""]
[null,null,null,null,null,null,null,null,null,null,null,null,null,null,null,""]
[null,null,null,null,null,null,null,null,null,null,null,null,null,null,null,""]
[null,null,null,null,null,null,null,null,null,null,null,null,null,null,null,""]
[null,null,null,null,null,null,null,null,null,null,null,null,null,null,null,""]
[null,null,null,null,null,null,null,null,null,null,null,null,null,null,null,""]
[null,null,null,null,null,null,null,null,null,null,null,null,null,null,null,""]
[null,null,null,null,null,null,null,null,null,null,null,null,null,null,null,""]
[null,null,null,null,null,null,null,null,null,null,null,null,null,null,null,""]
[null,null,null,null,null,null,null,null,null,null,null,null,null,null,null,""]
[null,null,null,null,null,null,null,null,null,null,null,null,null,null,null,""]
[null,null,null,null,null,null,null,null,null,null,null,null,null,null,null,""]
[null,null,null,null,null,null,null,null,null,null,null,null,null,null,null,""]
[null,null,null,null,null,null,null,null,null,null,null,null,null,null,null,""]
[null,null,null,null,null,null,null,null,null,null,null,null,null,null,null,""]
[null,null,null,null,null,null,null,null,null,null,null,null,null,null,null,""]
[null,null,null,null,null,null,null,null,null,null,null,null,null,null,null,""]
[null,null,null,null,null,null,null,null,null,null,null,null,null,null,null,""]
[null,null,null,null,null,null,null,null,null,null,null,null,null,null,null,""]
[null,null,null,null,null,null,null,null,null,null,null,null,null,null,null,""]
[null,null,null,null,null,null,null,null,null,null,null,null,null,null,null,""]
[null,null,null,null,null,null,null,null,null,null,null,null,null,null,null,""]
[null,null,null,null,null,null,null,null,null,null,null,null,null,null,null,""]
[null,null,null,null,null,null,null,null,null,null,null,null,null,null,null,""]
[null,null,null,null,null,null,null,null,null,null,null,null,null,null,null,""]
[null,null,null,null,null,null,null,null,null,null,null,null,null,null,null,""]
[null,null,null,null,null,null,null,null,null,null,null,null,null,null,null,""]
[null,null,null,null,null,null,null,null,null,null,null,null,null,null,null,""]
[null,null,null,null,null,null,null,null,null,null,null,null,null,null,null,""]
[null,null,null,null,null,null,null,null,null,null,null,null,null,null,null,""]
[null,null,null,null,null,null,null,null,null,null,null,null,null,null,null,""]
[null,null,null,null,null,null,null,null,null,null,null,null,null,null,null,""]
[null,null,null,null,null,null,null,null,null,null,null,null,null,null,null,""]
[null,null,null,null,null,null,null,null,null,null,null,null,null,null,null,""]
[null,null,null,null,null,null,null,null,null,null,null,null,null,null,null,""]
[null,null,null,null,null,null,null,null,null,null,null,null,null,null,null,""]
[null,null,null,null,null,null,null,null,null,null,null,null,null,null,null,""]
[null,null,null,null,null,null,null,null,null,null,null,null,null,null,null,""]
[null,null,null,null,null,null,null,null,null,null,null,null,null,null,null,""]
[null,null,null,null,null,null,null,null,null,null,null,null,null,null,null,""]
[null,null,null,null,null,null,null,null,null,null,null,null,null,null,null,""]
[null,null,null,null,null,null,null,null,null,null,null,null,null,null,null,""]
[null,null,null,null,null,null,null,null,null,null,null,null,null,null,null,""]
[null,null,null,null,null,null,null,null,null,null,null,null,null,null,null,""]
[null,null,null,null,null,null,null,null,null,null,null,null,null,null,null,{"$f":"B68&IF(AND(C68=\"\",D68=\"\",E68=\"\"),\"\",\" - \")&C68&IF(OR(D68=\"\",C68=\"\"),\"\",\" - \")&D68","v":""}]
[null,null,null,null,null,null,null,null,null,null,null,null,null,null,null,""]
[null,null,null,null,null,null,null,null,null,null,null,null,null,null,null,""]
[null,null,null,null,null,null,null,null,null,null,null,null,null,null,null,""]
[null,null,null,null,null,null,null,null,null,null,null,null,null,null,null,""]
[null,null,null,null,null,null,null,null,null,null,null,null,null,null,null,""]
[null,null,null,null,null,null,null,null,null,null,null,null,null,null,null,""]
[null,null,null,null,null,null,null,null,null,null,null,null,null,null,null,""]
[null,null,null,null,null,null,null,null,null,null,null,null,null,null,null,""]
[null,null,null,null,null,null,null,null,null,null,null,null,null,null,null,""]
[null,null,null,null,null,null,null,null,null,null,null,null,null,null,null,""]
[null,null,null,null,null,null,null,null,null,null,null,null,null,null,null,""]
[null,null,null,null,null,null,null,null,null,null,null,null,null,null,null,""]
[null,null,null,null,null,null,null,null,null,null,null,null,null,null,null,""]
[null,null,null,null,null,null,null,null,null,null,null,null,null,null,null,""]
[null,null,null,null,null,null,null,null,null,null,null,null,null,null,null,""]
[null,null,null,null,null,null,null,null,null,null,null,null,null,null,null,""]
[null,null,null,null,null,null,null,null,null,null,null,null,null,null,null,""]
[null,null,null,null,null,null,null,null,null,null,null,null,null,null,null,""]
[null,null,null,null,null,null,null,null,null,null,null,null,null,null,null,""]
[null,null,null,null,null,null,null,null,null,null,null,null,null,null,null,""]
[null,null,null,null,null,null,null,null,null,null,null,null,null,null,null,""]
[null,null,null,null,null,null,null,null,null,null,null,null,null,null,null,""]
[null,null,null,null,null,null,null,null,null,null,null,null,null,null,null,""]
[null,null,null,null,null,null,null,null,null,null,null,null,null,null,null,""]
[null,null,null,null,null,null,null,null,null,null,null,null,null,null,null,""]
[null,null,null,null,null,null,null,null,null,null,null,null,null,null,null,""]
[null,null,null,null,null,null,null,null,null,null,null,null,null,null,null,""]
[null,null,null,null,null,null,null,null,null,null,null,null,null,null,null,""]
[null,null,null,null,null,null,null,null,null,null,null,null,null,null,null,""]
[null,null,null,null,null,null,null,null,null,null,null,null,null,null,null,""]
[null,null,null,null,null,null,null,null,null,null,null,null,null,null,null,""]
[null,null,null,null,null,null,null,null,null,null,null,null,null,null,null,""]
[null,null,null,null,null,null,null,null,null,null,null,null,null,null,null,""]
[null,null,null,null,null,null,null,null,null,null,null,null,null,null,null,""]
[null,null,null,null,null,null,null,null,null,null,null,null,null,null,null,""]
[null,null,null,null,null,null,null,null,null,null,null,null,null,null,null,""]
[null,null,null,null,null,null,null,null,null,null,null,null,null,null,null,""]
[null,null,null,null,null,null,null,null,null,null,null,null,null,null,null,""]
[null,null,null,null,null,null,null,null,null,null,null,null,null,null,null,""]
[null,null,null,null,null,null,null,null,null,null,null,null,null,null,null,""]
[null,null,null,null,null,null,null,null,null,null,null,null,null,null,null,""]
[null,null,null,null,null,null,null,null,null,null,null,null,null,null,null,""]
[null,null,null,null,null,null,null,null,null,null,null,null,null,null,null,""]
[null,null,null,null,null,null,null,null,null,null,null,null,null,null,null,""]
[null,null,null,null,null,null,null,null,null,null,null,null,null,null,null,""]
[null,null,null,null,null,null,null,null,null,null,null,null,null,null,null,""]
[null,null,null,null,null,null,null,null,null,null,null,null,null,null,null,""]
[null,null,null,null,null,null,null,null,null,null,null,null,null,null,null,""]
[null,null,null,null,null,null,null,null,null,null,null,null,null,null,null,""]
[null,null,null,null,null,null,null,null,null,null,null,null,null,null,null,""]
[null,null,null,null,null,null,null,null,null,null,null,null,null,null,null,""]
[null,null,null,null,null,null,null,null,null,null,null,null,null,null,null,""]
[null,null,null,null,null,null,null,null,null,null,null,null,null,null,null,""]
[null,null,null,null,null,null,null,null,null,null,null,null,null,null,null,""]
[null,null,null,null,null,null,null,null,null,null,null,null,null,null,null,""]
[null,null,null,null,null,null,null,null,null,null,null,null,null,null,null,""]
[null,null,null,null,null,null,null,null,null,null,null,null,null,null,null,""]
[null,null,null,null,null,null,null,null,null,null,null,null,null,null,null,""]
[null,null,null,null,null,null,null,null,null,null,null,null,null,null,null,""]
[null,null,null,null,null,null,null,null,null,null,null,null,null,null,null,""]
[null,null,null,null,null,null,null,null,null,null,null,null,null,null,null,""]
[null,null,null,null,null,null,null,null,null,null,null,null,null,null,null,""]
[null,null,null,null,null,null,null,null,null,null,null,null,null,null,null,""]
[null,null,null,null,null,null,null,null,null,null,null,null,null,null,null,{"$f":"B132&IF(AND(C132=\"\",D132=\"\",E132=\"\"),\"\",\" - \")&C132&IF(OR(D132=\"\",C132=\"\"),\"\",\" - \")&D132","v":""}]
[null,null,null,null,null,null,null,null,null,null,null,null,null,null,null,""]
[null,null,null,null,null,null,null,null,null,null,null,null,null,null,null,""]
[null,null,null,null,null,null,null,null,null,null,null,null,null,null,null,""]
[null,null,null,null,null,null,null,null,null,null,null,null,null,null,null,""]
[null,null,null,null,null,null,null,null,null,null,null,null,null,null,null,""]
[null,null,null,null,null,null,null,null,null,null,null,null,null,null,null,""]
[null,null,null,null,null,null,null,null,null,null,null,null,null,null,null,""]
[null,null,null,null,null,null,null,null,null,null,null,null,null,null,null,""]
[null,null,null,null,null,null,null,null,null,null,null,null,null,null,null,""]
[null,null,null,null,null,null,null,null,null,null,null,null,null,null,null,""]
[null,null,null,null,null,null,null,null,null,null,null,null,null,null,null,""]
[null,null,null,null,null,null,null,null,null,null,null,null,null,null,null,""]
[null,null,null,null,null,null,null,null,null,null,null,null,null,null,null,""]
[null,null,null,null,null,null,null,null,null,null,null,null,null,null,null,""]
[null,null,null,null,null,null,null,null,null,null,null,null,null,null,null,""]
[null,null,null,null,null,null,null,null,null,null,null,null,null,null,null,""]
[null,null,null,null,null,null,null,null,null,null,null,null,null,null,null,""]
[null,null,null,null,null,null,null,null,null,null,null,null,null,null,null,""]
[null,null,null,null,null,null,null,null,null,null,null,null,null,null,null,""]
[null,null,null,null,null,null,null,null,null,null,null,null,null,null,null,""]
[null,null,null,null,null,null,null,null,null,null,null,null,null,null,null,""]
[null,null,null,null,null,null,null,null,null,null,null,null,null,null,null,""]
[null,null,null,null,null,null,null,null,null,null,null,null,null,null,null,""]
[null,null,null,null,null,null,null,null,null,null,null,null,null,null,null,""]
[null,null,null,null,null,null,null,null,null,null,null,null,null,null,null,""]
[null,null,null,null,null,null,null,null,null,null,null,null,null,null,null,""]
[null,null,null,null,null,null,null,null,null,null,null,null,null,null,null,""]
[null,null,null,null,null,null,null,null,null,null,null,null,null,null,null,""]
[null,null,null,null,null,null,null,null,null,null,null,null,null,null,null,""]
[null,null,null,null,null,null,null,null,null,null,null,null,null,null,null,""]
[null,null,null,null,null,null,null,null,null,null,null,null,null,null,null,""]
[null,null,null,null,null,null,null,null,null,null,null,null,null,null,null,""]
[null,null,null,null,null,null,null,null,null,null,null,null,null,null,null,""]
[null,null,null,null,null,null,null,null,null,null,null,null,null,null,null,""]
[null,null,null,null,null,null,null,null,null,null,null,null,null,null,null,""]
[null,null,null,null,null,null,null,null,null,null,null,null,null,null,null,""]
[null,null,null,null,null,null,null,null,null,null,null,null,null,null,null,""]
[null,null,null,null,null,null,null,null,null,null,null,null,null,null,null,""]
[null,null,null,null,null,null,null,null,null,null,null,null,null,null,null,""]
[null,null,null,null,null,null,null,null,null,null,null,null,null,null,null,""]
[null,null,null,null,null,null,null,null,null,null,null,null,null,null,null,""]
[null,null,null,null,null,null,null,null,null,null,null,null,null,null,null,""]
[null,null,null,null,null,null,null,null,null,null,null,null,null,null,null,""]
[null,null,null,null,null,null,null,null,null,null,null,null,null,null,null,""]
[null,null,null,null,null,null,null,null,null,null,null,null,null,null,null,""]
[null,null,null,null,null,null,null,null,null,null,null,null,null,null,null,""]
[null,null,null,null,null,null,null,null,null,null,null,null,null,null,null,""]
[null,null,null,null,null,null,null,null,null,null,null,null,null,null,null,""]
[null,null,null,null,null,null,null,null,null,null,null,null,null,null,null,""]
[null,null,null,null,null,null,null,null,null,null,null,null,null,null,null,""]
[null,null,null,null,null,null,null,null,null,null,null,null,null,null,null,""]
[null,null,null,null,null,null,null,null,null,null,null,null,null,null,null,""]
[null,null,null,null,null,null,null,null,null,null,null,null,null,null,null,""]
[null,null,null,null,null,null,null,null,null,null,null,null,null,null,null,""]
[null,null,null,null,null,null,null,null,null,null,null,null,null,null,null,""]
[null,null,null,null,null,null,null,null,null,null,null,null,null,null,null,""]
[null,null,null,null,null,null,null,null,null,null,null,null,null,null,null,""]
[null,null,null,null,null,null,null,null,null,null,null,null,null,null,null,""]
[null,null,null,null,null,null,null,null,null,null,null,null,null,null,null,""]
[null,null,null,null,null,null,null,null,null,null,null,null,null,null,null,""]
[null,null,null,null,null,null,null,null,null,null,null,null,null,null,null,""]
[null,null,null,null,null,null,null,null,null,null,null,null,null,null,null,""]
[null,null,null,null,null,null,null,null,null,null,null,null,null,null,null,""]
[null,null,null,null,null,null,null,null,null,null,null,null,null,null,null,{"$f":"B196&IF(AND(C196=\"\",D196=\"\",E196=\"\"),\"\",\" - \")&C196&IF(OR(D196=\"\",C196=\"\"),\"\",\" - \")&D196","v":""}]
[null,null,null,null,null,null,null,null,null,null,null,null,null,null,null,""]
[null,null,null,null,null,null,null,null,null,null,null,null,null,null,null,""]
[null,null,null,null,null,null,null,null,null,null,null,null,null,null,null,""]
[null,null,null,null,null,null,null,null,null,null,null,null,null,null,null,""]
[null,null,null,null,null,null,null,null,null,null,null,null,null,null,null,""]
[null,null,null,null,null,null,null,null,null,null,null,null,null,null,null,""]
[null,null,null,null,null,null,null,null,null,null,null,null,null,null,null,""]
[null,null,null,null,null,null,null,null,null,null,null,null,null,null,null,""]
[null,null,null,null,null,null,null,null,null,null,null,null,null,null,null,""]
[null,null,null,null,null,null,null,null,null,null,null,null,null,null,null,""]
[null,null,null,null,null,null,null,null,null,null,null,null,null,null,null,""]
[null,null,null,null,null,null,null,null,null,null,null,null,null,null,null,""]
[null,null,null,null,null,null,null,null,null,null,null,null,null,null,null,""]
[null,null,null,null,null,null,null,null,null,null,null,null,null,null,null,""]
[null,null,null,null,null,null,null,null,null,null,null,null,null,null,null,""]
[null,null,null,null,null,null,null,null,null,null,null,null,null,null,null,""]
[null,null,null,null,null,null,null,null,null,null,null,null,null,null,null,""]
[null,null,null,null,null,null,null,null,null,null,null,null,null,null,null,""]
[null,null,null,null,null,null,null,null,null,null,null,null,null,null,null,""]
[null,null,null,null,null,null,null,null,null,null,null,null,null,null,null,""]
[null,null,null,null,null,null,null,null,null,null,null,null,null,null,null,""]
[null,null,null,null,null,null,null,null,null,null,null,null,null,null,null,""]
[null,null,null,null,null,null,null,null,null,null,null,null,null,null,null,""]
[null,null,null,null,null,null,null,null,null,null,null,null,null,null,null,""]
[null,null,null,null,null,null,null,null,null,null,null,null,null,null,null,""]
[null,null,null,null,null,null,null,null,null,null,null,null,null,null,null,""]
[null,null,null,null,null,null,null,null,null,null,null,null,null,null,null,""]
[null,null,null,null,null,null,null,null,null,null,null,null,null,null,null,""]
[null,null,null,null,null,null,null,null,null,null,null,null,null,null,null,""]
[null,null,null,null,null,null,null,null,null,null,null,null,null,null,null,""]
[null,null,null,null,null,null,null,null,null,null,null,null,null,null,null,""]
[null,null,null,null,null,null,null,null,null,null,null,null,null,null,null,""]
[null,null,null,null,null,null,null,null,null,null,null,null,null,null,null,""]
[null,null,null,null,null,null,null,null,null,null,null,null,null,null,null,""]
[null,null,null,null,null,null,null,null,null,null,null,null,null,null,null,""]
[null,null,null,null,null,null,null,null,null,null,null,null,null,null,null,""]
[null,null,null,null,null,null,null,null,null,null,null,null,null,null,null,""]
[null,null,null,null,null,null,null,null,null,null,null,null,null,null,null,""]
[null,null,null,null,null,null,null,null,null,null,null,null,null,null,null,""]
[null,null,null,null,null,null,null,null,null,null,null,null,null,null,null,""]
[null,null,null,null,null,null,null,null,null,null,null,null,null,null,null,""]
[null,null,null,null,null,null,null,null,null,null,null,null,null,null,null,""]
[null,null,null,null,null,null,null,null,null,null,null,null,null,null,null,""]
[null,null,null,null,null,null,null,null,null,null,null,null,null,null,null,""]
[null,null,null,null,null,null,null,null,null,null,null,null,null,null,null,""]
[null,null,null,null,null,null,null,null,null,null,null,null,null,null,null,""]
[null,null,null,null,null,null,null,null,null,null,null,null,null,null,null,""]
[null,null,null,null,null,null,null,null,null,null,null,null,null,null,null,""]
[null,null,null,null,null,null,null,null,null,null,null,null,null,null,null,""]
[null,null,null,null,null,null,null,null,null,null,null,null,null,null,null,""]
[null,null,null,null,null,null,null,null,null,null,null,null,null,null,null,""]
[null,null,null,null,null,null,null,null,null,null,null,null,null,null,null,""]
[null,null,null,null,null,null,null,null,null,null,null,null,null,null,null,""]
[null,null,null,null,null,null,null,null,null,null,null,null,null,null,null,""]
[null,null,null,null,null,null,null,null,null,null,null,null,null,null,null,""]
[null,null,null,null,null,null,null,null,null,null,null,null,null,null,null,""]
[null,null,null,null,null,null,null,null,null,null,null,null,null,null,null,""]
[null,null,null,null,null,null,null,null,null,null,null,null,null,null,null,""]
[null,null,null,null,null,null,null,null,null,null,null,null,null,null,null,""]
[null,null,null,null,null,null,null,null,null,null,null,null,null,null,null,""]
[null,null,null,null,null,null,null,null,null,null,null,null,null,null,null,""]
[null,null,null,null,null,null,null,null,null,null,null,null,null,null,null,""]
[null,null,null,null,null,null,null,null,null,null,null,null,null,null,null,""]
[null,null,null,null,null,null,null,null,null,null,null,null,null,null,null,{"$f":"B260&IF(AND(C260=\"\",D260=\"\",E260=\"\"),\"\",\" - \")&C260&IF(OR(D260=\"\",C260=\"\"),\"\",\" - \")&D260","v":""}]
[null,null,null,null,null,null,null,null,null,null,null,null,null,null,null,""]
[null,null,null,null,null,null,null,null,null,null,null,null,null,null,null,""]
[null,null,null,null,null,null,null,null,null,null,null,null,null,null,null,""]
[null,null,null,null,null,null,null,null,null,null,null,null,null,null,null,""]
[null,null,null,null,null,null,null,null,null,null,null,null,null,null,null,""]
[null,null,null,null,null,null,null,null,null,null,null,null,null,null,null,""]
[null,null,null,null,null,null,null,null,null,null,null,null,null,null,null,""]
[null,null,null,null,null,null,null,null,null,null,null,null,null,null,null,""]
[null,null,null,null,null,null,null,null,null,null,null,null,null,null,null,""]
[null,null,null,null,null,null,null,null,null,null,null,null,null,null,null,""]
[null,null,null,null,null,null,null,null,null,null,null,null,null,null,null,""]
[null,null,null,null,null,null,null,null,null,null,null,null,null,null,null,""]
[null,null,null,null,null,null,null,null,null,null,null,null,null,null,null,""]
[null,null,null,null,null,null,null,null,null,null,null,null,null,null,null,""]
[null,null,null,null,null,null,null,null,null,null,null,null,null,null,null,""]
[null,null,null,null,null,null,null,null,null,null,null,null,null,null,null,""]
[null,null,null,null,null,null,null,null,null,null,null,null,null,null,null,""]
[null,null,null,null,null,null,null,null,null,null,null,null,null,null,null,""]
[null,null,null,null,null,null,null,null,null,null,null,null,null,null,null,""]
[null,null,null,null,null,null,null,null,null,null,null,null,null,null,null,""]
[null,null,null,null,null,null,null,null,null,null,null,null,null,null,null,""]
[null,null,null,null,null,null,null,null,null,null,null,null,null,null,null,""]
[null,null,null,null,null,null,null,null,null,null,null,null,null,null,null,""]
[null,null,null,null,null,null,null,null,null,null,null,null,null,null,null,""]
[null,null,null,null,null,null,null,null,null,null,null,null,null,null,null,""]
[null,null,null,null,null,null,null,null,null,null,null,null,null,null,null,""]
[null,null,null,null,null,null,null,null,null,null,null,null,null,null,null,""]
[null,null,null,null,null,null,null,null,null,null,null,null,null,null,null,""]
[null,null,null,null,null,null,null,null,null,null,null,null,null,null,null,""]
[null,null,null,null,null,null,null,null,null,null,null,null,null,null,null,""]
[null,null,null,null,null,null,null,null,null,null,null,null,null,null,null,""]
[null,null,null,null,null,null,null,null,null,null,null,null,null,null,null,""]
[null,null,null,null,null,null,null,null,null,null,null,null,null,null,null,""]
[null,null,null,null,null,null,null,null,null,null,null,null,null,null,null,""]
[null,null,null,null,null,null,null,null,null,null,null,null,null,null,null,""]
[null,null,null,null,null,null,null,null,null,null,null,null,null,null,null,""]
[null,null,null,null,null,null,null,null,null,null,null,null,null,null,null,""]
[null,null,null,null,null,null,null,null,null,null,null,null,null,null,null,""]
[null,null,null,null,null,null,null,null,null,null,null,null,null,null,null,""]
[null,null,null,null,null,null,null,null,null,null,null,null,null,null,null,""]
[null,null,null,null,null,null,null,null,null,null,null,null,null,null,null,""]
[null,null,null,null,null,null,null,null,null,null,null,null,null,null,null,""]
[null,null,null,null,null,null,null,null,null,null,null,null,null,null,null,""]
[null,null,null,null,null,null,null,null,null,null,null,null,null,null,null,""]
[null,null,null,null,null,null,null,null,null,null,null,null,null,null,null,""]
[null,null,null,null,null,null,null,null,null,null,null,null,null,null,null,""]
[null,null,null,null,null,null,null,null,null,null,null,null,null,null,null,""]
[null,null,null,null,null,null,null,null,null,null,null,null,null,null,null,""]
[null,null,null,null,null,null,null,null,null,null,null,null,null,null,null,""]
[null,null,null,null,null,null,null,null,null,null,null,null,null,null,null,""]
[null,null,null,null,null,null,null,null,null,null,null,null,null,null,null,""]
[null,null,null,null,null,null,null,null,null,null,null,null,null,null,null,""]
[null,null,null,null,null,null,null,null,null,null,null,null,null,null,null,""]
[null,null,null,null,null,null,null,null,null,null,null,null,null,null,null,""]
[null,null,null,null,null,null,null,null,null,null,null,null,null,null,null,""]
[null,null,null,null,null,null,null,null,null,null,null,null,null,null,null,""]
[null,null,null,null,null,null,null,null,null,null,null,null,null,null,null,""]
[null,null,null,null,null,null,null,null,null,null,null,null,null,null,null,""]
[null,null,null,null,null,null,null,null,null,null,null,null,null,null,null,""]
[null,null,null,null,null,null,null,null,null,null,null,null,null,null,null,""]
[null,null,null,null,null,null,null,null,null,null,null,null,null,null,null,""]
[null,null,null,null,null,null,null,null,null,null,null,null,null,null,null,""]
[null,null,null,null,null,null,null,null,null,null,null,null,null,null,null,""]
[null,null,null,null,null,null,null,null,null,null,null,null,null,null,null,{"$f":"B324&IF(AND(C324=\"\",D324=\"\",E324=\"\"),\"\",\" - \")&C324&IF(OR(D324=\"\",C324=\"\"),\"\",\" - \")&D324","v":""}]
[null,null,null,null,null,null,null,null,null,null,null,null,null,null,null,""]
[null,null,null,null,null,null,null,null,null,null,null,null,null,null,null,""]
[null,null,null,null,null,null,null,null,null,null,null,null,null,null,null,""]
[null,null,null,null,null,null,null,null,null,null,null,null,null,null,null,""]
[null,null,null,null,null,null,null,null,null,null,null,null,null,null,null,""]
[null,null,null,null,null,null,null,null,null,null,null,null,null,null,null,""]
[null,null,null,null,null,null,null,null,null,null,null,null,null,null,null,""]
[null,null,null,null,null,null,null,null,null,null,null,null,null,null,null,""]
[null,null,null,null,null,null,null,null,null,null,null,null,null,null,null,""]
[null,null,null,null,null,null,null,null,null,null,null,null,null,null,null,""]
[null,null,null,null,null,null,null,null,null,null,null,null,null,null,null,""]
[null,null,null,null,null,null,null,null,null,null,null,null,null,null,null,""]
[null,null,null,null,null,null,null,null,null,null,null,null,null,null,null,""]
[null,null,null,null,null,null,null,null,null,null,null,null,null,null,null,""]
[null,null,null,null,null,null,null,null,null,null,null,null,null,null,null,""]
[null,null,null,null,null,null,null,null,null,null,null,null,null,null,null,""]
[null,null,null,null,null,null,null,null,null,null,null,null,null,null,null,""]
[null,null,null,null,null,null,null,null,null,null,null,null,null,null,null,""]
[null,null,null,null,null,null,null,null,null,null,null,null,null,null,null,""]
[null,null,null,null,null,null,null,null,null,null,null,null,null,null,null,""]
[null,null,null,null,null,null,null,null,null,null,null,null,null,null,null,""]
[null,null,null,null,null,null,null,null,null,null,null,null,null,null,null,""]
[null,null,null,null,null,null,null,null,null,null,null,null,null,null,null,""]
[null,null,null,null,null,null,null,null,null,null,null,null,null,null,null,""]
[null,null,null,null,null,null,null,null,null,null,null,null,null,null,null,""]
[null,null,null,null,null,null,null,null,null,null,null,null,null,null,null,""]
[null,null,null,null,null,null,null,null,null,null,null,null,null,null,null,""]
[null,null,null,null,null,null,null,null,null,null,null,null,null,null,null,""]
[null,null,null,null,null,null,null,null,null,null,null,null,null,null,null,""]
[null,null,null,null,null,null,null,null,null,null,null,null,null,null,null,""]
[null,null,null,null,null,null,null,null,null,null,null,null,null,null,null,""]
[null,null,null,null,null,null,null,null,null,null,null,null,null,null,null,""]
[null,null,null,null,null,null,null,null,null,null,null,null,null,null,null,""]
[null,null,null,null,null,null,null,null,null,null,null,null,null,null,null,""]
[null,null,null,null,null,null,null,null,null,null,null,null,null,null,null,""]
[null,null,null,null,null,null,null,null,null,null,null,null,null,null,null,""]
[null,null,null,null,null,null,null,null,null,null,null,null,null,null,null,""]
[null,null,null,null,null,null,null,null,null,null,null,null,null,null,null,""]
[null,null,null,null,null,null,null,null,null,null,null,null,null,null,null,""]
[null,null,null,null,null,null,null,null,null,null,null,null,null,null,null,""]
[null,null,null,null,null,null,null,null,null,null,null,null,null,null,null,""]
[null,null,null,null,null,null,null,null,null,null,null,null,null,null,null,""]
[null,null,null,null,null,null,null,null,null,null,null,null,null,null,null,""]
[null,null,null,null,null,null,null,null,null,null,null,null,null,null,null,""]
[null,null,null,null,null,null,null,null,null,null,null,null,null,null,null,""]
[null,null,null,null,null,null,null,null,null,null,null,null,null,null,null,""]
[null,null,null,null,null,null,null,null,null,null,null,null,null,null,null,""]
[null,null,null,null,null,null,null,null,null,null,null,null,null,null,null,""]
[null,null,null,null,null,null,null,null,null,null,null,null,null,null,null,""]
[null,null,null,null,null,null,null,null,null,null,null,null,null,null,null,""]
[null,null,null,null,null,null,null,null,null,null,null,null,null,null,null,""]
[null,null,null,null,null,null,null,null,null,null,null,null,null,null,null,""]
[null,null,null,null,null,null,null,null,null,null,null,null,null,null,null,""]
[null,null,null,null,null,null,null,null,null,null,null,null,null,null,null,""]
[null,null,null,null,null,null,null,null,null,null,null,null,null,null,null,""]
[null,null,null,null,null,null,null,null,null,null,null,null,null,null,null,""]
[null,null,null,null,null,null,null,null,null,null,null,null,null,null,null,""]
[null,null,null,null,null,null,null,null,null,null,null,null,null,null,null,""]
[null,null,null,null,null,null,null,null,null,null,null,null,null,null,null,""]
[null,null,null,null,null,null,null,null,null,null,null,null,null,null,null,""]
[null,null,null,null,null,null,null,null,null,null,null,null,null,null,null,""]
[null,null,null,null,null,null,null,null,null,null,null,null,null,null,null,""]
[null,null,null,null,null,null,null,null,null,null,null,null,null,null,null,""]
[null,null,null,null,null,null,null,null,null,null,null,null,null,null,null,{"$f":"B388&IF(AND(C388=\"\",D388=\"\",E388=\"\"),\"\",\" - \")&C388&IF(OR(D388=\"\",C388=\"\"),\"\",\" - \")&D388","v":""}]
[null,null,null,null,null,null,null,null,null,null,null,null,null,null,null,""]
[null,null,null,null,null,null,null,null,null,null,null,null,null,null,null,""]
[null,null,null,null,null,null,null,null,null,null,null,null,null,null,null,""]
[null,null,null,null,null,null,null,null,null,null,null,null,null,null,null,""]
[null,null,null,null,null,null,null,null,null,null,null,null,null,null,null,""]
[null,null,null,null,null,null,null,null,null,null,null,null,null,null,null,""]
[null,null,null,null,null,null,null,null,null,null,null,null,null,null,null,""]
[null,null,null,null,null,null,null,null,null,null,null,null,null,null,null,""]
[null,null,null,null,null,null,null,null,null,null,null,null,null,null,null,""]
[null,null,null,null,null,null,null,null,null,null,null,null,null,null,null,""]
[null,null,null,null,null,null,null,null,null,null,null,null,null,null,null,""]
[null,null,null,null,null,null,null,null,null,null,null,null,null,null,null,""]
[null,null,null,null,null,null,null,null,null,null,null,null,null,null,null,""]
[null,null,null,null,null,null,null,null,null,null,null,null,null,null,null,""]
[null,null,null,null,null,null,null,null,null,null,null,null,null,null,null,""]
[null,null,null,null,null,null,null,null,null,null,null,null,null,null,null,""]
[null,null,null,null,null,null,null,null,null,null,null,null,null,null,null,""]
[null,null,null,null,null,null,null,null,null,null,null,null,null,null,null,""]
[null,null,null,null,null,null,null,null,null,null,null,null,null,null,null,""]
[null,null,null,null,null,null,null,null,null,null,null,null,null,null,null,""]
[null,null,null,null,null,null,null,null,null,null,null,null,null,null,null,""]
[null,null,null,null,null,null,null,null,null,null,null,null,null,null,null,""]
[null,null,null,null,null,null,null,null,null,null,null,null,null,null,null,""]
[null,null,null,null,null,null,null,null,null,null,null,null,null,null,null,""]
[null,null,null,null,null,null,null,null,null,null,null,null,null,null,null,""]
[null,null,null,null,null,null,null,null,null,null,null,null,null,null,null,""]
[null,null,null,null,null,null,null,null,null,null,null,null,null,null,null,""]
[null,null,null,null,null,null,null,null,null,null,null,null,null,null,null,""]
[null,null,null,null,null,null,null,null,null,null,null,null,null,null,null,""]
[null,null,null,null,null,null,null,null,null,null,null,null,null,null,null,""]
[null,null,null,null,null,null,null,null,null,null,null,null,null,null,null,""]
[null,null,null,null,null,null,null,null,null,null,null,null,null,null,null,""]
[null,null,null,null,null,null,null,null,null,null,null,null,null,null,null,""]
[null,null,null,null,null,null,null,null,null,null,null,null,null,null,null,""]
[null,null,null,null,null,null,null,null,null,null,null,null,null,null,null,""]
[null,null,null,null,null,null,null,null,null,null,null,null,null,null,null,""]
[null,null,null,null,null,null,null,null,null,null,null,null,null,null,null,""]
[null,null,null,null,null,null,null,null,null,null,null,null,null,null,null,""]
[null,null,null,null,null,null,null,null,null,null,null,null,null,null,null,""]
[null,null,null,null,null,null,null,null,null,null,null,null,null,null,null,""]
[null,null,null,null,null,null,null,null,null,null,null,null,null,null,null,""]
[null,null,null,null,null,null,null,null,null,null,null,null,null,null,null,""]
[null,null,null,null,null,null,null,null,null,null,null,null,null,null,null,""]
[null,null,null,null,null,null,null,null,null,null,null,null,null,null,null,""]
[null,null,null,null,null,null,null,null,null,null,null,null,null,null,null,""]
[null,null,null,null,null,null,null,null,null,null,null,null,null,null,null,""]
[null,null,null,null,null,null,null,null,null,null,null,null,null,null,null,""]
[null,null,null,null,null,null,null,null,null,null,null,null,null,null,null,""]
[null,null,null,null,null,null,null,null,null,null,null,null,null,null,null,""]
[null,null,null,null,null,null,null,null,null,null,null,null,null,null,null,""]
[null,null,null,null,null,null,null,null,null,null,null,null,null,null,null,""]
[null,null,null,null,null,null,null,null,null,null,null,null,null,null,null,""]
[null,null,null,null,null,null,null,null,null,null,null,null,null,null,null,""]
[null,null,null,null,null,null,null,null,null,null,null,null,null,null,null,""]
[null,null,null,null,null,null,null,null,null,null,null,null,null,null,null,""]
[null,null,null,null,null,null,null,null,null,null,null,null,null,null,null,""]
[null,null,null,null,null,null,null,null,null,null,null,null,null,null,null,""]
[null,null,null,null,null,null,null,null,null,null,null,null,null,null,null,""]
[null,null,null,null,null,null,null,null,null,null,null,null,null,null,null,""]
[null,null,null,null,null,null,null,null,null,null,null,null,null,null,null,""]
[null,null,null,null,null,null,null,null,null,null,null,null,null,null,null,""]
[null,null,null,null,null,null,null,null,null,null,null,null,null,null,null,""]
[null,null,null,null,null,null,null,null,null,null,null,null,null,null,null,""]
[null,null,null,null,null,null,null,null,null,null,null,null,null,null,null,{"$f":"B452&IF(AND(C452=\"\",D452=\"\",E452=\"\"),\"\",\" - \")&C452&IF(OR(D452=\"\",C452=\"\"),\"\",\" - \")&D452","v":""}]
[null,null,null,null,null,null,null,null,null,null,null,null,null,null,null,""]
[null,null,null,null,null,null,null,null,null,null,null,null,null,null,null,""]
[null,null,null,null,null,null,null,null,null,null,null,null,null,null,null,""]
[null,null,null,null,null,null,null,null,null,null,null,null,null,null,null,""]
[null,null,null,null,null,null,null,null,null,null,null,null,null,null,null,""]
[null,null,null,null,null,null,null,null,null,null,null,null,null,null,null,""]
[null,null,null,null,null,null,null,null,null,null,null,null,null,null,null,""]
[null,null,null,null,null,null,null,null,null,null,null,null,null,null,null,""]
[null,null,null,null,null,null,null,null,null,null,null,null,null,null,null,""]
[null,null,null,null,null,null,null,null,null,null,null,null,null,null,null,""]
[null,null,null,null,null,null,null,null,null,null,null,null,null,null,null,""]
[null,null,null,null,null,null,null,null,null,null,null,null,null,null,null,""]
[null,null,null,null,null,null,null,null,null,null,null,null,null,null,null,""]
[null,null,null,null,null,null,null,null,null,null,null,null,null,null,null,""]
[null,null,null,null,null,null,null,null,null,null,null,null,null,null,null,""]
[null,null,null,null,null,null,null,null,null,null,null,null,null,null,null,""]
[null,null,null,null,null,null,null,null,null,null,null,null,null,null,null,""]
[null,null,null,null,null,null,null,null,null,null,null,null,null,null,null,""]
[null,null,null,null,null,null,null,null,null,null,null,null,null,null,null,""]
[null,null,null,null,null,null,null,null,null,null,null,null,null,null,null,""]
[null,null,null,null,null,null,null,null,null,null,null,null,null,null,null,""]
[null,null,null,null,null,null,null,null,null,null,null,null,null,null,null,""]
[null,null,null,null,null,null,null,null,null,null,null,null,null,null,null,""]
[null,null,null,null,null,null,null,null,null,null,null,null,null,null,null,""]
[null,null,null,null,null,null,null,null,null,null,null,null,null,null,null,""]
[null,null,null,null,null,null,null,null,null,null,null,null,null,null,null,""]
[null,null,null,null,null,null,null,null,null,null,null,null,null,null,null,""]
[null,null,null,null,null,null,null,null,null,null,null,null,null,null,null,""]
[null,null,null,null,null,null,null,null,null,null,null,null,null,null,null,""]
[null,null,null,null,null,null,null,null,null,null,null,null,null,null,null,""]
[null,null,null,null,null,null,null,null,null,null,null,null,null,null,null,""]
[null,null,null,null,null,null,null,null,null,null,null,null,null,null,null,""]
[null,null,null,null,null,null,null,null,null,null,null,null,null,null,null,""]
[null,null,null,null,null,null,null,null,null,null,null,null,null,null,null,""]
[null,null,null,null,null,null,null,null,null,null,null,null,null,null,null,""]
[null,null,null,null,null,null,null,null,null,null,null,null,null,null,null,""]
[null,null,null,null,null,null,null,null,null,null,null,null,null,null,null,""]
[null,null,null,null,null,null,null,null,null,null,null,null,null,null,null,""]
[null,null,null,null,null,null,null,null,null,null,null,null,null,null,null,""]
[null,null,null,null,null,null,null,null,null,null,null,null,null,null,null,""]
[null,null,null,null,null,null,null,null,null,null,null,null,null,null,null,""]
[null,null,null,null,null,null,null,null,null,null,null,null,null,null,null,""]
[null,null,null,null,null,null,null,null,null,null,null,null,null,null,null,""]
[null,null,null,null,null,null,null,null,null,null,null,null,null,null,null,""]
[null,null,null,null,null,null,null,null,null,null,null,null,null,null,null,""]
[null,null,null,null,null,null,null,null,null,null,null,null,null,null,null,""]
[null,null,null,null,null,null,null,null,null,null,null,null,null,null,null,""]
[null,null,null,null,null,null,null,null,null,null,null,null,null,null,null,""]
[null,null,null,null,null,null,null,null,null,null,null,null,null,null,null,""]
[null,null,null,null,null,null,null,null,null,null,null,null,null,null,null,""]
[null,null,null,null,null,null,null,null,null,null,null,null,null,null,null,""]
[null,null,null,null,null,null,null,null,null,null,null,null,null,null,null,""]
[null,null,null,null,null,null,null,null,null,null,null,null,null,null,null,""]
[null,null,null,null,null,null,null,null,null,null,null,null,null,null,null,""]
[null,null,null,null,null,null,null,null,null,null,null,null,null,null,null,""]
[null,null,null,null,null,null,null,null,null,null,null,null,null,null,null,""]
[null,null,null,null,null,null,null,null,null,null,null,null,null,null,null,""]
[null,null,null,null,null,null,null,null,null,null,null,null,null,null,null,""]
[null,null,null,null,null,null,null,null,null,null,null,null,null,null,null,""]
[null,null,null,null,null,null,null,null,null,null,null,null,null,null,null,""]
[null,null,null,null,null,null,null,null,null,null,null,null,null,null,null,""]
[null,null,null,null,null,null,null,null,null,null,null,null,null,null,null,""]
[null,null,null,null,null,null,null,null,null,null,null,null,null,null,null,""]
[null,null,null,null,null,null,null,null,null,null,null,null,null,null,null,{"$f":"B516&IF(AND(C516=\"\",D516=\"\",E516=\"\"),\"\",\" - \")&C516&IF(OR(D516=\"\",C516=\"\"),\"\",\" - \")&D516","v":""}]
[null,null,null,null,null,null,null,null,null,null,null,null,null,null,null,""]
[null,null,null,null,null,null,null,null,null,null,null,null,null,null,null,""]
[null,null,null,null,null,null,null,null,null,null,null,null,null,null,null,""]
[null,null,null,null,null,null,null,null,null,null,null,null,null,null,null,""]
[null,null,null,null,null,null,null,null,null,null,null,null,null,null,null,""]
[null,null,null,null,null,null,null,null,null,null,null,null,null,null,null,""]
[null,null,null,null,null,null,null,null,null,null,null,null,null,null,null,""]
[null,null,null,null,null,null,null,null,null,null,null,null,null,null,null,""]
[null,null,null,null,null,null,null,null,null,null,null,null,null,null,null,""]
[null,null,null,null,null,null,null,null,null,null,null,null,null,null,null,""]
[null,null,null,null,null,null,null,null,null,null,null,null,null,null,null,""]
[null,null,null,null,null,null,null,null,null,null,null,null,null,null,null,""]
[null,null,null,null,null,null,null,null,null,null,null,null,null,null,null,""]
[null,null,null,null,null,null,null,null,null,null,null,null,null,null,null,""]
[null,null,null,null,null,null,null,null,null,null,null,null,null,null,null,""]
[null,null,null,null,null,null,null,null,null,null,null,null,null,null,null,""]
[null,null,null,null,null,null,null,null,null,null,null,null,null,null,null,""]
[null,null,null,null,null,null,null,null,null,null,null,null,null,null,null,""]
[null,null,null,null,null,null,null,null,null,null,null,null,null,null,null,""]
[null,null,null,null,null,null,null,null,null,null,null,null,null,null,null,""]
[null,null,null,null,null,null,null,null,null,null,null,null,null,null,null,""]
[null,null,null,null,null,null,null,null,null,null,null,null,null,null,null,""]
[null,null,null,null,null,null,null,null,null,null,null,null,null,null,null,""]
[null,null,null,null,null,null,null,null,null,null,null,null,null,null,null,""]
[null,null,null,null,null,null,null,null,null,null,null,null,null,null,null,""]
[null,null,null,null,null,null,null,null,null,null,null,null,null,null,null,""]
[null,null,null,null,null,null,null,null,null,null,null,null,null,null,null,""]
[null,null,null,null,null,null,null,null,null,null,null,null,null,null,null,""]
[null,null,null,null,null,null,null,null,null,null,null,null,null,null,null,""]
[null,null,null,null,null,null,null,null,null,null,null,null,null,null,null,""]
[null,null,null,null,null,null,null,null,null,null,null,null,null,null,null,""]
[null,null,null,null,null,null,null,null,null,null,null,null,null,null,null,""]
[null,null,null,null,null,null,null,null,null,null,null,null,null,null,null,""]
[null,null,null,null,null,null,null,null,null,null,null,null,null,null,null,""]
[null,null,null,null,null,null,null,null,null,null,null,null,null,null,null,""]
[null,null,null,null,null,null,null,null,null,null,null,null,null,null,null,""]
[null,null,null,null,null,null,null,null,null,null,null,null,null,null,null,""]
[null,null,null,null,null,null,null,null,null,null,null,null,null,null,null,""]
[null,null,null,null,null,null,null,null,null,null,null,null,null,null,null,""]
[null,null,null,null,null,null,null,null,null,null,null,null,null,null,null,""]
[null,null,null,null,null,null,null,null,null,null,null,null,null,null,null,""]
[null,null,null,null,null,null,null,null,null,null,null,null,null,null,null,""]
[null,null,null,null,null,null,null,null,null,null,null,null,null,null,null,""]
[null,null,null,null,null,null,null,null,null,null,null,null,null,null,null,""]
[null,null,null,null,null,null,null,null,null,null,null,null,null,null,null,""]
[null,null,null,null,null,null,null,null,null,null,null,null,null,null,null,""]
[null,null,null,null,null,null,null,null,null,null,null,null,null,null,null,""]
[null,null,null,null,null,null,null,null,null,null,null,null,null,null,null,""]
[null,null,null,null,null,null,null,null,null,null,null,null,null,null,null,""]
[null,null,null,null,null,null,null,null,null,null,null,null,null,null,null,""]
[null,null,null,null,null,null,null,null,null,null,null,null,null,null,null,""]
[null,null,null,null,null,null,null,null,null,null,null,null,null,null,null,""]
[null,null,null,null,null,null,null,null,null,null,null,null,null,null,null,""]
[null,null,null,null,null,null,null,null,null,null,null,null,null,null,null,""]
[null,null,null,null,null,null,null,null,null,null,null,null,null,null,null,""]
[null,null,null,null,null,null,null,null,null,null,null,null,null,null,null,""]
[null,null,null,null,null,null,null,null,null,null,null,null,null,null,null,""]
[null,null,null,null,null,null,null,null,null,null,null,null,null,null,null,""]
[null,null,null,null,null,null,null,null,null,null,null,null,null,null,null,""]
[null,null,null,null,null,null,null,null,null,null,null,null,null,null,null,""]
[null,null,null,null,null,null,null,null,null,null,null,null,null,null,null,""]
[null,null,null,null,null,null,null,null,null,null,null,null,null,null,null,""]
[null,null,null,null,null,null,null,null,null,null,null,null,null,null,null,""]
[null,null,null,null,null,null,null,null,null,null,null,null,null,null,null,{"$f":"B580&IF(AND(C580=\"\",D580=\"\",E580=\"\"),\"\",\" - \")&C580&IF(OR(D580=\"\",C580=\"\"),\"\",\" - \")&D580","v":""}]
[null,null,null,null,null,null,null,null,null,null,null,null,null,null,null,""]
[null,null,null,null,null,null,null,null,null,null,null,null,null,null,null,""]
[null,null,null,null,null,null,null,null,null,null,null,null,null,null,null,""]
[null,null,null,null,null,null,null,null,null,null,null,null,null,null,null,""]
[null,null,null,null,null,null,null,null,null,null,null,null,null,null,null,""]
[null,null,null,null,null,null,null,null,null,null,null,null,null,null,null,""]
[null,null,null,null,null,null,null,null,null,null,null,null,null,null,null,""]
[null,null,null,null,null,null,null,null,null,null,null,null,null,null,null,""]
[null,null,null,null,null,null,null,null,null,null,null,null,null,null,null,""]
[null,null,null,null,null,null,null,null,null,null,null,null,null,null,null,""]
[null,null,null,null,null,null,null,null,null,null,null,null,null,null,null,""]
[null,null,null,null,null,null,null,null,null,null,null,null,null,null,null,""]
[null,null,null,null,null,null,null,null,null,null,null,null,null,null,null,""]
[null,null,null,null,null,null,null,null,null,null,null,null,null,null,null,""]
[null,null,null,null,null,null,null,null,null,null,null,null,null,null,null,""]
[null,null,null,null,null,null,null,null,null,null,null,null,null,null,null,""]
[null,null,null,null,null,null,null,null,null,null,null,null,null,null,null,""]
[null,null,null,null,null,null,null,null,null,null,null,null,null,null,null,""]
[null,null,null,null,null,null,null,null,null,null,null,null,null,null,null,""]
[null,null,null,null,null,null,null,null,null,null,null,null,null,null,null,""]
[null,null,null,null,null,null,null,null,null,null,null,null,null,null,null,""]
[null,null,null,null,null,null,null,null,null,null,null,null,null,null,null,""]
[null,null,null,null,null,null,null,null,null,null,null,null,null,null,null,""]
[null,null,null,null,null,null,null,null,null,null,null,null,null,null,null,""]
[null,null,null,null,null,null,null,null,null,null,null,null,null,null,null,""]
[null,null,null,null,null,null,null,null,null,null,null,null,null,null,null,""]
[null,null,null,null,null,null,null,null,null,null,null,null,null,null,null,""]
[null,null,null,null,null,null,null,null,null,null,null,null,null,null,null,""]
[null,null,null,null,null,null,null,null,null,null,null,null,null,null,null,""]
[null,null,null,null,null,null,null,null,null,null,null,null,null,null,null,""]
[null,null,null,null,null,null,null,null,null,null,null,null,null,null,null,""]
[null,null,null,null,null,null,null,null,null,null,null,null,null,null,null,""]
[null,null,null,null,null,null,null,null,null,null,null,null,null,null,null,""]
[null,null,null,null,null,null,null,null,null,null,null,null,null,null,null,""]
[null,null,null,null,null,null,null,null,null,null,null,null,null,null,null,""]
[null,null,null,null,null,null,null,null,null,null,null,null,null,null,null,""]
[null,null,null,null,null,null,null,null,null,null,null,null,null,null,null,""]
[null,null,null,null,null,null,null,null,null,null,null,null,null,null,null,""]
[null,null,null,null,null,null,null,null,null,null,null,null,null,null,null,""]
[null,null,null,null,null,null,null,null,null,null,null,null,null,null,null,""]
[null,null,null,null,null,null,null,null,null,null,null,null,null,null,null,""]
[null,null,null,null,null,null,null,null,null,null,null,null,null,null,null,""]
[null,null,null,null,null,null,null,null,null,null,null,null,null,null,null,""]
[null,null,null,null,null,null,null,null,null,null,null,null,null,null,null,""]
[null,null,null,null,null,null,null,null,null,null,null,null,null,null,null,""]
[null,null,null,null,null,null,null,null,null,null,null,null,null,null,null,""]
[null,null,null,null,null,null,null,null,null,null,null,null,null,null,null,""]
[null,null,null,null,null,null,null,null,null,null,null,null,null,null,null,""]
[null,null,null,null,null,null,null,null,null,null,null,null,null,null,null,""]
[null,null,null,null,null,null,null,null,null,null,null,null,null,null,null,""]
[null,null,null,null,null,null,null,null,null,null,null,null,null,null,null,""]
[null,null,null,null,null,null,null,null,null,null,null,null,null,null,null,""]
[null,null,null,null,null,null,null,null,null,null,null,null,null,null,null,""]
[null,null,null,null,null,null,null,null,null,null,null,null,null,null,null,""]
[null,null,null,null,null,null,null,null,null,null,null,null,null,null,null,""]
[null,null,null,null,null,null,null,null,null,null,null,null,null,null,null,""]
[null,null,null,null,null,null,null,null,null,null,null,null,null,null,null,""]
[null,null,null,null,null,null,null,null,null,null,null,null,null,null,null,""]
[null,null,null,null,null,null,null,null,null,null,null,null,null,null,null,""]
[null,null,null,null,null,null,null,null,null,null,null,null,null,null,null,""]
[null,null,null,null,null,null,null,null,null,null,null,null,null,null,null,""]
[null,null,null,null,null,null,null,null,null,null,null,null,null,null,null,""]
[null,null,null,null,null,null,null,null,null,null,null,null,null,null,null,""]
[null,null,null,null,null,null,null,null,null,null,null,null,null,null,null,{"$f":"B644&IF(AND(C644=\"\",D644=\"\",E644=\"\"),\"\",\" - \")&C644&IF(OR(D644=\"\",C644=\"\"),\"\",\" - \")&D644","v":""}]
[null,null,null,null,null,null,null,null,null,null,null,null,null,null,null,""]
[null,null,null,null,null,null,null,null,null,null,null,null,null,null,null,""]
[null,null,null,null,null,null,null,null,null,null,null,null,null,null,null,""]
[null,null,null,null,null,null,null,null,null,null,null,null,null,null,null,""]
[null,null,null,null,null,null,null,null,null,null,null,null,null,null,null,""]
[null,null,null,null,null,null,null,null,null,null,null,null,null,null,null,""]
[null,null,null,null,null,null,null,null,null,null,null,null,null,null,null,""]
[null,null,null,null,null,null,null,null,null,null,null,null,null,null,null,""]
[null,null,null,null,null,null,null,null,null,null,null,null,null,null,null,""]
[null,null,null,null,null,null,null,null,null,null,null,null,null,null,null,""]
[null,null,null,null,null,null,null,null,null,null,null,null,null,null,null,""]
[null,null,null,null,null,null,null,null,null,null,null,null,null,null,null,""]
[null,null,null,null,null,null,null,null,null,null,null,null,null,null,null,""]
[null,null,null,null,null,null,null,null,null,null,null,null,null,null,null,""]
[null,null,null,null,null,null,null,null,null,null,null,null,null,null,null,""]
[null,null,null,null,null,null,null,null,null,null,null,null,null,null,null,""]
[null,null,null,null,null,null,null,null,null,null,null,null,null,null,null,""]
[null,null,null,null,null,null,null,null,null,null,null,null,null,null,null,""]
[null,null,null,null,null,null,null,null,null,null,null,null,null,null,null,""]
[null,null,null,null,null,null,null,null,null,null,null,null,null,null,null,""]
[null,null,null,null,null,null,null,null,null,null,null,null,null,null,null,""]
[null,null,null,null,null,null,null,null,null,null,null,null,null,null,null,""]
[null,null,null,null,null,null,null,null,null,null,null,null,null,null,null,""]
[null,null,null,null,null,null,null,null,null,null,null,null,null,null,null,""]
[null,null,null,null,null,null,null,null,null,null,null,null,null,null,null,""]
[null,null,null,null,null,null,null,null,null,null,null,null,null,null,null,""]
[null,null,null,null,null,null,null,null,null,null,null,null,null,null,null,""]
[null,null,null,null,null,null,null,null,null,null,null,null,null,null,null,""]
[null,null,null,null,null,null,null,null,null,null,null,null,null,null,null,""]
[null,null,null,null,null,null,null,null,null,null,null,null,null,null,null,""]
[null,null,null,null,null,null,null,null,null,null,null,null,null,null,null,""]
[null,null,null,null,null,null,null,null,null,null,null,null,null,null,null,""]
[null,null,null,null,null,null,null,null,null,null,null,null,null,null,null,""]
[null,null,null,null,null,null,null,null,null,null,null,null,null,null,null,""]
[null,null,null,null,null,null,null,null,null,null,null,null,null,null,null,""]
[null,null,null,null,null,null,null,null,null,null,null,null,null,null,null,""]
[null,null,null,null,null,null,null,null,null,null,null,null,null,null,null,""]
[null,null,null,null,null,null,null,null,null,null,null,null,null,null,null,""]
[null,null,null,null,null,null,null,null,null,null,null,null,null,null,null,""]
[null,null,null,null,null,null,null,null,null,null,null,null,null,null,null,""]
[null,null,null,null,null,null,null,null,null,null,null,null,null,null,null,""]
[null,null,null,null,null,null,null,null,null,null,null,null,null,null,null,""]
[null,null,null,null,null,null,null,null,null,null,null,null,null,null,null,""]
[null,null,null,null,null,null,null,null,null,null,null,null,null,null,null,""]
[null,null,null,null,null,null,null,null,null,null,null,null,null,null,null,""]
[null,null,null,null,null,null,null,null,null,null,null,null,null,null,null,""]
[null,null,null,null,null,null,null,null,null,null,null,null,null,null,null,""]
[null,null,null,null,null,null,null,null,null,null,null,null,null,null,null,""]
[null,null,null,null,null,null,null,null,null,null,null,null,null,null,null,""]
[null,null,null,null,null,null,null,null,null,null,null,null,null,null,null,""]
[null,null,null,null,null,null,null,null,null,null,null,null,null,null,null,""]
[null,null,null,null,null,null,null,null,null,null,null,null,null,null,null,""]
[null,null,null,null,null,null,null,null,null,null,null,null,null,null,null,""]
[null,null,null,null,null,null,null,null,null,null,null,null,null,null,null,""]
[null,null,null,null,null,null,null,null,null,null,null,null,null,null,null,""]
[null,null,null,null,null,null,null,null,null,null,null,null,null,null,null,""]
[null,null,null,null,null,null,null,null,null,null,null,null,null,null,null,""]
[null,null,null,null,null,null,null,null,null,null,null,null,null,null,null,""]
[null,null,null,null,null,null,null,null,null,null,null,null,null,null,null,""]
[null,null,null,null,null,null,null,null,null,null,null,null,null,null,null,""]
[null,null,null,null,null,null,null,null,null,null,null,null,null,null,null,""]
[null,null,null,null,null,null,null,null,null,null,null,null,null,null,null,""]
[null,null,null,null,null,null,null,null,null,null,null,null,null,null,null,""]
[null,null,null,null,null,null,null,null,null,null,null,null,null,null,null,{"$f":"B708&IF(AND(C708=\"\",D708=\"\",E708=\"\"),\"\",\" - \")&C708&IF(OR(D708=\"\",C708=\"\"),\"\",\" - \")&D708","v":""}]
[null,null,null,null,null,null,null,null,null,null,null,null,null,null,null,""]
[null,null,null,null,null,null,null,null,null,null,null,null,null,null,null,""]
[null,null,null,null,null,null,null,null,null,null,null,null,null,null,null,""]
[null,null,null,null,null,null,null,null,null,null,null,null,null,null,null,""]
[null,null,null,null,null,null,null,null,null,null,null,null,null,null,null,""]
[null,null,null,null,null,null,null,null,null,null,null,null,null,null,null,""]
[null,null,null,null,null,null,null,null,null,null,null,null,null,null,null,""]
[null,null,null,null,null,null,null,null,null,null,null,null,null,null,null,""]
[null,null,null,null,null,null,null,null,null,null,null,null,null,null,null,""]
[null,null,null,null,null,null,null,null,null,null,null,null,null,null,null,""]
[null,null,null,null,null,null,null,null,null,null,null,null,null,null,null,""]
[null,null,null,null,null,null,null,null,null,null,null,null,null,null,null,""]
[null,null,null,null,null,null,null,null,null,null,null,null,null,null,null,""]
[null,null,null,null,null,null,null,null,null,null,null,null,null,null,null,""]
[null,null,null,null,null,null,null,null,null,null,null,null,null,null,null,""]
[null,null,null,null,null,null,null,null,null,null,null,null,null,null,null,""]
[null,null,null,null,null,null,null,null,null,null,null,null,null,null,null,""]
[null,null,null,null,null,null,null,null,null,null,null,null,null,null,null,""]
[null,null,null,null,null,null,null,null,null,null,null,null,null,null,null,""]
[null,null,null,null,null,null,null,null,null,null,null,null,null,null,null,""]
[null,null,null,null,null,null,null,null,null,null,null,null,null,null,null,""]
[null,null,null,null,null,null,null,null,null,null,null,null,null,null,null,""]
[null,null,null,null,null,null,null,null,null,null,null,null,null,null,null,""]
[null,null,null,null,null,null,null,null,null,null,null,null,null,null,null,""]
[null,null,null,null,null,null,null,null,null,null,null,null,null,null,null,""]
[null,null,null,null,null,null,null,null,null,null,null,null,null,null,null,""]
[null,null,null,null,null,null,null,null,null,null,null,null,null,null,null,""]
[null,null,null,null,null,null,null,null,null,null,null,null,null,null,null,""]
[null,null,null,null,null,null,null,null,null,null,null,null,null,null,null,""]
[null,null,null,null,null,null,null,null,null,null,null,null,null,null,null,""]
[null,null,null,null,null,null,null,null,null,null,null,null,null,null,null,""]
[null,null,null,null,null,null,null,null,null,null,null,null,null,null,null,""]
[null,null,null,null,null,null,null,null,null,null,null,null,null,null,null,""]
[null,null,null,null,null,null,null,null,null,null,null,null,null,null,null,""]
[null,null,null,null,null,null,null,null,null,null,null,null,null,null,null,""]
[null,null,null,null,null,null,null,null,null,null,null,null,null,null,null,""]
[null,null,null,null,null,null,null,null,null,null,null,null,null,null,null,""]
[null,null,null,null,null,null,null,null,null,null,null,null,null,null,null,""]
[null,null,null,null,null,null,null,null,null,null,null,null,null,null,null,""]
[null,null,null,null,null,null,null,null,null,null,null,null,null,null,null,""]
[null,null,null,null,null,null,null,null,null,null,null,null,null,null,null,""]
[null,null,null,null,null,null,null,null,null,null,null,null,null,null,null,""]
[null,null,null,null,null,null,null,null,null,null,null,null,null,null,null,""]
[null,null,null,null,null,null,null,null,null,null,null,null,null,null,null,""]
[null,null,null,null,null,null,null,null,null,null,null,null,null,null,null,""]
[null,null,null,null,null,null,null,null,null,null,null,null,null,null,null,""]
[null,null,null,null,null,null,null,null,null,null,null,null,null,null,null,""]
[null,null,null,null,null,null,null,null,null,null,null,null,null,null,null,""]
[null,null,null,null,null,null,null,null,null,null,null,null,null,null,null,""]
[null,null,null,null,null,null,null,null,null,null,null,null,null,null,null,""]
[null,null,null,null,null,null,null,null,null,null,null,null,null,null,null,""]
[null,null,null,null,null,null,null,null,null,null,null,null,null,null,null,""]
[null,null,null,null,null,null,null,null,null,null,null,null,null,null,null,""]
[null,null,null,null,null,null,null,null,null,null,null,null,null,null,null,""]
[null,null,null,null,null,null,null,null,null,null,null,null,null,null,null,""]
[null,null,null,null,null,null,null,null,null,null,null,null,null,null,null,""]
[null,null,null,null,null,null,null,null,null,null,null,null,null,null,null,""]
[null,null,null,null,null,null,null,null,null,null,null,null,null,null,null,""]
[null,null,null,null,null,null,null,null,null,null,null,null,null,null,null,""]
[null,null,null,null,null,null,null,null,null,null,null,null,null,null,null,""]
[null,null,null,null,null,null,null,null,null,null,null,null,null,null,null,""]
[null,null,null,null,null,null,null,null,null,null,null,null,null,null,null,""]
[null,null,null,null,null,null,null,null,null,null,null,null,null,null,null,""]
[null,null,null,null,null,null,null,null,null,null,null,null,null,null,null,{"$f":"B772&IF(AND(C772=\"\",D772=\"\",E772=\"\"),\"\",\" - \")&C772&IF(OR(D772=\"\",C772=\"\"),\"\",\" - \")&D772","v":""}]
[null,null,null,null,null,null,null,null,null,null,null,null,null,null,null,""]
[null,null,null,null,null,null,null,null,null,null,null,null,null,null,null,""]
[null,null,null,null,null,null,null,null,null,null,null,null,null,null,null,""]
[null,null,null,null,null,null,null,null,null,null,null,null,null,null,null,""]
[null,null,null,null,null,null,null,null,null,null,null,null,null,null,null,""]
[null,null,null,null,null,null,null,null,null,null,null,null,null,null,null,""]
[null,null,null,null,null,null,null,null,null,null,null,null,null,null,null,""]
[null,null,null,null,null,null,null,null,null,null,null,null,null,null,null,""]
[null,null,null,null,null,null,null,null,null,null,null,null,null,null,null,""]
[null,null,null,null,null,null,null,null,null,null,null,null,null,null,null,""]
[null,null,null,null,null,null,null,null,null,null,null,null,null,null,null,""]
[null,null,null,null,null,null,null,null,null,null,null,null,null,null,null,""]
[null,null,null,null,null,null,null,null,null,null,null,null,null,null,null,""]
[null,null,null,null,null,null,null,null,null,null,null,null,null,null,null,""]
[null,null,null,null,null,null,null,null,null,null,null,null,null,null,null,""]
[null,null,null,null,null,null,null,null,null,null,null,null,null,null,null,""]
[null,null,null,null,null,null,null,null,null,null,null,null,null,null,null,""]
[null,null,null,null,null,null,null,null,null,null,null,null,null,null,null,""]
[null,null,null,null,null,null,null,null,null,null,null,null,null,null,null,""]
[null,null,null,null,null,null,null,null,null,null,null,null,null,null,null,""]
[null,null,null,null,null,null,null,null,null,null,null,null,null,null,null,""]
[null,null,null,null,null,null,null,null,null,null,null,null,null,null,null,""]
[null,null,null,null,null,null,null,null,null,null,null,null,null,null,null,""]
[null,null,null,null,null,null,null,null,null,null,null,null,null,null,null,""]
[null,null,null,null,null,null,null,null,null,null,null,null,null,null,null,""]
[null,null,null,null,null,null,null,null,null,null,null,null,null,null,null,""]
[null,null,null,null,null,null,null,null,null,null,null,null,null,null,null,""]
[null,null,null,null,null,null,null,null,null,null,null,null,null,null,null,""]
[null,null,null,null,null,null,null,null,null,null,null,null,null,null,null,""]
[null,null,null,null,null,null,null,null,null,null,null,null,null,null,null,""]
[null,null,null,null,null,null,null,null,null,null,null,null,null,null,null,""]
[null,null,null,null,null,null,null,null,null,null,null,null,null,null,null,""]
[null,null,null,null,null,null,null,null,null,null,null,null,null,null,null,""]
[null,null,null,null,null,null,null,null,null,null,null,null,null,null,null,""]
[null,null,null,null,null,null,null,null,null,null,null,null,null,null,null,""]
[null,null,null,null,null,null,null,null,null,null,null,null,null,null,null,""]
[null,null,null,null,null,null,null,null,null,null,null,null,null,null,null,""]
[null,null,null,null,null,null,null,null,null,null,null,null,null,null,null,""]
[null,null,null,null,null,null,null,null,null,null,null,null,null,null,null,""]
[null,null,null,null,null,null,null,null,null,null,null,null,null,null,null,""]
[null,null,null,null,null,null,null,null,null,null,null,null,null,null,null,""]
[null,null,null,null,null,null,null,null,null,null,null,null,null,null,null,""]
[null,null,null,null,null,null,null,null,null,null,null,null,null,null,null,""]
[null,null,null,null,null,null,null,null,null,null,null,null,null,null,null,""]
[null,null,null,null,null,null,null,null,null,null,null,null,null,null,null,""]
[null,null,null,null,null,null,null,null,null,null,null,null,null,null,null,""]
[null,null,null,null,null,null,null,null,null,null,null,null,null,null,null,""]
[null,null,null,null,null,null,null,null,null,null,null,null,null,null,null,""]
[null,null,null,null,null,null,null,null,null,null,null,null,null,null,null,""]
[null,null,null,null,null,null,null,null,null,null,null,null,null,null,null,""]
[null,null,null,null,null,null,null,null,null,null,null,null,null,null,null,""]
[null,null,null,null,null,null,null,null,null,null,null,null,null,null,null,""]
[null,null,null,null,null,null,null,null,null,null,null,null,null,null,null,""]
[null,null,null,null,null,null,null,null,null,null,null,null,null,null,null,""]
[null,null,null,null,null,null,null,null,null,null,null,null,null,null,null,""]
[null,null,null,null,null,null,null,null,null,null,null,null,null,null,null,""]
[null,null,null,null,null,null,null,null,null,null,null,null,null,null,null,""]
[null,null,null,null,null,null,null,null,null,null,null,null,null,null,null,""]
[null,null,null,null,null,null,null,null,null,null,null,null,null,null,null,""]
[null,null,null,null,null,null,null,null,null,null,null,null,null,null,null,""]
[null,null,null,null,null,null,null,null,null,null,null,null,null,null,null,""]
[null,null,null,null,null,null,null,null,null,null,null,null,null,null,null,""]
[null,null,null,null,null,null,null,null,null,null,null,null,null,null,null,""]
[null,null,null,null,null,null,null,null,null,null,null,null,null,null,null,{"$f":"B836&IF(AND(C836=\"\",D836=\"\",E836=\"\"),\"\",\" - \")&C836&IF(OR(D836=\"\",C836=\"\"),\"\",\" - \")&D836","v":""}]
[null,null,null,null,null,null,null,null,null,null,null,null,null,null,null,""]
[null,null,null,null,null,null,null,null,null,null,null,null,null,null,null,""]
[null,null,null,null,null,null,null,null,null,null,null,null,null,null,null,""]
[null,null,null,null,null,null,null,null,null,null,null,null,null,null,null,""]
[null,null,null,null,null,null,null,null,null,null,null,null,null,null,null,""]
[null,null,null,null,null,null,null,null,null,null,null,null,null,null,null,""]
[null,null,null,null,null,null,null,null,null,null,null,null,null,null,null,""]
[null,null,null,null,null,null,null,null,null,null,null,null,null,null,null,""]
[null,null,null,null,null,null,null,null,null,null,null,null,null,null,null,""]
[null,null,null,null,null,null,null,null,null,null,null,null,null,null,null,""]
[null,null,null,null,null,null,null,null,null,null,null,null,null,null,null,""]
[null,null,null,null,null,null,null,null,null,null,null,null,null,null,null,""]
[null,null,null,null,null,null,null,null,null,null,null,null,null,null,null,""]
[null,null,null,null,null,null,null,null,null,null,null,null,null,null,null,""]
[null,null,null,null,null,null,null,null,null,null,null,null,null,null,null,""]
[null,null,null,null,null,null,null,null,null,null,null,null,null,null,null,""]
[null,null,null,null,null,null,null,null,null,null,null,null,null,null,null,""]
[null,null,null,null,null,null,null,null,null,null,null,null,null,null,null,""]
[null,null,null,null,null,null,null,null,null,null,null,null,null,null,null,""]
[null,null,null,null,null,null,null,null,null,null,null,null,null,null,null,""]
[null,null,null,null,null,null,null,null,null,null,null,null,null,null,null,""]
[null,null,null,null,null,null,null,null,null,null,null,null,null,null,null,""]
[null,null,null,null,null,null,null,null,null,null,null,null,null,null,null,""]
[null,null,null,null,null,null,null,null,null,null,null,null,null,null,null,""]
[null,null,null,null,null,null,null,null,null,null,null,null,null,null,null,""]
[null,null,null,null,null,null,null,null,null,null,null,null,null,null,null,""]
[null,null,null,null,null,null,null,null,null,null,null,null,null,null,null,""]
[null,null,null,null,null,null,null,null,null,null,null,null,null,null,null,""]
[null,null,null,null,null,null,null,null,null,null,null,null,null,null,null,""]
[null,null,null,null,null,null,null,null,null,null,null,null,null,null,null,""]
[null,null,null,null,null,null,null,null,null,null,null,null,null,null,null,""]
[null,null,null,null,null,null,null,null,null,null,null,null,null,null,null,""]
[null,null,null,null,null,null,null,null,null,null,null,null,null,null,null,""]
[null,null,null,null,null,null,null,null,null,null,null,null,null,null,null,""]
[null,null,null,null,null,null,null,null,null,null,null,null,null,null,null,""]
[null,null,null,null,null,null,null,null,null,null,null,null,null,null,null,""]
[null,null,null,null,null,null,null,null,null,null,null,null,null,null,null,""]
[null,null,null,null,null,null,null,null,null,null,null,null,null,null,null,""]
[null,null,null,null,null,null,null,null,null,null,null,null,null,null,null,""]
[null,null,null,null,null,null,null,null,null,null,null,null,null,null,null,""]
[null,null,null,null,null,null,null,null,null,null,null,null,null,null,null,""]
[null,null,null,null,null,null,null,null,null,null,null,null,null,null,null,""]
[null,null,null,null,null,null,null,null,null,null,null,null,null,null,null,""]
[null,null,null,null,null,null,null,null,null,null,null,null,null,null,null,""]
[null,null,null,null,null,null,null,null,null,null,null,null,null,null,null,""]
[null,null,null,null,null,null,null,null,null,null,null,null,null,null,null,""]
[null,null,null,null,null,null,null,null,null,null,null,null,null,null,null,""]
[null,null,null,null,null,null,null,null,null,null,null,null,null,null,null,""]
[null,null,null,null,null,null,null,null,null,null,null,null,null,null,null,""]
[null,null,null,null,null,null,null,null,null,null,null,null,null,null,null,""]
[null,null,null,null,null,null,null,null,null,null,null,null,null,null,null,""]
[null,null,null,null,null,null,null,null,null,null,null,null,null,null,null,""]
[null,null,null,null,null,null,null,null,null,null,null,null,null,null,null,""]
[null,null,null,null,null,null,null,null,null,null,null,null,null,null,null,""]
[null,null,null,null,null,null,null,null,null,null,null,null,null,null,null,""]
[null,null,null,null,null,null,null,null,null,null,null,null,null,null,null,""]
[null,null,null,null,null,null,null,null,null,null,null,null,null,null,null,""]
[null,null,null,null,null,null,null,null,null,null,null,null,null,null,null,""]
[null,null,null,null,null,null,null,null,null,null,null,null,null,null,null,""]
[null,null,null,null,null,null,null,null,null,null,null,null,null,null,null,""]
[null,null,null,null,null,null,null,null,null,null,null,null,null,null,null,""]
[null,null,null,null,null,null,null,null,null,null,null,null,null,null,null,""]
[null,null,null,null,null,null,null,null,null,null,null,null,null,null,null,""]
[null,null,null,null,null,null,null,null,null,null,null,null,null,null,null,{"$f":"B900&IF(AND(C900=\"\",D900=\"\",E900=\"\"),\"\",\" - \")&C900&IF(OR(D900=\"\",C900=\"\"),\"\",\" - \")&D900","v":""}]
[null,null,null,null,null,null,null,null,null,null,null,null,null,null,null,""]
[null,null,null,null,null,null,null,null,null,null,null,null,null,null,null,""]
[null,null,null,null,null,null,null,null,null,null,null,null,null,null,null,""]
[null,null,null,null,null,null,null,null,null,null,null,null,null,null,null,""]
[null,null,null,null,null,null,null,null,null,null,null,null,null,null,null,""]
[null,null,null,null,null,null,null,null,null,null,null,null,null,null,null,""]
[null,null,null,null,null,null,null,null,null,null,null,null,null,null,null,""]
[null,null,null,null,null,null,null,null,null,null,null,null,null,null,null,""]
[null,null,null,null,null,null,null,null,null,null,null,null,null,null,null,""]
[null,null,null,null,null,null,null,null,null,null,null,null,null,null,null,""]
[null,null,null,null,null,null,null,null,null,null,null,null,null,null,null,""]
[null,null,null,null,null,null,null,null,null,null,null,null,null,null,null,""]
[null,null,null,null,null,null,null,null,null,null,null,null,null,null,null,""]
[null,null,null,null,null,null,null,null,null,null,null,null,null,null,null,""]
[null,null,null,null,null,null,null,null,null,null,null,null,null,null,null,""]
[null,null,null,null,null,null,null,null,null,null,null,null,null,null,null,""]
[null,null,null,null,null,null,null,null,null,null,null,null,null,null,null,""]
[null,null,null,null,null,null,null,null,null,null,null,null,null,null,null,""]
[null,null,null,null,null,null,null,null,null,null,null,null,null,null,null,""]
[null,null,null,null,null,null,null,null,null,null,null,null,null,null,null,""]
[null,null,null,null,null,null,null,null,null,null,null,null,null,null,null,""]
[null,null,null,null,null,null,null,null,null,null,null,null,null,null,null,""]
[null,null,null,null,null,null,null,null,null,null,null,null,null,null,null,""]
[null,null,null,null,null,null,null,null,null,null,null,null,null,null,null,""]
[null,null,null,null,null,null,null,null,null,null,null,null,null,null,null,""]
[null,null,null,null,null,null,null,null,null,null,null,null,null,null,null,""]
[null,null,null,null,null,null,null,null,null,null,null,null,null,null,null,""]
[null,null,null,null,null,null,null,null,null,null,null,null,null,null,null,""]
[null,null,null,null,null,null,null,null,null,null,null,null,null,null,null,""]
[null,null,null,null,null,null,null,null,null,null,null,null,null,null,null,""]
[null,null,null,null,null,null,null,null,null,null,null,null,null,null,null,""]
[null,null,null,null,null,null,null,null,null,null,null,null,null,null,null,""]
[null,null,null,null,null,null,null,null,null,null,null,null,null,null,null,""]
[null,null,null,null,null,null,null,null,null,null,null,null,null,null,null,""]
[null,null,null,null,null,null,null,null,null,null,null,null,null,null,null,""]
[null,null,null,null,null,null,null,null,null,null,null,null,null,null,null,""]
[null,null,null,null,null,null,null,null,null,null,null,null,null,null,null,""]
[null,null,null,null,null,null,null,null,null,null,null,null,null,null,null,""]
[null,null,null,null,null,null,null,null,null,null,null,null,null,null,null,""]
[null,null,null,null,null,null,null,null,null,null,null,null,null,null,null,""]
[null,null,null,null,null,null,null,null,null,null,null,null,null,null,null,""]
[null,null,null,null,null,null,null,null,null,null,null,null,null,null,null,""]
[null,null,null,null,null,null,null,null,null,null,null,null,null,null,null,""]
[null,null,null,null,null,null,null,null,null,null,null,null,null,null,null,""]
[null,null,null,null,null,null,null,null,null,null,null,null,null,null,null,""]
[null,null,null,null,null,null,null,null,null,null,null,null,null,null,null,""]
[null,null,null,null,null,null,null,null,null,null,null,null,null,null,null,""]
[null,null,null,null,null,null,null,null,null,null,null,null,null,null,null,""]
[null,null,null,null,null,null,null,null,null,null,null,null,null,null,null,""]
[null,null,null,null,null,null,null,null,null,null,null,null,null,null,null,""]
[null,null,null,null,null,null,null,null,null,null,null,null,null,null,null,""]
[null,null,null,null,null,null,null,null,null,null,null,null,null,null,null,""]
[null,null,null,null,null,null,null,null,null,null,null,null,null,null,null,""]
[null,null,null,null,null,null,null,null,null,null,null,null,null,null,null,""]
[null,null,null,null,null,null,null,null,null,null,null,null,null,null,null,""]
[null,null,null,null,null,null,null,null,null,null,null,null,null,null,null,""]
[null,null,null,null,null,null,null,null,null,null,null,null,null,null,null,""]
[null,null,null,null,null,null,null,null,null,null,null,null,null,null,null,""]
[null,null,null,null,null,null,null,null,null,null,null,null,null,null,null,""]
[null,null,null,null,null,null,null,null,null,null,null,null,null,null,null,""]
[null,null,null,null,null,null,null,null,null,null,null,null,null,null,null,""]
[null,null,null,null,null,null,null,null,null,null,null,null,null,null,null,""]
[null,null,null,null,null,null,null,null,null,null,null,null,null,null,null,""]
[null,null,null,null,null,null,null,null,null,null,null,null,null,null,null,{"$f":"B964&IF(AND(C964=\"\",D964=\"\",E964=\"\"),\"\",\" - \")&C964&IF(OR(D964=\"\",C964=\"\"),\"\",\" - \")&D964","v":""}]
[null,null,null,null,null,null,null,null,null,null,null,null,null,null,null,""]
[null,null,null,null,null,null,null,null,null,null,null,null,null,null,null,""]
[null,null,null,null,null,null,null,null,null,null,null,null,null,null,null,""]
[null,null,null,null,null,null,null,null,null,null,null,null,null,null,null,""]
[null,null,null,null,null,null,null,null,null,null,null,null,null,null,null,""]
[null,null,null,null,null,null,null,null,null,null,null,null,null,null,null,""]
[null,null,null,null,null,null,null,null,null,null,null,null,null,null,null,""]
[null,null,null,null,null,null,null,null,null,null,null,null,null,null,null,""]
[null,null,null,null,null,null,null,null,null,null,null,null,null,null,null,""]
[null,null,null,null,null,null,null,null,null,null,null,null,null,null,null,""]
[null,null,null,null,null,null,null,null,null,null,null,null,null,null,null,""]
[null,null,null,null,null,null,null,null,null,null,null,null,null,null,null,""]
[null,null,null,null,null,null,null,null,null,null,null,null,null,null,null,""]
[null,null,null,null,null,null,null,null,null,null,null,null,null,null,null,""]
[null,null,null,null,null,null,null,null,null,null,null,null,null,null,null,""]
[null,null,null,null,null,null,null,null,null,null,null,null,null,null,null,""]
[null,null,null,null,null,null,null,null,null,null,null,null,null,null,null,""]
[null,null,null,null,null,null,null,null,null,null,null,null,null,null,null,""]
[null,null,null,null,null,null,null,null,null,null,null,null,null,null,null,""]
[null,null,null,null,null,null,null,null,null,null,null,null,null,null,null,""]
[null,null,null,null,null,null,null,null,null,null,null,null,null,null,null,""]
[null,null,null,null,null,null,null,null,null,null,null,null,null,null,null,""]
[null,null,null,null,null,null,null,null,null,null,null,null,null,null,null,""]
[null,null,null,null,null,null,null,null,null,null,null,null,null,null,null,""]
[null,null,null,null,null,null,null,null,null,null,null,null,null,null,null,""]
[null,null,null,null,null,null,null,null,null,null,null,null,null,null,null,""]
[null,null,null,null,null,null,null,null,null,null,null,null,null,null,null,""]
[null,null,null,null,null,null,null,null,null,null,null,null,null,null,null,""]
[null,null,null,null,null,null,null,null,null,null,null,null,null,null,null,""]
[null,null,null,null,null,null,null,null,null,null,null,null,null,null,null,""]
[null,null,null,null,null,null,null,null,null,null,null,null,null,null,null,""]
[null,null,null,null,null,null,null,null,null,null,null,null,null,null,null,""]
[null,null,null,null,null,null,null,null,null,null,null,null,null,null,null,""]
[null,null,null,null,null,null,null,null,null,null,null,null,null,null,null,""]
[null,null,null,null,null,null,null,null,null,null,null,null,null,null,null,""]
[null,null,null,null,null,null,null,null,null,null,null,null,null,null,null,""]
[null,null,null,null,null,null,null,null,null,null,null,null,null,null,null,""]
[null,null,null,null,null,null,null,null,null,null,null,null,null,null,null,""]
[null,null,null,null,null,null,null,null,null,null,null,null,null,null,null,""]

{"sheet":"Izdavaoci","index":6,"n_rows":17,"n_cols":5,"rows_kept":17,"cut":false,"hidden":false,"merged":[]}
[]
[null,"IZDAVAOCI RAČUNA",null,null,"bizBox Excel eRačun"]
[null,"Podatak","ZZI doo Podgorica","Preduzeće 2","Preduzeće 3"]
[null,"Naziv","ZZI doo Podgorica"]
[null,"Adresa","ul Moskovska 77"]
[null,"Poštanski broj",81000]
[null,"Grad","Podgorica"]
[null,"Država","ME"]
[null,"Kontakt osoba","Jelena Milojković"]
[null,"E-pošta","info@zzi.co.me"]
[null,"Telefon",38220229560]
[null,"Matični broj","02328097"]
[null,"Poreski broj","02328097"]
[null,"Obveznik za PDV","DA"]
[null,"IBAN"]
[null,"BIC"]
[null,"Tekst u podnožju povezan je sa ZPD"]

{"sheet":"Artikli","index":7,"n_rows":1005,"n_cols":8,"rows_kept":1005,"cut":false,"hidden":false,"merged":[]}
[]
[null,"ARTIKLI",null,null,null,"bizBox Excel eRačun"]
[null,"ID","Naziv","Šifra","Jed.Mjere","Cijena",null,"temp"]
[null,1,"Prvi","abc-0001","W/h",100,null,{"$f":"B4","v":1}]
[null,2,"Drugi","abc-0002","kom",5.17,null,{"$f":"B5","v":2}]
[null,3,"Treći",null,"kom",19.989999999999998,null,3]
[null,4,"Četvrti","abc-0004","m3",15000,null,4]
[null,5,"Peti",null,"KW/h",5.0000000000000001E-3,null,5]
[null,6,"Šesti","abc-0006","Kg",12.811999999999999,null,6]
[null,7,null,null,null,null,null,7]
[null,8,null,null,null,null,null,8]
[null,9,null,null,null,null,null,9]
[null,10,null,null,null,null,null,10]
[null,11,null,null,null,null,null,11]
[null,12,null,null,null,null,null,12]
[null,13,null,null,null,null,null,13]
[null,14,null,null,null,null,null,14]
[null,null,null,null,null,null,null,0]
[null,null,null,null,null,null,null,0]
[null,null,null,null,null,null,null,0]
[null,null,null,null,null,null,null,0]
[null,null,null,null,null,null,null,0]
[null,null,null,null,null,null,null,0]
[null,null,null,null,null,null,null,0]
[null,null,null,null,null,null,null,0]
[null,null,null,null,null,null,null,0]
[null,null,null,null,null,null,null,0]
[null,null,null,null,null,null,null,0]
[null,null,null,null,null,null,null,0]
[null,null,null,null,null,null,null,0]
[null,null,null,null,null,null,null,0]
[null,null,null,null,null,null,null,0]
[null,null,null,null,null,null,null,0]
[null,null,null,null,null,null,null,0]
[null,null,null,null,null,null,null,0]
[null,null,null,null,null,null,null,0]
[null,null,null,null,null,null,null,0]
[null,null,null,null,null,null,null,0]
[null,null,null,null,null,null,null,0]
[null,null,null,null,null,null,null,0]
[null,null,null,null,null,null,null,0]
[null,null,null,null,null,null,null,0]
[null,null,null,null,null,null,null,0]
[null,null,null,null,null,null,null,0]
[null,null,null,null,null,null,null,0]
[null,null,null,null,null,null,null,0]
[null,null,null,null,null,null,null,0]
[null,null,null,null,null,null,null,0]
[null,null,null,null,null,null,null,0]
[null,null,null,null,null,null,null,0]
[null,null,null,null,null,null,null,0]
[null,null,null,null,null,null,null,0]
[null,null,null,null,null,null,null,0]
[null,null,null,null,null,null,null,0]
[null,null,null,null,null,null,null,0]
[null,null,null,null,null,null,null,0]
[null,null,null,null,null,null,null,0]
[null,null,null,null,null,null,null,0]
[null,null,null,null,null,null,null,0]
[null,null,null,null,null,null,null,0]
[null,null,null,null,null,null,null,0]
[null,null,null,null,null,null,null,0]
[null,null,null,null,null,null,null,0]
[null,null,null,null,null,null,null,0]
[null,null,null,null,null,null,null,0]
[null,null,null,null,null,null,null,0]
[null,null,null,null,null,null,null,0]
[null,null,null,null,null,null,null,0]
[null,null,null,null,null,null,null,{"$f":"B69","v":0}]
[null,null,null,null,null,null,null,0]
[null,null,null,null,null,null,null,0]
[null,null,null,null,null,null,null,0]
[null,null,null,null,null,null,null,0]
[null,null,null,null,null,null,null,0]
[null,null,null,null,null,null,null,0]
[null,null,null,null,null,null,null,0]
[null,null,null,null,null,null,null,0]
[null,null,null,null,null,null,null,0]
[null,null,null,null,null,null,null,0]
[null,null,null,null,null,null,null,0]
[null,null,null,null,null,null,null,0]
[null,null,null,null,null,null,null,0]
[null,null,null,null,null,null,null,0]
[null,null,null,null,null,null,null,0]
[null,null,null,null,null,null,null,0]
[null,null,null,null,null,null,null,0]
[null,null,null,null,null,null,null,0]
[null,null,null,null,null,null,null,0]
[null,null,null,null,null,null,null,0]
[null,null,null,null,null,null,null,0]
[null,null,null,null,null,null,null,0]
[null,null,null,null,null,null,null,0]
[null,null,null,null,null,null,null,0]
[null,null,null,null,null,null,null,0]
[null,null,null,null,null,null,null,0]
[null,null,null,null,null,null,null,0]
[null,null,null,null,null,null,null,0]
[null,null,null,null,null,null,null,0]
[null,null,null,null,null,null,null,0]
[null,null,null,null,null,null,null,0]
[null,null,null,null,null,null,null,0]
[null,null,null,null,null,null,null,0]
[null,null,null,null,null,null,null,0]
[null,null,null,null,null,null,null,0]
[null,null,null,null,null,null,null,0]
[null,null,null,null,null,null,null,0]
[null,null,null,null,null,null,null,0]
[null,null,null,null,null,null,null,0]
[null,null,null,null,null,null,null,0]
[null,null,null,null,null,null,null,0]
[null,null,null,null,null,null,null,0]
[null,null,null,null,null,null,null,0]
[null,null,null,null,null,null,null,0]
[null,null,null,null,null,null,null,0]
[null,null,null,null,null,null,null,0]
[null,null,null,null,null,null,null,0]
[null,null,null,null,null,null,null,0]
[null,null,null,null,null,null,null,0]
[null,null,null,null,null,null,null,0]
[null,null,null,null,null,null,null,0]
[null,null,null,null,null,null,null,0]
[null,null,null,null,null,null,null,0]
[null,null,null,null,null,null,null,0]
[null,null,null,null,null,null,null,0]
[null,null,null,null,null,null,null,0]
[null,null,null,null,null,null,null,0]
[null,null,null,null,null,null,null,0]
[null,null,null,null,null,null,null,0]
[null,null,null,null,null,null,null,0]
[null,null,null,null,null,null,null,0]
[null,null,null,null,null,null,null,0]
[null,null,null,null,null,null,null,0]
[null,null,null,null,null,null,null,{"$f":"B133","v":0}]
[null,null,null,null,null,null,null,0]
[null,null,null,null,null,null,null,0]
[null,null,null,null,null,null,null,0]
[null,null,null,null,null,null,null,0]
[null,null,null,null,null,null,null,0]
[null,null,null,null,null,null,null,0]
[null,null,null,null,null,null,null,0]
[null,null,null,null,null,null,null,0]
[null,null,null,null,null,null,null,0]
[null,null,null,null,null,null,null,0]
[null,null,null,null,null,null,null,0]
[null,null,null,null,null,null,null,0]
[null,null,null,null,null,null,null,0]
[null,null,null,null,null,null,null,0]
[null,null,null,null,null,null,null,0]
[null,null,null,null,null,null,null,0]
[null,null,null,null,null,null,null,0]
[null,null,null,null,null,null,null,0]
[null,null,null,null,null,null,null,0]
[null,null,null,null,null,null,null,0]
[null,null,null,null,null,null,null,0]
[null,null,null,null,null,null,null,0]
[null,null,null,null,null,null,null,0]
[null,null,null,null,null,null,null,0]
[null,null,null,null,null,null,null,0]
[null,null,null,null,null,null,null,0]
[null,null,null,null,null,null,null,0]
[null,null,null,null,null,null,null,0]
[null,null,null,null,null,null,null,0]
[null,null,null,null,null,null,null,0]
[null,null,null,null,null,null,null,0]
[null,null,null,null,null,null,null,0]
[null,null,null,null,null,null,null,0]
[null,null,null,null,null,null,null,0]
[null,null,null,null,null,null,null,0]
[null,null,null,null,null,null,null,0]
[null,null,null,null,null,null,null,0]
[null,null,null,null,null,null,null,0]
[null,null,null,null,null,null,null,0]
[null,null,null,null,null,null,null,0]
[null,null,null,null,null,null,null,0]
[null,null,null,null,null,null,null,0]
[null,null,null,null,null,null,null,0]
[null,null,null,null,null,null,null,0]
[null,null,null,null,null,null,null,0]
[null,null,null,null,null,null,null,0]
[null,null,null,null,null,null,null,0]
[null,null,null,null,null,null,null,0]
[null,null,null,null,null,null,null,0]
[null,null,null,null,null,null,null,0]
[null,null,null,null,null,null,null,0]
[null,null,null,null,null,null,null,0]
[null,null,null,null,null,null,null,0]
[null,null,null,null,null,null,null,0]
[null,null,null,null,null,null,null,0]
[null,null,null,null,null,null,null,0]
[null,null,null,null,null,null,null,0]
[null,null,null,null,null,null,null,0]
[null,null,null,null,null,null,null,0]
[null,null,null,null,null,null,null,0]
[null,null,null,null,null,null,null,0]
[null,null,null,null,null,null,null,0]
[null,null,null,null,null,null,null,0]
[null,null,null,null,null,null,null,{"$f":"B197","v":0}]
[null,null,null,null,null,null,null,0]
[null,null,null,null,null,null,null,0]
[null,null,null,null,null,null,null,0]
[null,null,null,null,null,null,null,0]
[null,null,null,null,null,null,null,0]
[null,null,null,null,null,null,null,0]
[null,null,null,null,null,null,null,0]
[null,null,null,null,null,null,null,0]
[null,null,null,null,null,null,null,0]
[null,null,null,null,null,null,null,0]
[null,null,null,null,null,null,null,0]
[null,null,null,null,null,null,null,0]
[null,null,null,null,null,null,null,0]
[null,null,null,null,null,null,null,0]
[null,null,null,null,null,null,null,0]
[null,null,null,null,null,null,null,0]
[null,null,null,null,null,null,null,0]
[null,null,null,null,null,null,null,0]
[null,null,null,null,null,null,null,0]
[null,null,null,null,null,null,null,0]
[null,null,null,null,null,null,null,0]
[null,null,null,null,null,null,null,0]
[null,null,null,null,null,null,null,0]
[null,null,null,null,null,null,null,0]
[null,null,null,null,null,null,null,0]
[null,null,null,null,null,null,null,0]
[null,null,null,null,null,null,null,0]
[null,null,null,null,null,null,null,0]
[null,null,null,null,null,null,null,0]
[null,null,null,null,null,null,null,0]
[null,null,null,null,null,null,null,0]
[null,null,null,null,null,null,null,0]
[null,null,null,null,null,null,null,0]
[null,null,null,null,null,null,null,0]
[null,null,null,null,null,null,null,0]
[null,null,null,null,null,null,null,0]
[null,null,null,null,null,null,null,0]
[null,null,null,null,null,null,null,0]
[null,null,null,null,null,null,null,0]
[null,null,null,null,null,null,null,0]
[null,null,null,null,null,null,null,0]
[null,null,null,null,null,null,null,0]
[null,null,null,null,null,null,null,0]
[null,null,null,null,null,null,null,0]
[null,null,null,null,null,null,null,0]
[null,null,null,null,null,null,null,0]
[null,null,null,null,null,null,null,0]
[null,null,null,null,null,null,null,0]
[null,null,null,null,null,null,null,0]
[null,null,null,null,null,null,null,0]
[null,null,null,null,null,null,null,0]
[null,null,null,null,null,null,null,0]
[null,null,null,null,null,null,null,0]
[null,null,null,null,null,null,null,0]
[null,null,null,null,null,null,null,0]
[null,null,null,null,null,null,null,0]
[null,null,null,null,null,null,null,0]
[null,null,null,null,null,null,null,0]
[null,null,null,null,null,null,null,0]
[null,null,null,null,null,null,null,0]
[null,null,null,null,null,null,null,0]
[null,null,null,null,null,null,null,0]
[null,null,null,null,null,null,null,0]
[null,null,null,null,null,null,null,{"$f":"B261","v":0}]
[null,null,null,null,null,null,null,0]
[null,null,null,null,null,null,null,0]
[null,null,null,null,null,null,null,0]
[null,null,null,null,null,null,null,0]
[null,null,null,null,null,null,null,0]
[null,null,null,null,null,null,null,0]
[null,null,null,null,null,null,null,0]
[null,null,null,null,null,null,null,0]
[null,null,null,null,null,null,null,0]
[null,null,null,null,null,null,null,0]
[null,null,null,null,null,null,null,0]
[null,null,null,null,null,null,null,0]
[null,null,null,null,null,null,null,0]
[null,null,null,null,null,null,null,0]
[null,null,null,null,null,null,null,0]
[null,null,null,null,null,null,null,0]
[null,null,null,null,null,null,null,0]
[null,null,null,null,null,null,null,0]
[null,null,null,null,null,null,null,0]
[null,null,null,null,null,null,null,0]
[null,null,null,null,null,null,null,0]
[null,null,null,null,null,null,null,0]
[null,null,null,null,null,null,null,0]
[null,null,null,null,null,null,null,0]
[null,null,null,null,null,null,null,0]
[null,null,null,null,null,null,null,0]
[null,null,null,null,null,null,null,0]
[null,null,null,null,null,null,null,0]
[null,null,null,null,null,null,null,0]
[null,null,null,null,null,null,null,0]
[null,null,null,null,null,null,null,0]
[null,null,null,null,null,null,null,0]
[null,null,null,null,null,null,null,0]
[null,null,null,null,null,null,null,0]
[null,null,null,null,null,null,null,0]
[null,null,null,null,null,null,null,0]
[null,null,null,null,null,null,null,0]
[null,null,null,null,null,null,null,0]
[null,null,null,null,null,null,null,0]
[null,null,null,null,null,null,null,0]
[null,null,null,null,null,null,null,0]
[null,null,null,null,null,null,null,0]
[null,null,null,null,null,null,null,0]
[null,null,null,null,null,null,null,0]
[null,null,null,null,null,null,null,0]
[null,null,null,null,null,null,null,0]
[null,null,null,null,null,null,null,0]
[null,null,null,null,null,null,null,0]
[null,null,null,null,null,null,null,0]
[null,null,null,null,null,null,null,0]
[null,null,null,null,null,null,null,0]
[null,null,null,null,null,null,null,0]
[null,null,null,null,null,null,null,0]
[null,null,null,null,null,null,null,0]
[null,null,null,null,null,null,null,0]
[null,null,null,null,null,null,null,0]
[null,null,null,null,null,null,null,0]
[null,null,null,null,null,null,null,0]
[null,null,null,null,null,null,null,0]
[null,null,null,null,null,null,null,0]
[null,null,null,null,null,null,null,0]
[null,null,null,null,null,null,null,0]
[null,null,null,null,null,null,null,0]
[null,null,null,null,null,null,null,{"$f":"B325","v":0}]
[null,null,null,null,null,null,null,0]
[null,null,null,null,null,null,null,0]
[null,null,null,null,null,null,null,0]
[null,null,null,null,null,null,null,0]
[null,null,null,null,null,null,null,0]
[null,null,null,null,null,null,null,0]
[null,null,null,null,null,null,null,0]
[null,null,null,null,null,null,null,0]
[null,null,null,null,null,null,null,0]
[null,null,null,null,null,null,null,0]
[null,null,null,null,null,null,null,0]
[null,null,null,null,null,null,null,0]
[null,null,null,null,null,null,null,0]
[null,null,null,null,null,null,null,0]
[null,null,null,null,null,null,null,0]
[null,null,null,null,null,null,null,0]
[null,null,null,null,null,null,null,0]
[null,null,null,null,null,null,null,0]
[null,null,null,null,null,null,null,0]
[null,null,null,null,null,null,null,0]
[null,null,null,null,null,null,null,0]
[null,null,null,null,null,null,null,0]
[null,null,null,null,null,null,null,0]
[null,null,null,null,null,null,null,0]
[null,null,null,null,null,null,null,0]
[null,null,null,null,null,null,null,0]
[null,null,null,null,null,null,null,0]
[null,null,null,null,null,null,null,0]
[null,null,null,null,null,null,null,0]
[null,null,null,null,null,null,null,0]
[null,null,null,null,null,null,null,0]
[null,null,null,null,null,null,null,0]
[null,null,null,null,null,null,null,0]
[null,null,null,null,null,null,null,0]
[null,null,null,null,null,null,null,0]
[null,null,null,null,null,null,null,0]
[null,null,null,null,null,null,null,0]
[null,null,null,null,null,null,null,0]
[null,null,null,null,null,null,null,0]
[null,null,null,null,null,null,null,0]
[null,null,null,null,null,null,null,0]
[null,null,null,null,null,null,null,0]
[null,null,null,null,null,null,null,0]
[null,null,null,null,null,null,null,0]
[null,null,null,null,null,null,null,0]
[null,null,null,null,null,null,null,0]
[null,null,null,null,null,null,null,0]
[null,null,null,null,null,null,null,0]
[null,null,null,null,null,null,null,0]
[null,null,null,null,null,null,null,0]
[null,null,null,null,null,null,null,0]
[null,null,null,null,null,null,null,0]
[null,null,null,null,null,null,null,0]
[null,null,null,null,null,null,null,0]
[null,null,null,null,null,null,null,0]
[null,null,null,null,null,null,null,0]
[null,null,null,null,null,null,null,0]
[null,null,null,null,null,null,null,0]
[null,null,null,null,null,null,null,0]
[null,null,null,null,null,null,null,0]
[null,null,null,null,null,null,null,0]
[null,null,null,null,null,null,null,0]
[null,null,null,null,null,null,null,0]
[null,null,null,null,null,null,null,{"$f":"B389","v":0}]
[null,null,null,null,null,null,null,0]
[null,null,null,null,null,null,null,0]
[null,null,null,null,null,null,null,0]
[null,null,null,null,null,null,null,0]
[null,null,null,null,null,null,null,0]
[null,null,null,null,null,null,null,0]
[null,null,null,null,null,null,null,0]
[null,null,null,null,null,null,null,0]
[null,null,null,null,null,null,null,0]
[null,null,null,null,null,null,null,0]
[null,null,null,null,null,null,null,0]
[null,null,null,null,null,null,null,0]
[null,null,null,null,null,null,null,0]
[null,null,null,null,null,null,null,0]
[null,null,null,null,null,null,null,0]
[null,null,null,null,null,null,null,0]
[null,null,null,null,null,null,null,0]
[null,null,null,null,null,null,null,0]
[null,null,null,null,null,null,null,0]
[null,null,null,null,null,null,null,0]
[null,null,null,null,null,null,null,0]
[null,null,null,null,null,null,null,0]
[null,null,null,null,null,null,null,0]
[null,null,null,null,null,null,null,0]
[null,null,null,null,null,null,null,0]
[null,null,null,null,null,null,null,0]
[null,null,null,null,null,null,null,0]
[null,null,null,null,null,null,null,0]
[null,null,null,null,null,null,null,0]
[null,null,null,null,null,null,null,0]
[null,null,null,null,null,null,null,0]
[null,null,null,null,null,null,null,0]
[null,null,null,null,null,null,null,0]
[null,null,null,null,null,null,null,0]
[null,null,null,null,null,null,null,0]
[null,null,null,null,null,null,null,0]
[null,null,null,null,null,null,null,0]
[null,null,null,null,null,null,null,0]
[null,null,null,null,null,null,null,0]
[null,null,null,null,null,null,null,0]
[null,null,null,null,null,null,null,0]
[null,null,null,null,null,null,null,0]
[null,null,null,null,null,null,null,0]
[null,null,null,null,null,null,null,0]
[null,null,null,null,null,null,null,0]
[null,null,null,null,null,null,null,0]
[null,null,null,null,null,null,null,0]
[null,null,null,null,null,null,null,0]
[null,null,null,null,null,null,null,0]
[null,null,null,null,null,null,null,0]
[null,null,null,null,null,null,null,0]
[null,null,null,null,null,null,null,0]
[null,null,null,null,null,null,null,0]
[null,null,null,null,null,null,null,0]
[null,null,null,null,null,null,null,0]
[null,null,null,null,null,null,null,0]
[null,null,null,null,null,null,null,0]
[null,null,null,null,null,null,null,0]
[null,null,null,null,null,null,null,0]
[null,null,null,null,null,null,null,0]
[null,null,null,null,null,null,null,0]
[null,null,null,null,null,null,null,0]
[null,null,null,null,null,null,null,0]
[null,null,null,null,null,null,null,{"$f":"B453","v":0}]
[null,null,null,null,null,null,null,0]
[null,null,null,null,null,null,null,0]
[null,null,null,null,null,null,null,0]
[null,null,null,null,null,null,null,0]
[null,null,null,null,null,null,null,0]
[null,null,null,null,null,null,null,0]
[null,null,null,null,null,null,null,0]
[null,null,null,null,null,null,null,0]
[null,null,null,null,null,null,null,0]
[null,null,null,null,null,null,null,0]
[null,null,null,null,null,null,null,0]
[null,null,null,null,null,null,null,0]
[null,null,null,null,null,null,null,0]
[null,null,null,null,null,null,null,0]
[null,null,null,null,null,null,null,0]
[null,null,null,null,null,null,null,0]
[null,null,null,null,null,null,null,0]
[null,null,null,null,null,null,null,0]
[null,null,null,null,null,null,null,0]
[null,null,null,null,null,null,null,0]
[null,null,null,null,null,null,null,0]
[null,null,null,null,null,null,null,0]
[null,null,null,null,null,null,null,0]
[null,null,null,null,null,null,null,0]
[null,null,null,null,null,null,null,0]
[null,null,null,null,null,null,null,0]
[null,null,null,null,null,null,null,0]
[null,null,null,null,null,null,null,0]
[null,null,null,null,null,null,null,0]
[null,null,null,null,null,null,null,0]
[null,null,null,null,null,null,null,0]
[null,null,null,null,null,null,null,0]
[null,null,null,null,null,null,null,0]
[null,null,null,null,null,null,null,0]
[null,null,null,null,null,null,null,0]
[null,null,null,null,null,null,null,0]
[null,null,null,null,null,null,null,0]
[null,null,null,null,null,null,null,0]
[null,null,null,null,null,null,null,0]
[null,null,null,null,null,null,null,0]
[null,null,null,null,null,null,null,0]
[null,null,null,null,null,null,null,0]
[null,null,null,null,null,null,null,0]
[null,null,null,null,null,null,null,0]
[null,null,null,null,null,null,null,0]
[null,null,null,null,null,null,null,0]
[null,null,null,null,null,null,null,0]
[null,null,null,null,null,null,null,0]
[null,null,null,null,null,null,null,0]
[null,null,null,null,null,null,null,0]
[null,null,null,null,null,null,null,0]
[null,null,null,null,null,null,null,0]
[null,null,null,null,null,null,null,0]
[null,null,null,null,null,null,null,0]
[null,null,null,null,null,null,null,0]
[null,null,null,null,null,null,null,0]
[null,null,null,null,null,null,null,0]
[null,null,null,null,null,null,null,0]
[null,null,null,null,null,null,null,0]
[null,null,null,null,null,null,null,0]
[null,null,null,null,null,null,null,0]
[null,null,null,null,null,null,null,0]
[null,null,null,null,null,null,null,0]
[null,null,null,null,null,null,null,{"$f":"B517","v":0}]
[null,null,null,null,null,null,null,0]
[null,null,null,null,null,null,null,0]
[null,null,null,null,null,null,null,0]
[null,null,null,null,null,null,null,0]
[null,null,null,null,null,null,null,0]
[null,null,null,null,null,null,null,0]
[null,null,null,null,null,null,null,0]
[null,null,null,null,null,null,null,0]
[null,null,null,null,null,null,null,0]
[null,null,null,null,null,null,null,0]
[null,null,null,null,null,null,null,0]
[null,null,null,null,null,null,null,0]
[null,null,null,null,null,null,null,0]
[null,null,null,null,null,null,null,0]
[null,null,null,null,null,null,null,0]
[null,null,null,null,null,null,null,0]
[null,null,null,null,null,null,null,0]
[null,null,null,null,null,null,null,0]
[null,null,null,null,null,null,null,0]
[null,null,null,null,null,null,null,0]
[null,null,null,null,null,null,null,0]
[null,null,null,null,null,null,null,0]
[null,null,null,null,null,null,null,0]
[null,null,null,null,null,null,null,0]
[null,null,null,null,null,null,null,0]
[null,null,null,null,null,null,null,0]
[null,null,null,null,null,null,null,0]
[null,null,null,null,null,null,null,0]
[null,null,null,null,null,null,null,0]
[null,null,null,null,null,null,null,0]
[null,null,null,null,null,null,null,0]
[null,null,null,null,null,null,null,0]
[null,null,null,null,null,null,null,0]
[null,null,null,null,null,null,null,0]
[null,null,null,null,null,null,null,0]
[null,null,null,null,null,null,null,0]
[null,null,null,null,null,null,null,0]
[null,null,null,null,null,null,null,0]
[null,null,null,null,null,null,null,0]
[null,null,null,null,null,null,null,0]
[null,null,null,null,null,null,null,0]
[null,null,null,null,null,null,null,0]
[null,null,null,null,null,null,null,0]
[null,null,null,null,null,null,null,0]
[null,null,null,null,null,null,null,0]
[null,null,null,null,null,null,null,0]
[null,null,null,null,null,null,null,0]
[null,null,null,null,null,null,null,0]
[null,null,null,null,null,null,null,0]
[null,null,null,null,null,null,null,0]
[null,null,null,null,null,null,null,0]
[null,null,null,null,null,null,null,0]
[null,null,null,null,null,null,null,0]
[null,null,null,null,null,null,null,0]
[null,null,null,null,null,null,null,0]
[null,null,null,null,null,null,null,0]
[null,null,null,null,null,null,null,0]
[null,null,null,null,null,null,null,0]
[null,null,null,null,null,null,null,0]
[null,null,null,null,null,null,null,0]
[null,null,null,null,null,null,null,0]
[null,null,null,null,null,null,null,0]
[null,null,null,null,null,null,null,0]
[null,null,null,null,null,null,null,{"$f":"B581","v":0}]
[null,null,null,null,null,null,null,0]
[null,null,null,null,null,null,null,0]
[null,null,null,null,null,null,null,0]
[null,null,null,null,null,null,null,0]
[null,null,null,null,null,null,null,0]
[null,null,null,null,null,null,null,0]
[null,null,null,null,null,null,null,0]
[null,null,null,null,null,null,null,0]
[null,null,null,null,null,null,null,0]
[null,null,null,null,null,null,null,0]
[null,null,null,null,null,null,null,0]
[null,null,null,null,null,null,null,0]
[null,null,null,null,null,null,null,0]
[null,null,null,null,null,null,null,0]
[null,null,null,null,null,null,null,0]
[null,null,null,null,null,null,null,0]
[null,null,null,null,null,null,null,0]
[null,null,null,null,null,null,null,0]
[null,null,null,null,null,null,null,0]
[null,null,null,null,null,null,null,0]
[null,null,null,null,null,null,null,0]
[null,null,null,null,null,null,null,0]
[null,null,null,null,null,null,null,0]
[null,null,null,null,null,null,null,0]
[null,null,null,null,null,null,null,0]
[null,null,null,null,null,null,null,0]
[null,null,null,null,null,null,null,0]
[null,null,null,null,null,null,null,0]
[null,null,null,null,null,null,null,0]
[null,null,null,null,null,null,null,0]
[null,null,null,null,null,null,null,0]
[null,null,null,null,null,null,null,0]
[null,null,null,null,null,null,null,0]
[null,null,null,null,null,null,null,0]
[null,null,null,null,null,null,null,0]
[null,null,null,null,null,null,null,0]
[null,null,null,null,null,null,null,0]
[null,null,null,null,null,null,null,0]
[null,null,null,null,null,null,null,0]
[null,null,null,null,null,null,null,0]
[null,null,null,null,null,null,null,0]
[null,null,null,null,null,null,null,0]
[null,null,null,null,null,null,null,0]
[null,null,null,null,null,null,null,0]
[null,null,null,null,null,null,null,0]
[null,null,null,null,null,null,null,0]
[null,null,null,null,null,null,null,0]
[null,null,null,null,null,null,null,0]
[null,null,null,null,null,null,null,0]
[null,null,null,null,null,null,null,0]
[null,null,null,null,null,null,null,0]
[null,null,null,null,null,null,null,0]
[null,null,null,null,null,null,null,0]
[null,null,null,null,null,null,null,0]
[null,null,null,null,null,null,null,0]
[null,null,null,null,null,null,null,0]
[null,null,null,null,null,null,null,0]
[null,null,null,null,null,null,null,0]
[null,null,null,null,null,null,null,0]
[null,null,null,null,null,null,null,0]
[null,null,null,null,null,null,null,0]
[null,null,null,null,null,null,null,0]
[null,null,null,null,null,null,null,0]
[null,null,null,null,null,null,null,{"$f":"B645","v":0}]
[null,null,null,null,null,null,null,0]
[null,null,null,null,null,null,null,0]
[null,null,null,null,null,null,null,0]
[null,null,null,null,null,null,null,0]
[null,null,null,null,null,null,null,0]
[null,null,null,null,null,null,null,0]
[null,null,null,null,null,null,null,0]
[null,null,null,null,null,null,null,0]
[null,null,null,null,null,null,null,0]
[null,null,null,null,null,null,null,0]
[null,null,null,null,null,null,null,0]
[null,null,null,null,null,null,null,0]
[null,null,null,null,null,null,null,0]
[null,null,null,null,null,null,null,0]
[null,null,null,null,null,null,null,0]
[null,null,null,null,null,null,null,0]
[null,null,null,null,null,null,null,0]
[null,null,null,null,null,null,null,0]
[null,null,null,null,null,null,null,0]
[null,null,null,null,null,null,null,0]
[null,null,null,null,null,null,null,0]
[null,null,null,null,null,null,null,0]
[null,null,null,null,null,null,null,0]
[null,null,null,null,null,null,null,0]
[null,null,null,null,null,null,null,0]
[null,null,null,null,null,null,null,0]
[null,null,null,null,null,null,null,0]
[null,null,null,null,null,null,null,0]
[null,null,null,null,null,null,null,0]
[null,null,null,null,null,null,null,0]
[null,null,null,null,null,null,null,0]
[null,null,null,null,null,null,null,0]
[null,null,null,null,null,null,null,0]
[null,null,null,null,null,null,null,0]
[null,null,null,null,null,null,null,0]
[null,null,null,null,null,null,null,0]
[null,null,null,null,null,null,null,0]
[null,null,null,null,null,null,null,0]
[null,null,null,null,null,null,null,0]
[null,null,null,null,null,null,null,0]
[null,null,null,null,null,null,null,0]
[null,null,null,null,null,null,null,0]
[null,null,null,null,null,null,null,0]
[null,null,null,null,null,null,null,0]
[null,null,null,null,null,null,null,0]
[null,null,null,null,null,null,null,0]
[null,null,null,null,null,null,null,0]
[null,null,null,null,null,null,null,0]
[null,null,null,null,null,null,null,0]
[null,null,null,null,null,null,null,0]
[null,null,null,null,null,null,null,0]
[null,null,null,null,null,null,null,0]
[null,null,null,null,null,null,null,0]
[null,null,null,null,null,null,null,0]
[null,null,null,null,null,null,null,0]
[null,null,null,null,null,null,null,0]
[null,null,null,null,null,null,null,0]
[null,null,null,null,null,null,null,0]
[null,null,null,null,null,null,null,0]
[null,null,null,null,null,null,null,0]
[null,null,null,null,null,null,null,0]
[null,null,null,null,null,null,null,0]
[null,null,null,null,null,null,null,0]
[null,null,null,null,null,null,null,{"$f":"B709","v":0}]
[null,null,null,null,null,null,null,0]
[null,null,null,null,null,null,null,0]
[null,null,null,null,null,null,null,0]
[null,null,null,null,null,null,null,0]
[null,null,null,null,null,null,null,0]
[null,null,null,null,null,null,null,0]
[null,null,null,null,null,null,null,0]
[null,null,null,null,null,null,null,0]
[null,null,null,null,null,null,null,0]
[null,null,null,null,null,null,null,0]
[null,null,null,null,null,null,null,0]
[null,null,null,null,null,null,null,0]
[null,null,null,null,null,null,null,0]
[null,null,null,null,null,null,null,0]
[null,null,null,null,null,null,null,0]
[null,null,null,null,null,null,null,0]
[null,null,null,null,null,null,null,0]
[null,null,null,null,null,null,null,0]
[null,null,null,null,null,null,null,0]
[null,null,null,null,null,null,null,0]
[null,null,null,null,null,null,null,0]
[null,null,null,null,null,null,null,0]
[null,null,null,null,null,null,null,0]
[null,null,null,null,null,null,null,0]
[null,null,null,null,null,null,null,0]
[null,null,null,null,null,null,null,0]
[null,null,null,null,null,null,null,0]
[null,null,null,null,null,null,null,0]
[null,null,null,null,null,null,null,0]
[null,null,null,null,null,null,null,0]
[null,null,null,null,null,null,null,0]
[null,null,null,null,null,null,null,0]
[null,null,null,null,null,null,null,0]
[null,null,null,null,null,null,null,0]
[null,null,null,null,null,null,null,0]
[null,null,null,null,null,null,null,0]
[null,null,null,null,null,null,null,0]
[null,null,null,null,null,null,null,0]
[null,null,null,null,null,null,null,0]
[null,null,null,null,null,null,null,0]
[null,null,null,null,null,null,null,0]
[null,null,null,null,null,null,null,0]
[null,null,null,null,null,null,null,0]
[null,null,null,null,null,null,null,0]
[null,null,null,null,null,null,null,0]
[null,null,null,null,null,null,null,0]
[null,null,null,null,null,null,null,0]
[null,null,null,null,null,null,null,0]
[null,null,null,null,null,null,null,0]
[null,null,null,null,null,null,null,0]
[null,null,null,null,null,null,null,0]
[null,null,null,null,null,null,null,0]
[null,null,null,null,null,null,null,0]
[null,null,null,null,null,null,null,0]
[null,null,null,null,null,null,null,0]
[null,null,null,null,null,null,null,0]
[null,null,null,null,null,null,null,0]
[null,null,null,null,null,null,null,0]
[null,null,null,null,null,null,null,0]
[null,null,null,null,null,null,null,0]
[null,null,null,null,null,null,null,0]
[null,null,null,null,null,null,null,0]
[null,null,null,null,null,null,null,0]
[null,null,null,null,null,null,null,{"$f":"B773","v":0}]
[null,null,null,null,null,null,null,0]
[null,null,null,null,null,null,null,0]
[null,null,null,null,null,null,null,0]
[null,null,null,null,null,null,null,0]
[null,null,null,null,null,null,null,0]
[null,null,null,null,null,null,null,0]
[null,null,null,null,null,null,null,0]
[null,null,null,null,null,null,null,0]
[null,null,null,null,null,null,null,0]
[null,null,null,null,null,null,null,0]
[null,null,null,null,null,null,null,0]
[null,null,null,null,null,null,null,0]
[null,null,null,null,null,null,null,0]
[null,null,null,null,null,null,null,0]
[null,null,null,null,null,null,null,0]
[null,null,null,null,null,null,null,0]
[null,null,null,null,null,null,null,0]
[null,null,null,null,null,null,null,0]
[null,null,null,null,null,null,null,0]
[null,null,null,null,null,null,null,0]
[null,null,null,null,null,null,null,0]
[null,null,null,null,null,null,null,0]
[null,null,null,null,null,null,null,0]
[null,null,null,null,null,null,null,0]
[null,null,null,null,null,null,null,0]
[null,null,null,null,null,null,null,0]
[null,null,null,null,null,null,null,0]
[null,null,null,null,null,null,null,0]
[null,null,null,null,null,null,null,0]
[null,null,null,null,null,null,null,0]
[null,null,null,null,null,null,null,0]
[null,null,null,null,null,null,null,0]
[null,null,null,null,null,null,null,0]
[null,null,null,null,null,null,null,0]
[null,null,null,null,null,null,null,0]
[null,null,null,null,null,null,null,0]
[null,null,null,null,null,null,null,0]
[null,null,null,null,null,null,null,0]
[null,null,null,null,null,null,null,0]
[null,null,null,null,null,null,null,0]
[null,null,null,null,null,null,null,0]
[null,null,null,null,null,null,null,0]
[null,null,null,null,null,null,null,0]
[null,null,null,null,null,null,null,0]
[null,null,null,null,null,null,null,0]
[null,null,null,null,null,null,null,0]
[null,null,null,null,null,null,null,0]
[null,null,null,null,null,null,null,0]
[null,null,null,null,null,null,null,0]
[null,null,null,null,null,null,null,0]
[null,null,null,null,null,null,null,0]
[null,null,null,null,null,null,null,0]
[null,null,null,null,null,null,null,0]
[null,null,null,null,null,null,null,0]
[null,null,null,null,null,null,null,0]
[null,null,null,null,null,null,null,0]
[null,null,null,null,null,null,null,0]
[null,null,null,null,null,null,null,0]
[null,null,null,null,null,null,null,0]
[null,null,null,null,null,null,null,0]
[null,null,null,null,null,null,null,0]
[null,null,null,null,null,null,null,0]
[null,null,null,null,null,null,null,0]
[null,null,null,null,null,null,null,{"$f":"B837","v":0}]
[null,null,null,null,null,null,null,0]
[null,null,null,null,null,null,null,0]
[null,null,null,null,null,null,null,0]
[null,null,null,null,null,null,null,0]
[null,null,null,null,null,null,null,0]
[null,null,null,null,null,null,null,0]
[null,null,null,null,null,null,null,0]
[null,null,null,null,null,null,null,0]
[null,null,null,null,null,null,null,0]
[null,null,null,null,null,null,null,0]
[null,null,null,null,null,null,null,0]
[null,null,null,null,null,null,null,0]
[null,null,null,null,null,null,null,0]
[null,null,null,null,null,null,null,0]
[null,null,null,null,null,null,null,0]
[null,null,null,null,null,null,null,0]
[null,null,null,null,null,null,null,0]
[null,null,null,null,null,null,null,0]
[null,null,null,null,null,null,null,0]
[null,null,null,null,null,null,null,0]
[null,null,null,null,null,null,null,0]
[null,null,null,null,null,null,null,0]
[null,null,null,null,null,null,null,0]
[null,null,null,null,null,null,null,0]
[null,null,null,null,null,null,null,0]
[null,null,null,null,null,null,null,0]
[null,null,null,null,null,null,null,0]
[null,null,null,null,null,null,null,0]
[null,null,null,null,null,null,null,0]
[null,null,null,null,null,null,null,0]
[null,null,null,null,null,null,null,0]
[null,null,null,null,null,null,null,0]
[null,null,null,null,null,null,null,0]
[null,null,null,null,null,null,null,0]
[null,null,null,null,null,null,null,0]
[null,null,null,null,null,null,null,0]
[null,null,null,null,null,null,null,0]
[null,null,null,null,null,null,null,0]
[null,null,null,null,null,null,null,0]
[null,null,null,null,null,null,null,0]
[null,null,null,null,null,null,null,0]
[null,null,null,null,null,null,null,0]
[null,null,null,null,null,null,null,0]
[null,null,null,null,null,null,null,0]
[null,null,null,null,null,null,null,0]
[null,null,null,null,null,null,null,0]
[null,null,null,null,null,null,null,0]
[null,null,null,null,null,null,null,0]
[null,null,null,null,null,null,null,0]
[null,null,null,null,null,null,null,0]
[null,null,null,null,null,null,null,0]
[null,null,null,null,null,null,null,0]
[null,null,null,null,null,null,null,0]
[null,null,null,null,null,null,null,0]
[null,null,null,null,null,null,null,0]
[null,null,null,null,null,null,null,0]
[null,null,null,null,null,null,null,0]
[null,null,null,null,null,null,null,0]
[null,null,null,null,null,null,null,0]
[null,null,null,null,null,null,null,0]
[null,null,null,null,null,null,null,0]
[null,null,null,null,null,null,null,0]
[null,null,null,null,null,null,null,0]
[null,null,null,null,null,null,null,{"$f":"B901","v":0}]
[null,null,null,null,null,null,null,0]
[null,null,null,null,null,null,null,0]
[null,null,null,null,null,null,null,0]
[null,null,null,null,null,null,null,0]
[null,null,null,null,null,null,null,0]
[null,null,null,null,null,null,null,0]
[null,null,null,null,null,null,null,0]
[null,null,null,null,null,null,null,0]
[null,null,null,null,null,null,null,0]
[null,null,null,null,null,null,null,0]
[null,null,null,null,null,null,null,0]
[null,null,null,null,null,null,null,0]
[null,null,null,null,null,null,null,0]
[null,null,null,null,null,null,null,0]
[null,null,null,null,null,null,null,0]
[null,null,null,null,null,null,null,0]
[null,null,null,null,null,null,null,0]
[null,null,null,null,null,null,null,0]
[null,null,null,null,null,null,null,0]
[null,null,null,null,null,null,null,0]
[null,null,null,null,null,null,null,0]
[null,null,null,null,null,null,null,0]
[null,null,null,null,null,null,null,0]
[null,null,null,null,null,null,null,0]
[null,null,null,null,null,null,null,0]
[null,null,null,null,null,null,null,0]
[null,null,null,null,null,null,null,0]
[null,null,null,null,null,null,null,0]
[null,null,null,null,null,null,null,0]
[null,null,null,null,null,null,null,0]
[null,null,null,null,null,null,null,0]
[null,null,null,null,null,null,null,0]
[null,null,null,null,null,null,null,0]
[null,null,null,null,null,null,null,0]
[null,null,null,null,null,null,null,0]
[null,null,null,null,null,null,null,0]
[null,null,null,null,null,null,null,0]
[null,null,null,null,null,null,null,0]
[null,null,null,null,null,null,null,0]
[null,null,null,null,null,null,null,0]
[null,null,null,null,null,null,null,0]
[null,null,null,null,null,null,null,0]
[null,null,null,null,null,null,null,0]
[null,null,null,null,null,null,null,0]
[null,null,null,null,null,null,null,0]
[null,null,null,null,null,null,null,0]
[null,null,null,null,null,null,null,0]
[null,null,null,null,null,null,null,0]
[null,null,null,null,null,null,null,0]
[null,null,null,null,null,null,null,0]
[null,null,null,null,null,null,null,0]
[null,null,null,null,null,null,null,0]
[null,null,null,null,null,null,null,0]
[null,null,null,null,null,null,null,0]
[null,null,null,null,null,null,null,0]
[null,null,null,null,null,null,null,0]
[null,null,null,null,null,null,null,0]
[null,null,null,null,null,null,null,0]
[null,null,null,null,null,null,null,0]
[null,null,null,null,null,null,null,0]
[null,null,null,null,null,null,null,0]
[null,null,null,null,null,null,null,0]
[null,null,null,null,null,null,null,0]
[null,null,null,null,null,null,null,{"$f":"B965","v":0}]
[null,null,null,null,null,null,null,0]
[null,null,null,null,null,null,null,0]
[null,null,null,null,null,null,null,0]
[null,null,null,null,null,null,null,0]
[null,null,null,null,null,null,null,0]
[null,null,null,null,null,null,null,0]
[null,null,null,null,null,null,null,0]
[null,null,null,null,null,null,null,0]
[null,null,null,null,null,null,null,0]
[null,null,null,null,null,null,null,0]
[null,null,null,null,null,null,null,0]
[null,null,null,null,null,null,null,0]
[null,null,null,null,null,null,null,0]
[null,null,null,null,null,null,null,0]
[null,null,null,null,null,null,null,0]
[null,null,null,null,null,null,null,0]
[null,null,null,null,null,null,null,0]
[null,null,null,null,null,null,null,0]
[null,null,null,null,null,null,null,0]
[null,null,null,null,null,null,null,0]
[null,null,null,null,null,null,null,0]
[null,null,null,null,null,null,null,0]
[null,null,null,null,null,null,null,0]
[null,null,null,null,null,null,null,0]
[null,null,null,null,null,null,null,0]
[null,null,null,null,null,null,null,0]
[null,null,null,null,null,null,null,0]
[null,null,null,null,null,null,null,0]
[null,null,null,null,null,null,null,0]
[null,null,null,null,null,null,null,0]
[null,null,null,null,null,null,null,0]
[null,null,null,null,null,null,null,0]
[null,null,null,null,null,null,null,0]
[null,null,null,null,null,null,null,0]
[null,null,null,null,null,null,null,0]
[null,null,null,null,null,null,null,0]
[null,null,null,null,null,null,null,0]
[null,null,null,null,null,null,null,0]
[null,null,null,null,null,null,null,0]
[null,null,null,null,null,null,null,0]

{"sheet":"Šifranti","index":8,"n_rows":438,"n_cols":42,"rows_kept":438,"cut":false,"hidden":true,"merged":[]}
[null,"NAČIN PLAČILA",null,null,null,"DATUMI",null,null,null,"REFERENČNI DOKUMENT",null,"DDV",null,null,"FUNKCIJA RAČUNA ",null,null,"VRSTA DOKUMENTA",null,null,"KODA NAMENA",null,null,"DRŽAVE",null,null,"POPUST / PRIBITEK",null,"DDV PO DRŽAVAH",null,null,null,"DDV za izbrano državo",null,null,"ZAVEZANEC ZA DDV",null,"POSLOVNI PROCESI",null,null,"PDV-KOD"]
[null,"Opis","Koda",null,null,"Opis","Vrednost",null,null,"Opis",null,"Opis kode","Koda",null,"Opis kode","Koda",null,"Opis kode","Koda",null,"Opis kode","Koda",null,"Opis kode","Koda",null,"Opis",null,"Država","Opis kode","Koda",null,"Opis kode","Koda",null,"Opis",null,"Opis",null,null,"S","S – Standard rate (davčni stopnji 22% in 9,5%)"]
[null,"Račun je potrebno platiti",0,null,null,"Današnji dan",{"$f":"TODAY()","v":"2020-05-07"},null,null,"Dostavnica",null,22,22,null,"ORIGINAL",null,null,"Račun",380,null,"Upravljanje denarnih sredstev - znotraj banke","ACCT",null,"Slovenia","SI",null,"Popust",null,"SI",22,22,null,{"$f":"IFERROR(INDEX($AD$3:AD18, SMALL(IF('Podaci o računu'!$C$10=$AC$3:AC18, ROW(Šifranti!$AD$3:AD18)-2,\"\"), ROW()-2)),\"\")","v":21},{"$f":"IFERROR(INDEX($AE$3:AE18, SMALL(IF('Podaci o računu'!$C$10=$AC$3:AC18, ROW(Šifranti!$AE$3:AE18)-2,\"\"), ROW()-2)),\"\")","v":21},null,"DA",null,"P1",null,null,"Z","Z – Zero rated goods"]
[null,"Račun će se platiti direktnim zaduženjem i nije potrebno platiti",1,null,null,"Početak vremenskog razdoblja","1970-01-01",null,null,"Narudžba",null,9.5,9.5,null,"KOPIJA",null,null,"Kredit",381,null,"Plačilo vnaprej/predplačilo","ADVA",null,"Croatia","HR",null,"Pribitek",null,"SI",9.5,9.5,null,{"$f":"IFERROR(INDEX($AD$3:AD19, SMALL(IF('Podaci o računu'!$C$10=$AC$3:AC19, ROW(Šifranti!$AD$3:AD19)-2,\"\"), ROW()-2)),\"\")","v":7},{"$f":"IFERROR(INDEX($AE$3:AE19, SMALL(IF('Podaci o računu'!$C$10=$AC$3:AC19, ROW(Šifranti!$AE$3:AE19)-2,\"\"), ROW()-2)),\"\")","v":7},null,"NE",null,"P2",null,null,"E","E – Exempt from tax"]
[null,"Račun je već plaćen",2,null,null,null,null,null,null,"Ugovor",null,0,0,null,null,null,null,"Predračun",325,null,"Administrativne storitve","ADMG",null,"Czechia","CZ",null,null,null,"SI",0,0,null,{"$f":"IFERROR(INDEX($AD$3:AD20, SMALL(IF('Podaci o računu'!$C$10=$AC$3:AC20, ROW(Šifranti!$AD$3:AD20)-2,\"\"), ROW()-2)),\"\")","v":0},{"$f":"IFERROR(INDEX($AE$3:AE20, SMALL(IF('Podaci o računu'!$C$10=$AC$3:AC20, ROW(Šifranti!$AE$3:AE20)-2,\"\"), ROW()-2)),\"\")","v":0},null,null,null,"P3",null,null,"AE","AE – VAT Reverse Charge "]
[null,"Drugo - ne postoji opcija plaćanja",3,null,null,null,null,null,null,"Prodajni nalog",null,"22 (76.a člen)",0,null,null,null,null,"Avansni račun",386,null,"Aktivna politika zaposlovanja","AEMP",null,"Montenegro","ME",null,null,null,"SI","22 (76.a člen)",0,null,{"$f":"IFERROR(INDEX($AD$3:AD21, SMALL(IF('Podaci o računu'!$C$10=$AC$3:AC21, ROW(Šifranti!$AD$3:AD21)-2,\"\"), ROW()-2)),\"\")","v":""},{"$f":"IFERROR(INDEX($AE$3:AE21, SMALL(IF('Podaci o računu'!$C$10=$AC$3:AC21, ROW(Šifranti!$AE$3:AE21)-2,\"\"), ROW()-2)),\"\")","v":""},null,null,null,"P4",null,null,"K","K – VAT exempt for EEA intra-community supply of goods and services"]
[null,null,null,null,null,null,null,null,null,"Prijemnica",null,"9,5 (76.a člen)",0,null,null,null,null,null,null,null,"Plačilo v kmetijstvu","AGRT",null,"Åland Islands","AX",null,null,null,"SI","9,5 (76.a člen)",0,null,{"$f":"IFERROR(INDEX($AD$3:AD22, SMALL(IF('Podaci o računu'!$C$10=$AC$3:AC22, ROW(Šifranti!$AD$3:AD22)-2,\"\"), ROW()-2)),\"\")","v":""},null,null,null,null,"P5",null,null,"G","G – Free export item, tax not charged"]
[null,null,null,null,null,null,null,null,null,"Projekat",null,null,null,null,null,null,null,null,null,null,"Zračni prevoz","AIRB",null,"Albania","AL",null,null,null,"HR",25,25,null,null,null,null,null,null,"P6",null,null,"O","O – Services outside scope of tax"]
[null,null,null,null,null,null,null,null,null,"Eksterni objekat",null,null,null,null,null,null,null,null,null,null,"Preživnina","ALMY",null,"Algeria","DZ",null,null,null,"HR",13,13,null,null,null,null,null,null,"P7"]
[null,null,null,null,null,null,null,null,null,null,null,null,null,null,null,null,null,null,null,null,"Plačilo obroka kredita/zavarovanja","ANNI",null,"American Samoa","AS",null,null,null,"HR",5,5,null,null,null,null,null,null,"P8"]
[null,null,null,null,null,null,null,null,null,null,null,null,null,null,null,null,null,null,null,null,"Storitve anestezije","ANTS",null,"Andorra","AD",null,null,null,"HR",0,0,null,null,null,null,null,null,"P9"]
[null,null,null,null,null,null,null,null,null,null,null,null,null,null,null,null,null,null,null,null,"Vnos/vpis terjatev","AREN",null,"Angola","AO",null,null,null,"ME",21,21,null,null,null,null,null,null,"P10"]
[null,null,null,null,null,null,null,null,null,null,null,null,null,null,null,null,null,null,null,null,"Otroški dodatek","BECH",null,"Anguilla","AI",null,null,null,"ME",7,7,null,null,null,null,null,null,"P11"]
[null,null,null,null,null,null,null,null,null,null,null,null,null,null,null,null,null,null,null,null,"Podpora za brezposelne/invalide","BENE",null,"Antarctica","AQ",null,null,null,"ME",0,0,null,null,null,null,null,null,"P12"]
[null,null,null,null,null,null,null,null,null,null,null,null,null,null,null,null,null,null,null,null,"Poslovni izdatki","BEXP",null,"Antigua and Barbuda","AG",null,null,null,"CZ",21,21]
[null,null,null,null,null,null,null,null,null,null,null,null,null,null,null,null,null,null,null,null,"Vnos/vpis konverzije v zaledju","BOCE",null,"Argentina","AR",null,null,null,"CZ",15,15]
[null,null,null,null,null,null,null,null,null,null,null,null,null,null,null,null,null,null,null,null,"Bonus plačilo","BONU",null,"Armenia","AM",null,null,null,"CZ",10,10]
[null,null,null,null,null,null,null,null,null,null,null,null,null,null,null,null,null,null,null,null,"Vzdrževanje zgradb","BLDM",null,"Aruba","AW",null,null,null,"CZ",0,0]
[null,null,null,null,null,null,null,null,null,null,null,null,null,null,null,null,null,null,null,null,"Avtobusni transport","BUSB",null,"Australia","AU"]
[null,null,null,null,null,null,null,null,null,null,null,null,null,null,null,null,null,null,null,null,"Upravljanje denarnih sredstev - med bankami","CASH",null,"Austria","AT"]
[null,null,null,null,null,null,null,null,null,null,null,null,null,null,null,null,null,null,null,null,"Pokojninski skladi, varčevanje","CBFF",null,"Azerbaijan","AZ"]
[null,null,null,null,null,null,null,null,null,null,null,null,null,null,null,null,null,null,null,null,"Račun za kabelsko TV","CBTV",null,"Bahamas (the)","BS"]
[null,null,null,null,null,null,null,null,null,null,null,null,null,null,null,null,null,null,null,null,"Plačilo s kreditno kartico","CCRD ",null,"Bahrain","BH"]
[null,null,null,null,null,null,null,null,null,null,null,null,null,null,null,null,null,null,null,null,"Plačilo računa za kreditno kartico","CDBL",null,"Bangladesh","BD"]
[null,null,null,null,null,null,null,null,null,null,null,null,null,null,null,null,null,null,null,null,"Kartična plačila z gotovinskim vračilom","CDCB",null,"Barbados","BB"]
[null,null,null,null,null,null,null,null,null,null,null,null,null,null,null,null,null,null,null,null,"Kartično izplačilo ","CDCD",null,"Belarus","BY"]
[null,null,null,null,null,null,null,null,null,null,null,null,null,null,null,null,null,null,null,null,"Kartično izplačilo z dodatnimi stroški","CDCS",null,"Belgium","BE"]
[null,null,null,null,null,null,null,null,null,null,null,null,null,null,null,null,null,null,null,null,"Originalna odobritev","CDOC",null,"Belize","BZ"]
[null,null,null,null,null,null,null,null,null,null,null,null,null,null,null,null,null,null,null,null,"Navidezna  gotovina","CDQC",null,"Benin","BJ"]
[null,null,null,null,null,null,null,null,null,null,null,null,null,null,null,null,null,null,null,null,"Stroški preklica","CFEE",null,"Bermuda","BM"]
[null,null,null,null,null,null,null,null,null,null,null,null,null,null,null,null,null,null,null,null,"Dobrodelno plačilo","CHAR",null,"Bhutan","BT"]
[null,null,null,null,null,null,null,null,null,null,null,null,null,null,null,null,null,null,null,null,"Plačilo avtomobilskega kredita","CLPR",null,"Bolivia (Plurinational State of)","BO"]
[null,null,null,null,null,null,null,null,null,null,null,null,null,null,null,null,null,null,null,null,"Plačilo blaga","CMDT",null,"Bonaire, Sint Eustatius and Saba","BQ"]
[null,null,null,null,null,null,null,null,null,null,null,null,null,null,null,null,null,null,null,null,"Nalog za izvršitev plačila","COLL",null,"Bosnia and Herzegovina","BA"]
[null,null,null,null,null,null,null,null,null,null,null,null,null,null,null,null,null,null,null,null,"Komercialno plačilo","COMC",null,"Botswana","BW"]
[null,null,null,null,null,null,null,null,null,null,null,null,null,null,null,null,null,null,null,null,"Plačilo provizije","COMM",null,"Bouvet Island","BV"]
[null,null,null,null,null,null,null,null,null,null,null,null,null,null,null,null,null,null,null,null,"Konsolidirano plačilo tretje stranke za potrošnika","COMT",null,"Brazil","BR"]
[null,null,null,null,null,null,null,null,null,null,null,null,null,null,null,null,null,null,null,null,"Stroški","COST",null,"British Indian Ocean Territory (the)","IO"]
[null,null,null,null,null,null,null,null,null,null,null,null,null,null,null,null,null,null,null,null,"Avtorska pravica","CPYR",null,"Brunei Darussalam","BN"]
[null,null,null,null,null,null,null,null,null,null,null,null,null,null,null,null,null,null,null,null,"Denarno izplačilo","CSDB",null,"Bulgaria","BG"]
[null,null,null,null,null,null,null,null,null,null,null,null,null,null,null,null,null,null,null,null,"Plačilo socialnega posojila banki","CSLP",null,"Burkina Faso","BF"]
[null,null,null,null,null,null,null,null,null,null,null,null,null,null,null,null,null,null,null,null,"Pripomočki za okrevajoče","CVCF",null,"Burundi","BI"]
[null,null,null,null,null,null,null,null,null,null,null,null,null,null,null,null,null,null,null,null,"Debetno plačilo","DBTC",null,"Cabo Verde","CV"]
[null,null,null,null,null,null,null,null,null,null,null,null,null,null,null,null,null,null,null,null,"Plačilo z debetno kartico","DCRD",null,"Cambodia","KH"]
[null,null,null,null,null,null,null,null,null,null,null,null,null,null,null,null,null,null,null,null,"Depozit","DEPT",null,"Cameroon","CM"]
[null,null,null,null,null,null,null,null,null,null,null,null,null,null,null,null,null,null,null,null,"Derivativi","DERI",null,"Canada","CA"]
[null,null,null,null,null,null,null,null,null,null,null,null,null,null,null,null,null,null,null,null,"Dividenda","DIVD",null,"Cayman Islands (the)","KY"]
[null,null,null,null,null,null,null,null,null,null,null,null,null,null,null,null,null,null,null,null,"Medicinska oprema","DMEQ",null,"Central African Republic (the)","CF"]
[null,null,null,null,null,null,null,null,null,null,null,null,null,null,null,null,null,null,null,null,"Zobozdravstvene storitve","DNTS",null,"Chad","TD"]
[null,null,null,null,null,null,null,null,null,null,null,null,null,null,null,null,null,null,null,null,"Račun za elektriko","ELEC",null,"Chile","CL"]
[null,null,null,null,null,null,null,null,null,null,null,null,null,null,null,null,null,null,null,null,"Energetika","ENRG",null,"China","CN"]
[null,null,null,null,null,null,null,null,null,null,null,null,null,null,null,null,null,null,null,null,"Davek na nepremičnine","ESTX",null,"Christmas Island","CX"]
[null,null,null,null,null,null,null,null,null,null,null,null,null,null,null,null,null,null,null,null,"E - denarnica","ETUP",null,"Cocos (Keeling) Islands (the)","CC"]
[null,null,null,null,null,null,null,null,null,null,null,null,null,null,null,null,null,null,null,null,"Finančna pomoč državnih organov in lokalnih skupnosti za odpravo posledic naravnih nesreč","FAND",null,"Colombia","CO"]
[null,null,null,null,null,null,null,null,null,null,null,null,null,null,null,null,null,null,null,null,"Ladijski prevoz","FERB",null,"Comoros (the)","KM"]
[null,null,null,null,null,null,null,null,null,null,null,null,null,null,null,null,null,null,null,null,"Devizno poslovanje","FREX",null,"Congo (the Democratic Republic of the)","CD"]
[null,null,null,null,null,null,null,null,null,null,null,null,null,null,null,null,null,null,null,null,"Račun za plin","GASB",null,"Congo (the)","CG"]
[null,null,null,null,null,null,null,null,null,null,null,null,null,null,null,null,null,null,null,null,"Kupoprodaja blaga","GDDS",null,"Cook Islands (the)","CK"]
[null,null,null,null,null,null,null,null,null,null,null,null,null,null,null,null,null,null,null,null,"Kupoprodaja blaga in storitev","GDSV",null,"Costa Rica","CR"]
[null,null,null,null,null,null,null,null,null,null,null,null,null,null,null,null,null,null,null,null,"Plačila iz naslova insolventnosti","GFRP",null,"Côte d'Ivoire","CI"]
[null,null,null,null,null,null,null,null,null,null,null,null,null,null,null,null,null,null,null,null,"Državno zavarovanje","GOVI",null,"Cuba","CU"]
[null,null,null,null,null,null,null,null,null,null,null,null,null,null,null,null,null,null,null,null,"Plačilo v dobro/breme državnega  organa","GOVT",null,"Curaçao","CW"]
[null,null,null,null,null,null,null,null,null,null,null,null,null,null,null,null,null,null,null,null,"Kupoprodaja blaga in storitev z gotovino","GSCB",null,"Cyprus","CY"]
[null,null,null,null,null,null,null,null,null,null,null,null,null,null,null,null,null,null,null,null,"Avstrijski vladni uslužbenci kategorije A","GVEA",null,"Czechia","CZ"]
[null,null,null,null,null,null,null,null,null,null,null,null,null,null,null,null,null,null,null,null,"Avstrijski vladni uslužbenci kategorije B","GVEB",null,"Denmark","DK"]
[null,null,null,null,null,null,null,null,null,null,null,null,null,null,null,null,null,null,null,null,"Avstrijski vladni uslužbenci kategorije C","GVEC",null,"Djibouti","DJ"]
[null,null,null,null,null,null,null,null,null,null,null,null,null,null,null,null,null,null,null,null,"Avstrijski vladni uslužbenci kategorije D","GVED",null,"Dominica","DM"]
[null,null,null,null,null,null,null,null,null,null,null,null,null,null,null,null,null,null,null,null,"Nakazila po vojnih zakonih","GWLT",null,"Dominican Republic (the)","DO"]
[null,null,null,null,null,null,null,null,null,null,null,null,null,null,null,null,null,null,null,null,"Zaščita pred tveganji","HEDG",null,"Ecuador","EC"]
[null,null,null,null,null,null,null,null,null,null,null,null,null,null,null,null,null,null,null,null,"Plačilo stanovanjskega posojila","HLRP",null,"Egypt","EG"]
[null,null,null,null,null,null,null,null,null,null,null,null,null,null,null,null,null,null,null,null,"Zdravstvena oskrba na domu","HLTC",null,"El Salvador","SV"]
[null,null,null,null,null,null,null,null,null,null,null,null,null,null,null,null,null,null,null,null,"Zdravstveno zavarovanje","HLTI",null,"Equatorial Guinea","GQ"]
[null,null,null,null,null,null,null,null,null,null,null,null,null,null,null,null,null,null,null,null,"Bolnišnična oskrba","HSPC",null,"Eritrea","ER"]
[null,null,null,null,null,null,null,null,null,null,null,null,null,null,null,null,null,null,null,null,"Stanovanjski davek","HSTX",null,"Estonia","EE"]
[null,null,null,null,null,null,null,null,null,null,null,null,null,null,null,null,null,null,null,null,"Nepreklicno plačilo s kreditno kartico","ICCP",null,"Eswatini","SZ"]
[null,null,null,null,null,null,null,null,null,null,null,null,null,null,null,null,null,null,null,null,"Prva/nujna pomoč","ICRF",null,"Ethiopia","ET"]
[null,null,null,null,null,null,null,null,null,null,null,null,null,null,null,null,null,null,null,null,"Nepreklicno plačilo z debetno kartico","IDCP",null,"Falkland Islands (the) [Malvinas]","FK"]
[null,null,null,null,null,null,null,null,null,null,null,null,null,null,null,null,null,null,null,null,"Plačilo obroka najemnine/nakupa","IHRP",null,"Faroe Islands (the)","FO"]
[null,null,null,null,null,null,null,null,null,null,null,null,null,null,null,null,null,null,null,null,"Premija avtomobilskega zavarovanja","INPC",null,"Fiji","FJ"]
[null,null,null,null,null,null,null,null,null,null,null,null,null,null,null,null,null,null,null,null,"Plačilo obroka","INSM",null,"Finland","FI"]
[null,null,null,null,null,null,null,null,null,null,null,null,null,null,null,null,null,null,null,null,"Zavarovalna premija","INSU",null,"France","FR"]
[null,null,null,null,null,null,null,null,null,null,null,null,null,null,null,null,null,null,null,null,"Interno plačilo","INTC",null,"French Guiana","GF"]
[null,null,null,null,null,null,null,null,null,null,null,null,null,null,null,null,null,null,null,null,"Obresti","INTE",null,"French Polynesia","PF"]
[null,null,null,null,null,null,null,null,null,null,null,null,null,null,null,null,null,null,null,null,"Davek na dobiček","INTX",null,"French Southern Territories (the)","TF"]
[null,null,null,null,null,null,null,null,null,null,null,null,null,null,null,null,null,null,null,null,"Delovno zavarovanje","LBRI",null,"Gabon","GA"]
[null,null,null,null,null,null,null,null,null,null,null,null,null,null,null,null,null,null,null,null,"Licenčna provizija/licenčnina","LICF",null,"Gambia (the)","GM"]
[null,null,null,null,null,null,null,null,null,null,null,null,null,null,null,null,null,null,null,null,"Življenjsko zavarovanje","LIFI",null,"Georgia","GE"]
[null,null,null,null,null,null,null,null,null,null,null,null,null,null,null,null,null,null,null,null,"Upravljanje likvidnosti","LIMA",null,"Germany","DE"]
[null,null,null,null,null,null,null,null,null,null,null,null,null,null,null,null,null,null,null,null,"Posojilo","LOAN",null,"Ghana","GH"]
[null,null,null,null,null,null,null,null,null,null,null,null,null,null,null,null,null,null,null,null,"Odplačilo posojila","LOAR",null,"Gibraltar","GI"]
[null,null,null,null,null,null,null,null,null,null,null,null,null,null,null,null,null,null,null,null,"Dolgotrajna zdravstvena oskrba","LTCF",null,"Greece","GR"]
[null,null,null,null,null,null,null,null,null,null,null,null,null,null,null,null,null,null,null,null,"Zdravstvene storitve","MDCS",null,"Greenland","GL"]
[null,null,null,null,null,null,null,null,null,null,null,null,null,null,null,null,null,null,null,null,"Večnamenske storitve","MSVC",null,"Grenada","GD"]
[null,null,null,null,null,null,null,null,null,null,null,null,null,null,null,null,null,null,null,null,"Polnjenje mobi računa","MTUP",null,"Guadeloupe","GP"]
[null,null,null,null,null,null,null,null,null,null,null,null,null,null,null,null,null,null,null,null,"Neto izravnava","NETT",null,"Guam","GU"]
[null,null,null,null,null,null,null,null,null,null,null,null,null,null,null,null,null,null,null,null,"Davek na čisti dobiček","NITX",null,"Guatemala","GT"]
[null,null,null,null,null,null,null,null,null,null,null,null,null,null,null,null,null,null,null,null,"Ni opredeljeno drugod.","NOWS",null,"Guernsey","GG"]
[null,null,null,null,null,null,null,null,null,null,null,null,null,null,null,null,null,null,null,null,"Omrežnina","NWCH",null,"Guinea","GN"]
[null,null,null,null,null,null,null,null,null,null,null,null,null,null,null,null,null,null,null,null,"Plačilo komunikacijskega omrežja","NWCM",null,"Guinea-Bissau","GW"]
[null,null,null,null,null,null,null,null,null,null,null,null,null,null,null,null,null,null,null,null,"Otvoritvena provizija","OFEE",null,"Guyana","GY"]
[null,null,null,null,null,null,null,null,null,null,null,null,null,null,null,null,null,null,null,null,"Drugo","OTHR",null,"Haiti","HT"]
[null,null,null,null,null,null,null,null,null,null,null,null,null,null,null,null,null,null,null,null,"Drugi računi - telekomunikacije","OTLC",null,"Heard Island and McDonald Islands","HM"]
[null,null,null,null,null,null,null,null,null,null,null,null,null,null,null,null,null,null,null,null,"Vnaprej odobrena obremenitev","PADD",null,"Holy See (the)","VA"]
[null,null,null,null,null,null,null,null,null,null,null,null,null,null,null,null,null,null,null,null,"Plačilna lista","PAYR",null,"Honduras","HN"]
[null,null,null,null,null,null,null,null,null,null,null,null,null,null,null,null,null,null,null,null,"Plačilo po vseh sklepih o izvršbah, razen sodnih za preživnine","PENO",null,"Hong Kong","HK"]
[null,null,null,null,null,null,null,null,null,null,null,null,null,null,null,null,null,null,null,null,"Pokojnina","PENS",null,"Hungary","HU"]
[null,null,null,null,null,null,null,null,null,null,null,null,null,null,null,null,null,null,null,null,"Račun za telefon","PHON",null,"Iceland","IS"]
[null,null,null,null,null,null,null,null,null,null,null,null,null,null,null,null,null,null,null,null,"Vnos/vpis prodajnega mesta","POPE",null,"India","IN"]
[null,null,null,null,null,null,null,null,null,null,null,null,null,null,null,null,null,null,null,null,"Zavarovanje lastnine","PPTI",null,"Indonesia","ID"]
[null,null,null,null,null,null,null,null,null,null,null,null,null,null,null,null,null,null,null,null,"Plačilo izdatkov","PRCP",null,"Iran (Islamic Republic of)","IR"]
[null,null,null,null,null,null,null,null,null,null,null,null,null,null,null,null,null,null,null,null,"Plemenite kovine","PRME",null,"Iraq","IQ"]
[null,null,null,null,null,null,null,null,null,null,null,null,null,null,null,null,null,null,null,null,"Plačilni pogoji","PTSP",null,"Ireland","IE"]
[null,null,null,null,null,null,null,null,null,null,null,null,null,null,null,null,null,null,null,null,"Plačilo za ponovno unovčitev čeka","RCKE",null,"Isle of Man","IM"]
[null,null,null,null,null,null,null,null,null,null,null,null,null,null,null,null,null,null,null,null,"Plačilo za  izdajo potrdila ","RCPT",null,"Israel","IL"]
[null,null,null,null,null,null,null,null,null,null,null,null,null,null,null,null,null,null,null,null,"Vračilo denarnih sredstev","REFU",null,"Italy","IT"]
[null,null,null,null,null,null,null,null,null,null,null,null,null,null,null,null,null,null,null,null,"Najemnina","RENT",null,"Jamaica","JM"]
[null,null,null,null,null,null,null,null,null,null,null,null,null,null,null,null,null,null,null,null,"Rehabilitacija invalidov","RHBS",null,"Japan","JP"]
[null,null,null,null,null,null,null,null,null,null,null,null,null,null,null,null,null,null,null,null,"Obročna plačila","RINP",null,"Jersey","JE"]
[null,null,null,null,null,null,null,null,null,null,null,null,null,null,null,null,null,null,null,null,"Železniški prevoz","RLWY",null,"Jordan","JO"]
[null,null,null,null,null,null,null,null,null,null,null,null,null,null,null,null,null,null,null,null,"Plačilo iz naslova avtorskih pravic","ROYA",null,"Kazakhstan","KZ"]
[null,null,null,null,null,null,null,null,null,null,null,null,null,null,null,null,null,null,null,null,"Plača","SALA",null,"Kenya","KE"]
[null,null,null,null,null,null,null,null,null,null,null,null,null,null,null,null,null,null,null,null,"Varčevanje","SAVG",null,"Kiribati","KI"]
[null,null,null,null,null,null,null,null,null,null,null,null,null,null,null,null,null,null,null,null,"Kupoprodaja storitev","SCVE",null,"Korea (the Democratic People's Republic of)","KP"]
[null,null,null,null,null,null,null,null,null,null,null,null,null,null,null,null,null,null,null,null,"Vrednostni papirji","SECU",null,"Korea (the Republic of)","KR"]
[null,null,null,null,null,null,null,null,null,null,null,null,null,null,null,null,null,null,null,null,"Socialna podpora","SSBE",null,"Kuwait","KW"]
[null,null,null,null,null,null,null,null,null,null,null,null,null,null,null,null,null,null,null,null,"Študij","STDY",null,"Kyrgyzstan","KG"]
[null,null,null,null,null,null,null,null,null,null,null,null,null,null,null,null,null,null,null,null,"Naročnina","SUBS",null,"Lao People's Democratic Republic (the)","LA"]
[null,null,null,null,null,null,null,null,null,null,null,null,null,null,null,null,null,null,null,null,"Plačilo dobaviteljem","SUPP",null,"Latvia","LV"]
[null,null,null,null,null,null,null,null,null,null,null,null,null,null,null,null,null,null,null,null,"Vračilo davka ","TAXR",null,"Lebanon","LB"]
[null,null,null,null,null,null,null,null,null,null,null,null,null,null,null,null,null,null,null,null,"Plačilo davkov ","TAXS",null,"Lesotho","LS"]
[null,null,null,null,null,null,null,null,null,null,null,null,null,null,null,null,null,null,null,null,"Telefonsko izvedena transakcija","TELI",null,"Liberia","LR"]
[null,null,null,null,null,null,null,null,null,null,null,null,null,null,null,null,null,null,null,null,"Trgovinske storitve","TRAD",null,"Libya","LY"]
[null,null,null,null,null,null,null,null,null,null,null,null,null,null,null,null,null,null,null,null,"Zakladniško plačilo","TREA",null,"Liechtenstein","LI"]
[null,null,null,null,null,null,null,null,null,null,null,null,null,null,null,null,null,null,null,null,"Skrbniški sklad","TRFD",null,"Lithuania","LT"]
[null,null,null,null,null,null,null,null,null,null,null,null,null,null,null,null,null,null,null,null,"Plačilo davka na dodano vrednost","VATX",null,"Luxembourg","LU"]
[null,null,null,null,null,null,null,null,null,null,null,null,null,null,null,null,null,null,null,null,"Oskrba vida","VIEW",null,"Macao","MO"]
[null,null,null,null,null,null,null,null,null,null,null,null,null,null,null,null,null,null,null,null,"Internetno izvedena transakcija","WEBI",null,"Madagascar","MG"]
[null,null,null,null,null,null,null,null,null,null,null,null,null,null,null,null,null,null,null,null,"Davek po odbitku","WHLD",null,"Malawi","MW"]
[null,null,null,null,null,null,null,null,null,null,null,null,null,null,null,null,null,null,null,null,"Račun za vodo/vodarina","WTER",null,"Malaysia","MY"]
[null,null,null,null,null,null,null,null,null,null,null,null,null,null,null,null,null,null,null,null,null,null,null,"Maldives","MV"]
[null,null,null,null,null,null,null,null,null,null,null,null,null,null,null,null,null,null,null,null,null,null,null,"Mali","ML"]
[null,null,null,null,null,null,null,null,null,null,null,null,null,null,null,null,null,null,null,null,null,null,null,"Malta","MT"]
[null,null,null,null,null,null,null,null,null,null,null,null,null,null,null,null,null,null,null,null,null,null,null,"Marshall Islands (the)","MH"]
[null,null,null,null,null,null,null,null,null,null,null,null,null,null,null,null,null,null,null,null,null,null,null,"Martinique","MQ"]
[null,null,null,null,null,null,null,null,null,null,null,null,null,null,null,null,null,null,null,null,null,null,null,"Mauritania","MR"]
[null,null,null,null,null,null,null,null,null,null,null,null,null,null,null,null,null,null,null,null,null,null,null,"Mauritius","MU"]
[null,null,null,null,null,null,null,null,null,null,null,null,null,null,null,null,null,null,null,null,null,null,null,"Mayotte","YT"]
[null,null,null,null,null,null,null,null,null,null,null,null,null,null,null,null,null,null,null,null,null,null,null,"Mexico","MX"]
[null,null,null,null,null,null,null,null,null,null,null,null,null,null,null,null,null,null,null,null,null,null,null,"Micronesia (Federated States of)","FM"]
[null,null,null,null,null,null,null,null,null,null,null,null,null,null,null,null,null,null,null,null,null,null,null,"Moldova (the Republic of)","MD"]
[null,null,null,null,null,null,null,null,null,null,null,null,null,null,null,null,null,null,null,null,null,null,null,"Monaco","MC"]
[null,null,null,null,null,null,null,null,null,null,null,null,null,null,null,null,null,null,null,null,null,null,null,"Mongolia","MN"]
[null,null,null,null,null,null,null,null,null,null,null,null,null,null,null,null,null,null,null,null,null,null,null,"Afganistan","AF"]
[null,null,null,null,null,null,null,null,null,null,null,null,null,null,null,null,null,null,null,null,null,null,null,"Montserrat","MS"]
[null,null,null,null,null,null,null,null,null,null,null,null,null,null,null,null,null,null,null,null,null,null,null,"Morocco","MA"]
[null,null,null,null,null,null,null,null,null,null,null,null,null,null,null,null,null,null,null,null,null,null,null,"Mozambique","MZ"]
[null,null,null,null,null,null,null,null,null,null,null,null,null,null,null,null,null,null,null,null,null,null,null,"Myanmar","MM"]
[null,null,null,null,null,null,null,null,null,null,null,null,null,null,null,null,null,null,null,null,null,null,null,"Namibia","NA"]
[null,null,null,null,null,null,null,null,null,null,null,null,null,null,null,null,null,null,null,null,null,null,null,"Nauru","NR"]
[null,null,null,null,null,null,null,null,null,null,null,null,null,null,null,null,null,null,null,null,null,null,null,"Nepal","NP"]
[null,null,null,null,null,null,null,null,null,null,null,null,null,null,null,null,null,null,null,null,null,null,null,"Netherlands (the)","NL"]
[null,null,null,null,null,null,null,null,null,null,null,null,null,null,null,null,null,null,null,null,null,null,null,"New Caledonia","NC"]
[null,null,null,null,null,null,null,null,null,null,null,null,null,null,null,null,null,null,null,null,null,null,null,"New Zealand","NZ"]
[null,null,null,null,null,null,null,null,null,null,null,null,null,null,null,null,null,null,null,null,null,null,null,"Nicaragua","NI"]
[null,null,null,null,null,null,null,null,null,null,null,null,null,null,null,null,null,null,null,null,null,null,null,"Niger (the)","NE"]
[null,null,null,null,null,null,null,null,null,null,null,null,null,null,null,null,null,null,null,null,null,null,null,"Nigeria","NG"]
[null,null,null,null,null,null,null,null,null,null,null,null,null,null,null,null,null,null,null,null,null,null,null,"Niue","NU"]
[null,null,null,null,null,null,null,null,null,null,null,null,null,null,null,null,null,null,null,null,null,null,null,"Norfolk Island","NF"]
[null,null,null,null,null,null,null,null,null,null,null,null,null,null,null,null,null,null,null,null,null,null,null,"North Macedonia","MK"]
[null,null,null,null,null,null,null,null,null,null,null,null,null,null,null,null,null,null,null,null,null,null,null,"Northern Mariana Islands (the)","MP"]
[null,null,null,null,null,null,null,null,null,null,null,null,null,null,null,null,null,null,null,null,null,null,null,"Norway","NO"]
[null,null,null,null,null,null,null,null,null,null,null,null,null,null,null,null,null,null,null,null,null,null,null,"Oman","OM"]
[null,null,null,null,null,null,null,null,null,null,null,null,null,null,null,null,null,null,null,null,null,null,null,"Pakistan","PK"]
[null,"ENOTA MERE",null,null,null,null,null,null,null,null,null,null,null,null,null,null,null,null,null,null,null,null,null,"Palau","PW"]
[null,"Opis kode",null,null,null,null,null,null,null,null,null,null,null,null,null,null,null,null,null,null,null,null,null,"Palestine, State of","PS"]
[null,"%","P1",null,null,null,null,null,null,null,null,null,null,null,null,null,null,null,null,null,null,null,null,"Panama","PA"]
[null,"riječ","D68",null,null,null,null,null,null,null,null,null,null,null,null,null,null,null,null,null,null,null,null,"Papua New Guinea","PG"]
[null,"cm","CMT",null,null,null,null,null,null,null,null,null,null,null,null,null,null,null,null,null,null,null,null,"Paraguay","PY"]
[null,"cm2","CMK",null,null,null,null,null,null,null,null,null,null,null,null,null,null,null,null,null,null,null,null,"Peru","PE"]
[null,"četvrtina","QAN",null,null,null,null,null,null,null,null,null,null,null,null,null,null,null,null,null,null,null,null,"Philippines (the)","PH"]
[null,"dan","DAY",null,null,null,null,null,null,null,null,null,null,null,null,null,null,null,null,null,null,null,null,"Pitcairn","PN"]
[null,"dm","DMT",null,null,null,null,null,null,null,null,null,null,null,null,null,null,null,null,null,null,null,null,"Poland","PL"]
[null,"g","GRM",null,null,null,null,null,null,null,null,null,null,null,null,null,null,null,null,null,null,null,null,"Portugal","PT"]
[null,"GJ","GV",null,null,null,null,null,null,null,null,null,null,null,null,null,null,null,null,null,null,null,null,"Puerto Rico","PR"]
[null,"GW/h","GWH",null,null,null,null,null,null,null,null,null,null,null,null,null,null,null,null,null,null,null,null,"Qatar","QA"]
[null,"hl","HLT",null,null,null,null,null,null,null,null,null,null,null,null,null,null,null,null,null,null,null,null,"Réunion","RE"]
[null,"J","JOU",null,null,null,null,null,null,null,null,null,null,null,null,null,null,null,null,null,null,null,null,"Romania","RO"]
[null,"K","KEL",null,null,null,null,null,null,null,null,null,null,null,null,null,null,null,null,null,null,null,null,"Russian Federation (the)","RU"]
[null,"Kbar","KBA",null,null,null,null,null,null,null,null,null,null,null,null,null,null,null,null,null,null,null,null,"Rwanda","RW"]
[null,"Kg","KGM",null,null,null,null,null,null,null,null,null,null,null,null,null,null,null,null,null,null,null,null,"Saint Barthélemy","BL"]
[null,"KHz","KHZ",null,null,null,null,null,null,null,null,null,null,null,null,null,null,null,null,null,null,null,null,"Saint Helena, Ascension and Tristan da Cunha","SH"]
[null,"KJ","KJO",null,null,null,null,null,null,null,null,null,null,null,null,null,null,null,null,null,null,null,null,"Saint Kitts and Nevis","KN"]
[null,"klic","C0",null,null,null,null,null,null,null,null,null,null,null,null,null,null,null,null,null,null,null,null,"Saint Lucia","LC"]
[null,"Km","KTM",null,null,null,null,null,null,null,null,null,null,null,null,null,null,null,null,null,null,null,null,"Saint Martin (French part)","MF"]
[null,"kom","C62",null,null,null,null,null,null,null,null,null,null,null,null,null,null,null,null,null,null,null,null,"Saint Pierre and Miquelon","PM"]
[null,"kom/milion",59,null,null,null,null,null,null,null,null,null,null,null,null,null,null,null,null,null,null,null,null,"Saint Vincent and the Grenadines","VC"]
[null,"KV","KVT",null,null,null,null,null,null,null,null,null,null,null,null,null,null,null,null,null,null,null,null,"Samoa","WS"]
[null,"KW","KWT",null,null,null,null,null,null,null,null,null,null,null,null,null,null,null,null,null,null,null,null,"San Marino","SM"]
[null,"KW/h","KWH",null,null,null,null,null,null,null,null,null,null,null,null,null,null,null,null,null,null,null,null,"Sao Tome and Principe","ST"]
[null,"list","ST",null,null,null,null,null,null,null,null,null,null,null,null,null,null,null,null,null,null,null,null,"Saudi Arabia","SA"]
[null,"litra","LTR",null,null,null,null,null,null,null,null,null,null,null,null,null,null,null,null,null,null,null,null,"Senegal","SN"]
[null,"m","MTR",null,null,null,null,null,null,null,null,null,null,null,null,null,null,null,null,null,null,null,null,"Serbia","RS"]
[null,"m2","MTK",null,null,null,null,null,null,null,null,null,null,null,null,null,null,null,null,null,null,null,null,"Seychelles","SC"]
[null,"m3","MTQ",null,null,null,null,null,null,null,null,null,null,null,null,null,null,null,null,null,null,null,null,"Sierra Leone","SL"]
[null,"mjesec","MON",null,null,null,null,null,null,null,null,null,null,null,null,null,null,null,null,null,null,null,null,"Singapore","SG"]
[null,"mg","MGM",null,null,null,null,null,null,null,null,null,null,null,null,null,null,null,null,null,null,null,null,"Sint Maarten (Dutch part)","SX"]
[null,"MHz","MHZ",null,null,null,null,null,null,null,null,null,null,null,null,null,null,null,null,null,null,null,null,"Slovakia","SK"]
[null,"min","MIN",null,null,null,null,null,null,null,null,null,null,null,null,null,null,null,null,null,null,null,null,"Solomon Islands","SB"]
[null,"Ml","MAL",null,null,null,null,null,null,null,null,null,null,null,null,null,null,null,null,null,null,null,null,"Somalia","SO"]
[null,"ml","MLT",null,null,null,null,null,null,null,null,null,null,null,null,null,null,null,null,null,null,null,null,"South Africa","ZA"]
[null,"mm","MMT",null,null,null,null,null,null,null,null,null,null,null,null,null,null,null,null,null,null,null,null,"South Georgia and the South Sandwich Islands","GS"]
[null,"MW","MAW",null,null,null,null,null,null,null,null,null,null,null,null,null,null,null,null,null,null,null,null,"South Sudan","SS"]
[null,"MW/h","MWH",null,null,null,null,null,null,null,null,null,null,null,null,null,null,null,null,null,null,null,null,"Spain","ES"]
[null,"obrok","PTN",null,null,null,null,null,null,null,null,null,null,null,null,null,null,null,null,null,null,null,null,"Sri Lanka","LK"]
[null,"sekunda","SEC",null,null,null,null,null,null,null,null,null,null,null,null,null,null,null,null,null,null,null,null,"Sudan (the)","SD"]
[null,"stepen celzijusa","CEL",null,null,null,null,null,null,null,null,null,null,null,null,null,null,null,null,null,null,null,null,"Suriname","SR"]
[null,"stran","ZP",null,null,null,null,null,null,null,null,null,null,null,null,null,null,null,null,null,null,null,null,"Svalbard and Jan Mayen","SJ"]
[null,"br.štampanih linija","N2",null,null,null,null,null,null,null,null,null,null,null,null,null,null,null,null,null,null,null,null,"Sweden","SE"]
[null,"broj kataloga","NRL",null,null,null,null,null,null,null,null,null,null,null,null,null,null,null,null,null,null,null,null,"Switzerland","CH"]
[null,"broj paragrafa","NAR",null,null,null,null,null,null,null,null,null,null,null,null,null,null,null,null,null,null,null,null,"Syrian Arab Republic (the)","SY"]
[null,"t","TNE",null,null,null,null,null,null,null,null,null,null,null,null,null,null,null,null,null,null,null,null,"Taiwan (Province of China)","TW"]
[null,"sat","HUR",null,null,null,null,null,null,null,null,null,null,null,null,null,null,null,null,null,null,null,null,"Tajikistan","TJ"]
[null,"V","VLT",null,null,null,null,null,null,null,null,null,null,null,null,null,null,null,null,null,null,null,null,"Tanzania, the United Republic of","TZ"]
[null,"svaki posebno","EA",null,null,null,null,null,null,null,null,null,null,null,null,null,null,null,null,null,null,null,null,"Thailand","TH"]
[null,"W","WTT",null,null,null,null,null,null,null,null,null,null,null,null,null,null,null,null,null,null,null,null,"Timor-Leste","TL"]
[null,"W/h","WHR",null,null,null,null,null,null,null,null,null,null,null,null,null,null,null,null,null,null,null,null,"Togo","TG"]
[null,"iznos","M4",null,null,null,null,null,null,null,null,null,null,null,null,null,null,null,null,null,null,null,null,"Tokelau","TK"]
[null,null,null,null,null,null,null,null,null,null,null,null,null,null,null,null,null,null,null,null,null,null,null,"Tonga","TO"]
[null,null,null,null,null,null,null,null,null,null,null,null,null,null,null,null,null,null,null,null,null,null,null,"Trinidad and Tobago","TT"]
[null,"BIC KODA",null,null,null,null,null,null,null,null,null,null,null,null,null,null,null,null,null,null,null,null,null,"Tunisia","TN"]
[null,"Opis kode","Koda",null,null,null,null,null,null,null,null,null,null,null,null,null,null,null,null,null,null,null,null,"Turkey","TR"]
[null,"ABANKA VIPA D.D.","ABANSI2X",null,null,null,null,null,null,null,null,null,null,null,null,null,null,null,null,null,null,null,null,"Turkmenistan","TM"]
[null,"BANKA CELJE D.D.","SBCESI2X",null,null,null,null,null,null,null,null,null,null,null,null,null,null,null,null,null,null,null,null,"Turks and Caicos Islands (the)","TC"]
[null,"BANKA KOPER D.D.","BAKOSI2X",null,null,null,null,null,null,null,null,null,null,null,null,null,null,null,null,null,null,null,null,"Tuvalu","TV"]
[null,"BANKA SLOVENIJE","BSLJSI2X",null,null,null,null,null,null,null,null,null,null,null,null,null,null,null,null,null,null,null,null,"Uganda","UG"]
[null,"BANKA SPARKASSE D.D.","KSPKSI22",null,null,null,null,null,null,null,null,null,null,null,null,null,null,null,null,null,null,null,null,"Ukraine","UA"]
[null,"BKS BANK AG, BANČNA PODRUŽNICA","BFKKSI22",null,null,null,null,null,null,null,null,null,null,null,null,null,null,null,null,null,null,null,null,"United Arab Emirates (the)","AE"]
[null,"DELAVSKA HRANILNICA D.D.","HDELSI22",null,null,null,null,null,null,null,null,null,null,null,null,null,null,null,null,null,null,null,null,"United Kingdom of Great Britain and Northern Ireland (the)","GB"]
[null,"DEŽELNA BANKA SLOVENIJE D.D.","SZKBSI2X",null,null,null,null,null,null,null,null,null,null,null,null,null,null,null,null,null,null,null,null,"United States Minor Outlying Islands (the)","UM"]
[null,"FACTOR BANKA D.D.","FCTBSI2X",null,null,null,null,null,null,null,null,null,null,null,null,null,null,null,null,null,null,null,null,"United States of America (the)","US"]
[null,"GORENJSKA BANKA D.D., KRANJ","GORESI2X",null,null,null,null,null,null,null,null,null,null,null,null,null,null,null,null,null,null,null,null,"Uruguay","UY"]
[null,"HRANILNICA IN POSOJILNICA","HKVISI22",null,null,null,null,null,null,null,null,null,null,null,null,null,null,null,null,null,null,null,null,"Uzbekistan","UZ"]
[null,"HRANILNICA LON D.D., KRANJ","HLONSI22",null,null,null,null,null,null,null,null,null,null,null,null,null,null,null,null,null,null,null,null,"Vanuatu","VU"]
[null,"HYPO-ALPE-ADRIA BANK D.D.","HAABSI22",null,null,null,null,null,null,null,null,null,null,null,null,null,null,null,null,null,null,null,null,"Venezuela (Bolivarian Republic of)","VE"]
[null,"NOVA KREDITNA BANKA MARIBOR D.D.","KBMASI2X",null,null,null,null,null,null,null,null,null,null,null,null,null,null,null,null,null,null,null,null,"Viet Nam","VN"]
[null,"NOVA LJUBLJANSKA BANKA D.D.","LJBASI2X",null,null,null,null,null,null,null,null,null,null,null,null,null,null,null,null,null,null,null,null,"Virgin Islands (British)","VG"]
[null,"POŠTNA BANKA SLOVENIJE D.D.","PBSLSI22",null,null,null,null,null,null,null,null,null,null,null,null,null,null,null,null,null,null,null,null,"Virgin Islands (U.S.)","VI"]
[null,"PROBANKA D.D.","PROBSI2X",null,null,null,null,null,null,null,null,null,null,null,null,null,null,null,null,null,null,null,null,"Wallis and Futuna","WF"]
[null,"RAIFFEISEN BANKA D.D.","KREKSI22",null,null,null,null,null,null,null,null,null,null,null,null,null,null,null,null,null,null,null,null,"Western Sahara*","EH"]
[null,"SBERBANK BANKA D.D.","SABRSI2X",null,null,null,null,null,null,null,null,null,null,null,null,null,null,null,null,null,null,null,null,"Yemen","YE"]
[null,"SID - Slovenska izvozna in razvojna banka, D.D., Ljubljana","SIDRSI22",null,null,null,null,null,null,null,null,null,null,null,null,null,null,null,null,null,null,null,null,"Zambia","ZM"]
[null,"SKB BANKA D.D.","SKBASI2X",null,null,null,null,null,null,null,null,null,null,null,null,null,null,null,null,null,null,null,null,"Zimbabwe","ZW"]
[null,"UNICREDIT BANKA SLOVENIJA D.D.","BACXSI22"]
[null,"ZVEZA BANK, PODRUŽNICA LJUBLJANA","VSGKSI22"]
[null,"KDD - KLIRINŠKO DEPOTNA  DRUŽBA D.D.                    ","KDDSSI22"]
[]
[]
[null,"VALUTA"]
[null,"Opis kode","Koda"]
[null,"Euro","EUR"]
[null,"Kuna","HRK"]
[null,"Pound Sterling","GBP"]
[null,"US Dollar","USD"]
[null,"UAE Dirham","AED"]
[null,"Afghani","AFN"]
[null,"Lek","ALL"]
[null,"Armenian Dram","AMD"]
[null,"Netherlands Antillean Guilder","ANG"]
[null,"Kwanza","AOA"]
[null,"Argentine Peso","ARS"]
[null,"Australian Dollar","AUD"]
[null,"Aruban Florin","AWG"]
[null,"Azerbaijan Manat","AZN"]
[null,"Convertible Mark","BAM"]
[null,"Barbados Dollar","BBD"]
[null,"Taka","BDT"]
[null,"Bulgarian Lev","BGN"]
[null,"Bahraini Dinar","BHD"]
[null,"Burundi Franc","BIF"]
[null,"Bermudian Dollar","BMD"]
[null,"Brunei Dollar","BND"]
[null,"Boliviano","BOB"]
[null,"Mvdol","BOV"]
[null,"Brazilian Real","BRL"]
[null,"Bahamian Dollar","BSD"]
[null,"Ngultrum","BTN"]
[null,"Pula","BWP"]
[null,"Belarusian Ruble","BYN"]
[null,"Belize Dollar","BZD"]
[null,"Canadian Dollar","CAD"]
[null,"Congolese Franc","CDF"]
[null,"WIR Euro","CHE"]
[null,"Swiss Franc","CHF"]
[null,"WIR Franc","CHW"]
[null,"Unidad de Fomento","CLF"]
[null,"Chilean Peso","CLP"]
[null,"Yuan Renminbi","CNY"]
[null,"Colombian Peso","COP"]
[null,"Unidad de Valor Real","COU"]
[null,"Costa Rican Colon","CRC"]
[null,"Peso Convertible","CUC"]
[null,"Cuban Peso","CUP"]
[null,"Cabo Verde Escudo","CVE"]
[null,"Czech Koruna","CZK"]
[null,"Djibouti Franc","DJF"]
[null,"Danish Krone","DKK"]
[null,"Dominican Peso","DOP"]
[null,"Algerian Dinar","DZD"]
[null,"Egyptian Pound","EGP"]
[null,"Nakfa","ERN"]
[null,"Ethiopian Birr","ETB"]
[null,"Fiji Dollar","FJD"]
[null,"Falkland Islands Pound","FKP"]
[null,"Lari","GEL"]
[null,"Ghana Cedi","GHS"]
[null,"Gibraltar Pound","GIP"]
[null,"Dalasi","GMD"]
[null,"Guinean Franc","GNF"]
[null,"Quetzal","GTQ"]
[null,"Guyana Dollar","GYD"]
[null,"Hong Kong Dollar","HKD"]
[null,"Lempira","HNL"]
[null,"Gourde","HTG"]
[null,"Forint","HUF"]
[null,"Rupiah","IDR"]
[null,"New Israeli Sheqel","ILS"]
[null,"Indian Rupee","INR"]
[null,"Iraqi Dinar","IQD"]
[null,"Iranian Rial","IRR"]
[null,"Iceland Krona","ISK"]
[null,"Jamaican Dollar","JMD"]
[null,"Jordanian Dinar","JOD"]
[null,"Yen","JPY"]
[null,"Kenyan Shilling","KES"]
[null,"Som","KGS"]
[null,"Riel","KHR"]
[null,"Comorian Franc ","KMF"]
[null,"North Korean Won","KPW"]
[null,"Won","KRW"]
[null,"Kuwaiti Dinar","KWD"]
[null,"Cayman Islands Dollar","KYD"]
[null,"Tenge","KZT"]
[null,"Lao Kip","LAK"]
[null,"Lebanese Pound","LBP"]
[null,"Sri Lanka Rupee","LKR"]
[null,"Liberian Dollar","LRD"]
[null,"Loti","LSL"]
[null,"Libyan Dinar","LYD"]
[null,"Moroccan Dirham","MAD"]
[null,"Moldovan Leu","MDL"]
[null,"Malagasy Ariary","MGA"]
[null,"Denar","MKD"]
[null,"Kyat","MMK"]
[null,"Tugrik","MNT"]
[null,"Pataca","MOP"]
[null,"Ouguiya","MRU"]
[null,"Mauritius Rupee","MUR"]
[null,"Rufiyaa","MVR"]
[null,"Malawi Kwacha","MWK"]
[null,"Mexican Peso","MXN"]
[null,"Mexican Unidad de Inversion (UDI)","MXV"]
[null,"Malaysian Ringgit","MYR"]
[null,"Mozambique Metical","MZN"]
[null,"Namibia Dollar","NAD"]
[null,"Naira","NGN"]
[null,"Cordoba Oro","NIO"]
[null,"Norwegian Krone","NOK"]
[null,"Nepalese Rupee","NPR"]
[null,"New Zealand Dollar","NZD"]
[null,"Rial Omani","OMR"]
[null,"Balboa","PAB"]
[null,"Sol","PEN"]
[null,"Kina","PGK"]
[null,"Philippine Peso","PHP"]
[null,"Pakistan Rupee","PKR"]
[null,"Zloty","PLN"]
[null,"Guarani","PYG"]
[null,"Qatari Rial","QAR"]
[null,"Romanian Leu","RON"]
[null,"Serbian Dinar","RSD"]
[null,"Russian Ruble","RUB"]
[null,"Rwanda Franc","RWF"]
[null,"Saudi Riyal","SAR"]
[null,"Solomon Islands Dollar","SBD"]
[null,"Seychelles Rupee","SCR"]
[null,"Sudanese Pound","SDG"]
[null,"Swedish Krona","SEK"]
[null,"Singapore Dollar","SGD"]
[null,"Saint Helena Pound","SHP"]
[null,"Leone","SLL"]
[null,"Somali Shilling","SOS"]
[null,"Surinam Dollar","SRD"]
[null,"South Sudanese Pound","SSP"]
[null,"Dobra","STN"]
[null,"El Salvador Colon","SVC"]
[null,"Syrian Pound","SYP"]
[null,"Lilangeni","SZL"]
[null,"Baht","THB"]
[null,"Somoni","TJS"]
[null,"Turkmenistan New Manat","TMT"]
[null,"Tunisian Dinar","TND"]
[null,"Pa’anga","TOP"]
[null,"Turkish Lira","TRY"]
[null,"Trinidad and Tobago Dollar","TTD"]
[null,"New Taiwan Dollar","TWD"]
[null,"Tanzanian Shilling","TZS"]
[null,"Hryvnia","UAH"]
[null,"Uganda Shilling","UGX"]
[null,"US Dollar (Next day)","USN"]
[null,"Uruguay Peso en Unidades Indexadas (UI)","UYI"]
[null,"Peso Uruguayo","UYU"]
[null,"Unidad Previsional","UYW"]
[null,"Uzbekistan Sum","UZS"]
[null,"Bolívar Soberano","VES"]
[null,"Dong","VND"]
[null,"Vatu","VUV"]
[null,"Tala","WST"]
[null,"CFA Franc BEAC","XAF"]
[null,"Silver","XAG"]
[null,"Gold","XAU"]
[null,"Bond Markets Unit European Composite Unit (EURCO)","XBA"]
[null,"Bond Markets Unit European Monetary Unit (E.M.U.-6)","XBB"]
[null,"Bond Markets Unit European Unit of Account 9 (E.U.A.-9)","XBC"]
[null,"Bond Markets Unit European Unit of Account 17 (E.U.A.-17)","XBD"]
[null,"East Caribbean Dollar","XCD"]
[null,"SDR (Special Drawing Right)","XDR"]
[null,"CFA Franc BCEAO","XOF"]
[null,"Palladium","XPD"]
[null,"CFP Franc","XPF"]
[null,"Platinum","XPT"]
[null,"Sucre","XSU"]
[null,"Codes specifically reserved for testing purposes","XTS"]
[null,"ADB Unit of Account","XUA"]
[null,"The codes assigned for transactions where no currency is involved","XXX"]
[null,"Yemeni Rial","YER"]
[null,"Rand","ZAR"]
[null,"Zambian Kwacha","ZMW"]
[null,"Zimbabwe Dollar","ZWL"]